Workbook

Sheet ZARO_FOKONYV
A1: FK szám | B1: FK neve | C1: tartozik egyenleg | D1: követel egyenleg
A2: 1 | B2: BEFEKTETETT ESZKÖZÖK | C2: 61563416 | D2: 0
A3: 11 | B3: IMMATERIÁLIS JAVAK | C3: 0 | D3: 0
A4: 113 | B4: Vagyoni értékű jogok | C4: 78737 | D4: 0
A5: 114 | B5: Szellemi termékek | C5: 21000 | D5: 0
A6: 119 | B6: Immateriális javak terv szerinti értékcsökkenése | C6: 0 | D6: 99737
A7: 12 | B7: INGATLANOK ÉS KAPCSOLÓDÓ VAGYONI ÉRTÉKŰ JOGOK | C7: 49105108 | D7: 0
A8: 123 | B8: Épületek, épületrészek, tulajdoni hányadok | C8: 52000012 | D8: 0
A9: 129 | B9: Ingatlanok terv szerinti értékcsökkenése | C9: 0 | D9: 2894904
A10: 14 | B10: EGYÉB BERENDEZÉSEK, FELSZERELÉSEK, GÉPEK, JÁRMŰVEK | C10: 8907049 | D10: 0
A11: 1411 | B11: Üzemi berend.tárgyak | C11: 5834040 | D11: 0
A12: 142 | B12: Egyéb járművek | C12: 12820711 | D12: 0
A13: 143 | B13: Irodai, igazgatási berendezések és felszerelések | C13: 3460124 | D13: 0
A14: 1431 | B14: Adatrögzítő készölékek | C14: 5820273 | D14: 0
A15: 144 | B15: Üzemkörön kívüli berendezése, felszerelések, járművek | C15: 169900 | D15: 0
A16: 145 | B16: Kisértékű eszközök | C16: 901146 | D16: 0
A17: 147 | B17: Egyéb berendezések, felszerelések, járművek értékhelyesbítése | C17: 5052160 | D17: 0
A18: 149 | B18: Egyéb berendezések, felszerelések, járművek terv szerinti értékcsökkenése | C18: 0 | D18: 25151305
A19: 1491 | B19: Egyéb berendezési tárgyak ÉCS | C19: 0 | D19: 6020578
A20: 14931 | B20: Adatrögzítő kész.ÉCS | C20: 0 | D20: 5509265
A21: 14932 | B21: Irodai berendezések ÉCS | C21: 0 | D21: 2379292
A22: 1494 | B22: Számítástechnikai eszközök ÉCS | C22: 0 | D22: 248250
A23: 1495 | B23: Kisértékű eszközök ÉCS | C23: 0 | D23: 901146
A24: 1497 | B24: Járművek ÉCS | C24: 0 | D24: 10092774
A25: 16 | B25: BERUHÁZÁSOK, FELÚJÍTÁSOK | C25: 3551259 | D25: 0
A26: 161 | B26: Befejezetlen beruházások | C26: 3551259 | D26: 0
A27: 2 | B27: KÉSZLETEK | C27: 14902580 | D27: 0
A28: 26 | B28: KERESKEDELMI ÁRUK | C28: 14902580 | D28: 0
A29: 261 | B29: Áruk beszerzési áron | C29: 14902580 | D29: 0
A30: 3 | B30: KÖVETELÉSEK, PÉNZÜGYI ESZKÖZÖK ÉS AKTÍV IDŐBELI ELHATÁROLÁSOK | C30: 75259587 | D30: 0
A31: 31 | B31: KÖVETELÉSEK ÁRUSZÁLLÍTÁSBÓL ÉS SZOLGÁLTATÁSBÓL (VEVŐK) | C31: 76722709 | D31: 0
A32: 311 | B32: Belföldi vevő követelések forintban | C32: 76722709 | D32: 0
A33: 35 | B33: ADOTT ELŐLEGEK | C33: 73199 | D33: 0
A34: 352 | B34: Beruházásokra adott előlegek | C34: 0 | D34: 1
A35: 353 | B35: Készletekre adott előlegek | C35: 73200 | D35: 0
A36: 36 | B36: EGYÉB KÖVETELÉSEK | C36: 0 | D36: 0
A37: 364 | B37: Rövid lejáratú kölcsönadott pénzeszközök | C37: 0 | D37: 0
A38: 3641 | B38: Rövid lejáratú kölcsönök | C38: 0 | D38: 0
A39: 38 | B39: PÉNZESZKÖZÖK | C39: 0 | D39: 5771580
A40: 381 | B40: Pénztár | C40: 2043892 | D40: 0
A41: 3811 | B41: Pénztár-számla | C41: 2043892 | D41: 0
A42: 382 | B42: Valutapénztár | C42: 844607 | D42: 0
A43: 3821 | B43: Valutapénztár-számla | C43: 844607 | D43: 0
A44: 384 | B44: Bankszámlák | C44: 0 | D44: 8637639
A45: 3841 | B45: K&H Bank | C45: 0 | D45: 4914593
A46: 3842 | B46: Raiffeisen Bank | C46: 0 | D46: 3723046
A47: 389 | B47: Átvezetési számla | C47: 0 | D47: 22440
A48: 3891 | B48: Átvezetés bank és pénztár között | C48: 0 | D48: 0
A49: 3892 | B49: Átvezetés bank és bank között | C49: 0 | D49: 0
A50: 3899 | B50: Technikai számla | C50: 0 | D50: 22440
A51: 39 | B51: AKTÍV IDŐBELI ELHATÁROLÁSOK | C51: 4235259 | D51: 0
A52: 391 | B52: Bevételek aktív időbeli elhatárolások | C52: 4050000 | D52: 0
A53: 3913 | B53: Árbevétel, egyéb bevétel elhatárolása | C53: 4050000 | D53: 0
A54: 392 | B54: Költségek, ráfordítások időbeli elhatárolása | C54: 185259 | D54: 0
A55: 3922 | B55: Többletkötelezettségek elhatárolása | C55: 0 | D55: 0
A56: 3923 | B56: Költségek, egyéb fizetett kamatok, egyéb ráfordítások elhatárolása | C56: 185259 | D56: 0
A57: 4 | B57: FORRÁSOK | C57: 0 | D57: 149713245
A58: 41 | B58: SAJÁT TŐKE | C58: 0 | D58: 29549496
A59: 411 | B59: Jegyzett tőke | C59: 0 | D59: 3000000
A60: 413 | B60: Eredménytartalék | C60: 0 | D60: 26549496
A61: 414 | B61: Lekötött tartalék | C61: 0 | D61: 0
A62: 4142 | B62: Lekötött tartalék eredménytartalékból | C62: 0 | D62: 0
A63: 44 | B63: HOSSZÚ LEJÁRATÚ KÖTELEZETTSÉGEK | C63: 0 | D63: 62295444
A64: 4412 | B64: ABC-123 lízing | C64: 1293708 | D64: 0
A65: 4416 | B65: ABC-234 lízing | C65: 0 | D65: 892236
A66: 444 | B66: Beruházási és fejlsztési hitelek | C66: 0 | D66: 59177911
A67: 4441 | B67: Beruházási és fejlesztési hitelek forintban | C67: 0 | D67: 59177911
A68: 4481 | B68: lizing Smart | C68: 0 | D68: 3519005
A69: 45 | B69: RÖVID LEJÁRATÚ KÖTELEZETTSÉGEK | C69: 0 | D69: 49002940
A70: 452 | B70: Rövid lejáratú hitelek | C70: 0 | D70: 17284774
A71: 4521 | B71: Rövid lejáratú hitelek forintban | C71: 0 | D71: 17284774
A72: 454 | B72: Szállítók | C72: 0 | D72: 31718166
A73: 4541 | B73: Belföldi anyag és áruszállítók | C73: 0 | D73: 31718166
A74: 461 | B74: Társasági adó elszámolása | C74: 0 | D74: 1053300
A75: 462 | B75: Személyi jövedelemadó elszámolása | C75: 0 | D75: 376000
A76: 463 | B76: Költségvetési befizetési kötelezettségek | C76: 0 | D76: 690260
A77: 46310 | B77: Egészségügyi hozzájárulás | C77: 0 | D77: 46260
A78: 46311 | B78: Külön fel nem sorolt befizetési kötelezettségek | C78: 0 | D78: 3000
A79: 46312 | B79: APEH NYBA | C79: 0 | D79: 148000
A80: 46313 | B80: APEH EBA | C80: 0 | D80: 126000
A81: 46316 | B81: APEH SZOCHO | C81: 0 | D81: 367000
A82: 466 | B82: Előzetesen felszámított ÁFA | C82: 0 | D82: 0
A83: 467 | B83: Fizetendő általános forgalmi adó | C83: 0 | D83: 0
A84: 468 | B84: Általános forgalmi adó elszámolási számla | C84: 0 | D84: 6293166
A85: 469 | B85: Helyi adók elszámolási számla | C85: 87635 | D85: 0
A86: 4695 | B86: Helyi iparűzési adó elszámolási számla | C86: 87635 | D86: 0
A87: 4696 | B87: Gépjárműadó elszámolási számla | C87: 0 | D87: 0
A88: 471 | B88: Jövedelemadó elszámolási számla | C88: 0 | D88: 131837
A89: 4711 | B89: Keresetelszámolási számla | C89: 0 | D89: 131837
A90: 473 | B90: Társadalombiztosítási kötelezettség | C90: 0 | D90: 190000
A91: 474 | B91: Elkülönített alapokkal kapcsolatos fizetési kötelezettségek | C91: 0 | D91: 32000
A92: 4742 | B92: Szakképzési hozzájárulás | C92: 0 | D92: 32000
A93: 48 | B93: PASSZÍV IDŐBELI ELHATÁROLÁSOK | C93: 0 | D93: 186437
A94: 481 | B94: Bevételek passzív időbeli elhatárolása | C94: 0 | D94: 0
A95: 4811 | B95: Befolyt, elszámolt bevételek elhatárolása | C95: 0 | D95: 0
A96: 482 | B96: Költségek, ráfordítások passzív időbeli elhatárolása | C96: 0 | D96: 186437
A97: 4821 | B97: Mérlegfordulónap előtti időszakot terhelő költségek, ráfordítások elhatárolása | C97: 0 | D97: 186437
A98: 49 | B98: ÉVI MÉRLEGSZÁMLÁK | C98: 0 | D98: 0
A99: 491 | B99: Nyitómérleg számla | C99: 0 | D99: 0
A100: 493 | B100: Adózott eredmény elszámolása | C100: 0 | D100: 0
A101: 5 | B101: KÖLTSÉGNEMEK | C101: 21115639 | D101: 0
A102: 51 | B102: ANYAGKÖLTSÉGEK | C102: 7744010 | D102: 0
A103: 5111 | B103: Üzemanyag vás. | C103: 554843 | D103: 0
A104: 5112 | B104: Alkatrész vás. | C104: 5524925 | D104: 0
A105: 5129 | B105: Egyéb anyag ktg. | C105: 1220633 | D105: 0
A106: 5131 | B106: Közüzemi díjak | C106: 439491 | D106: 0
A107: 5132 | B107: Nyomtatvány, irodaszer | C107: 4118 | D107: 0
A108: 52 | B108: IGÉNYBE VETT SZOLGÁLTATÁSOK KÖLTSÉGEI | C108: 5667885 | D108: 0
A109: 521 | B109: Szállítás-rakodás, raktározás költségei | C109: 9865 | D109: 0
A110: 522 | B110: Bérleti díjak | C110: 1527114 | D110: 0
A111: 523 | B111: Karbantartási költségek | C111: 576654 | D111: 0
A112: 524 | B112: Hírdetés, reklám, propaganda költségei | C112: 50000 | D112: 0
A113: 525 | B113: Oktatás és továbbképzés költségei | C113: 505000 | D113: 0
A114: 527 | B114: Számviteli szolgáltatás | C114: 600000 | D114: 0
A115: 52901 | B115: Posta, telefon dij | C115: 462679 | D115: 0
A116: 52902 | B116: Autópálya, parkolási dij | C116: 110969 | D116: 0
A117: 52910 | B117: Egyéb szolgáltatás | C117: 1825604 | D117: 0
A118: 53 | B118: EGYÉB SZOLGÁLTATÁSOK KÖLTSÉGEI | C118: 1239728 | D118: 0
A119: 531 | B119: Hatósági igazgatási, szolgáltatási díjak, illetékek | C119: 6000 | D119: 0
A120: 532 | B120: Pénzügyi, befektetési szolgáltatási díjak | C120: 681179 | D120: 0
A121: 533 | B121: Biztosítási dij | C121: 552549 | D121: 0
A122: 54 | B122: BÉRKÖLTSÉG | C122: 2137500 | D122: 0
A123: 541 | B123: Bérköltség | C123: 2137500 | D123: 0
A124: 55 | B124: SZEMÉLYI JELLEGŰ EGYÉB KIFIZETÉSEK | C124: 46260 | D124: 0
A125: 551 | B125: Munkavállalóknak, tagoknak fizetettt személyi jellegű kifizetések | C125: 46260 | D125: 0
A126: 56 | B126: BÉRJÁRULÉKOK | C126: 346754 | D126: 0
A127: 561 | B127: Nyugdijbiztosítási és egészségbiztosítási járulék | C127: 315336 | D127: 0
A128: 563 | B128: Munkaadói járulék | C128: 2978 | D128: 0
A129: 564 | B129: Szakképzési hozzájárulás | C129: 28440 | D129: 0
A130: 57 | B130: ÉRTÉKCSÖKKENÉSI LEÍRÁS | C130: 3933502 | D130: 0
A131: 571 | B131: Terv szerinti értékcsökkenési leírás | C131: 3234879 | D131: 0
A132: 572 | B132: Használatbavételkor egy összegben elszámolt értékcsökkenési leírás | C132: 698623 | D132: 0
A133: 8 | B133: ÉRTÉKESÍTÉS ELSZÁMOLT ÖNKÖLTSÉGE ÉS RÁFORDÍTÁSOK | C133: 86778355 | D133: 0
A134: 814 | B134: ELÁBÉ | C134: 83204283 | D134: 0
A135: 8141 | B135: ELÁBÉ | C135: 83204283 | D135: 0
A136: 86 | B136: EGYÉB RÁFORDÍTÁSOK | C136: 2156267 | D136: 0
A137: 863 | B137: Mérlegfordulónap előtt bekövetkezett eseményeknek az üzleti évhez kapcsolódó ráford. | C137: 217949 | D137: 0
A138: 8632 | B138: Bírságok, kötbérek, fekbérek, késedelmi kamatok, kártéríté sek | C138: 217444 | D138: 0
A139: 8636 | B139: Kerekítés | C139: 505 | D139: 0
A140: 867 | B140: Adók, illetékek, hozzájárulások | C140: 715895 | D140: 0
A141: 8672 | B141: Önkormányzatokkal elszámolt adók, illetékek, hozzájárulások | C141: 715895 | D141: 0
A142: 869 | B142: Különféle egyéb ráfordítások | C142: 1222423 | D142: 0
A143: 8699 | B143: Nem a vállalkozás érdekében felmerült kiadás | C143: 1222423 | D143: 0
A144: 87 | B144: PÉNZÜGYI MŰVELETEK RÁFORDÍTÁ SAI | C144: 982805 | D144: 0
A145: 872 | B145: Fizetendő kamatok és kamat jellegű ráfordítások | C145: 225887 | D145: 0
A146: 8721 | B146: Kölcsönök, hitelek kapcsolt vállalkozásnak fizetendő kamata | C146: 97672 | D146: 0
A147: 8722 | B147: Kölcsönök, hitelek egyéb fizetendő kamata | C147: 128215 | D147: 0
A148: 876 | B148: Átváltáskori, értékeléskori árfolyamveszteség | C148: 756918 | D148: 0
A149: 8762 | B149: Külföldi pénzértékre szóló eszk. és kötelezettségek pénzügyileg rendezett árf. veszt. | C149: 756918 | D149: 0
A150: 89 | B150: NYERESÉGET TERHELŐ ADÓK | C150: 435000 | D150: 0
A151: 891 | B151: Társasági adó | C151: 435000 | D151: 0
A152: 9 | B152: ÉRTÉKESÍTÉS ÁRBEVÉTELE ÉS BEVÉTELEK | C152: 0 | D152: 109906332
A153: 91 | B153: BELFÖLDI ÉRTÉKESÍTÉS ÁRBEVÉTELE | C153: 0 | D153: 109903948
A154: 911 | B154: Alaptevékenység árbevétele | C154: 0 | D154: 109903948
A155: 96 | B155: EGYÉB BEVÉTELEK | C155: 0 | D155: 1740
A156: 963 | B156: A mérlegkészítés időpontjáig pénzügyileg rendezett, az üzleti évhez kapcsolódó egyéb bev. | C156: 0 | D156: 1739
A157: 9636 | B157: Kerekítés | C157: 0 | D157: 1739
A158: 969 | B158: Különféle egyéb bevételek | C158: 0 | D158: 1
A159: 9696 | B159: Egyéb bevétel | C159: 0 | D159: 1
A160: 97 | B160: PÉNZÜGYI MŰVELETEK BEVÉTELEI | C160: 0 | D160: 644
A161: 974 | B161: Egyéb kapott kamatok és kamatjellegű bevételek | C161: 0 | D161: 644
A162: 9741 | B162: Forgóeszközök között kimutatott kölcsön, váltókövetelés, pénzeszköz után kapott kamat | C162: 0 | D162: 644

Sheet beallitasok
A2: Dátum | B2: 2020-12-31 | G2: Vevő eleje | H2: 311
A3: Ellenszámla | B3: 491000 | G3: Szállító eleje | H3: 454
A4: File neve | B4: VALAMI
A5: Sorszám | B5: 19 | G5: Gyűjtősorok törlése | H5: IGEN
A6: Bizonylatjel | B6: NYITÓ
G8: Hányas osztályig? | H8: 9

Sheet RELAX_feladas
A1: Dátum | B1: Megnevezés | C1: Bizonylatjel | D1: Összeg | E1: Tartozik | F1: Kovetel | G1: KTGHELY | H1: Tartozik megnevezés | I1: Követel megnevezés | J1: Gyűjtő?
A2: =IFERROR(IF(OR(AND(beallitasok!$H$5="IGEN",J2="IGEN"),B2="",VALUE(LEFT(F2,LEN(beallitasok!$H$2)))=beallitasok!$H$2,VALUE(LEFT(E2,LEN(beallitasok!$H$3)))=beallitasok!$H$3,VALUE(LEFT(F2,LEN(beallitasok!$H$2)))=beallitasok!$H$3,VALUE(LEFT(E2,LEN(beallitasok!$H$3)))=beallitasok!$H$2),"",IF(D2="","",beallitasok!$B$2)),"") ->  | B2: =IF(VALUE(LEFT(ZARO_FOKONYV!A2,1))<=beallitasok!$H$8,ZARO_FOKONYV!B2,"") -> BEFEKTETETT ESZKÖZÖK | C2: =IF(B2="","",IF(beallitasok!$B$6="","",beallitasok!$B$6)) -> NYITÓ | D2: =IF(B2="","",ROUND(ZARO_FOKONYV!C2+ZARO_FOKONYV!D2,0)) -> 61563416 | E2: =IF(B2="","",LEFT(IF(ZARO_FOKONYV!C2>0,IFERROR(VLOOKUP(ZARO_FOKONYV!$A2,FKCSERE!$A:$B,2,FALSE),ZARO_FOKONYV!$A2),beallitasok!$B$3)&"00000",6)) -> 100000 | F2: =IF(B2="","",LEFT(IF(ZARO_FOKONYV!D2>0,IFERROR(VLOOKUP(ZARO_FOKONYV!$A2,FKCSERE!$A:$B,2,FALSE),ZARO_FOKONYV!$A2),beallitasok!$B$3)&"000000",6)) -> 491000 | H2: =IF(LEFT(E2,3)=LEFT(beallitasok!$B$3,3),"",$B2) -> BEFEKTETETT ESZKÖZÖK | I2: =IF(LEFT(F2,3)=LEFT(beallitasok!$B$3,3),"",$B2) ->  | J2: =IF(AND(LEN(ZARO_FOKONYV!A2)<LEN(ZARO_FOKONYV!A3),LEFT(ZARO_FOKONYV!A3,LEN(ZARO_FOKONYV!A2))=ZARO_FOKONYV!A2),"IGEN","nem") -> IGEN
A3: =IFERROR(IF(OR(AND(beallitasok!$H$5="IGEN",J3="IGEN"),B3="",VALUE(LEFT(F3,LEN(beallitasok!$H$2)))=beallitasok!$H$2,VALUE(LEFT(E3,LEN(beallitasok!$H$3)))=beallitasok!$H$3,VALUE(LEFT(F3,LEN(beallitasok!$H$2)))=beallitasok!$H$3,VALUE(LEFT(E3,LEN(beallitasok!$H$3)))=beallitasok!$H$2),"",IF(D3="","",beallitasok!$B$2)),"") ->  | B3: =IF(VALUE(LEFT(ZARO_FOKONYV!A3,1))<=beallitasok!$H$8,ZARO_FOKONYV!B3,"") -> IMMATERIÁLIS JAVAK | C3: =IF(B3="","",IF(beallitasok!$B$6="","",beallitasok!$B$6)) -> NYITÓ | D3: =IF(B3="","",ROUND(ZARO_FOKONYV!C3+ZARO_FOKONYV!D3,0)) -> 0 | E3: =IF(B3="","",LEFT(IF(ZARO_FOKONYV!C3>0,IFERROR(VLOOKUP(ZARO_FOKONYV!$A3,FKCSERE!$A:$B,2,FALSE),ZARO_FOKONYV!$A3),beallitasok!$B$3)&"00000",6)) -> 491000 | F3: =IF(B3="","",LEFT(IF(ZARO_FOKONYV!D3>0,IFERROR(VLOOKUP(ZARO_FOKONYV!$A3,FKCSERE!$A:$B,2,FALSE),ZARO_FOKONYV!$A3),beallitasok!$B$3)&"000000",6)) -> 491000 | H3: =IF(LEFT(E3,3)=LEFT(beallitasok!$B$3,3),"",$B3) ->  | I3: =IF(LEFT(F3,3)=LEFT(beallitasok!$B$3,3),"",$B3) ->  | J3: =IF(AND(LEN(ZARO_FOKONYV!A3)<LEN(ZARO_FOKONYV!A4),LEFT(ZARO_FOKONYV!A4,LEN(ZARO_FOKONYV!A3))=ZARO_FOKONYV!A3),"IGEN","nem") -> IGEN
A4: =IFERROR(IF(OR(AND(beallitasok!$H$5="IGEN",J4="IGEN"),B4="",VALUE(LEFT(F4,LEN(beallitasok!$H$2)))=beallitasok!$H$2,VALUE(LEFT(E4,LEN(beallitasok!$H$3)))=beallitasok!$H$3,VALUE(LEFT(F4,LEN(beallitasok!$H$2)))=beallitasok!$H$3,VALUE(LEFT(E4,LEN(beallitasok!$H$3)))=beallitasok!$H$2),"",IF(D4="","",beallitasok!$B$2)),"") -> 2020-12-31 | B4: =IF(VALUE(LEFT(ZARO_FOKONYV!A4,1))<=beallitasok!$H$8,ZARO_FOKONYV!B4,"") -> Vagyoni értékű jogok | C4: =IF(B4="","",IF(beallitasok!$B$6="","",beallitasok!$B$6)) -> NYITÓ | D4: =IF(B4="","",ROUND(ZARO_FOKONYV!C4+ZARO_FOKONYV!D4,0)) -> 78737 | E4: =IF(B4="","",LEFT(IF(ZARO_FOKONYV!C4>0,IFERROR(VLOOKUP(ZARO_FOKONYV!$A4,FKCSERE!$A:$B,2,FALSE),ZARO_FOKONYV!$A4),beallitasok!$B$3)&"00000",6)) -> 113000 | F4: =IF(B4="","",LEFT(IF(ZARO_FOKONYV!D4>0,IFERROR(VLOOKUP(ZARO_FOKONYV!$A4,FKCSERE!$A:$B,2,FALSE),ZARO_FOKONYV!$A4),beallitasok!$B$3)&"000000",6)) -> 491000 | H4: =IF(LEFT(E4,3)=LEFT(beallitasok!$B$3,3),"",$B4) -> Vagyoni értékű jogok | I4: =IF(LEFT(F4,3)=LEFT(beallitasok!$B$3,3),"",$B4) ->  | J4: =IF(AND(LEN(ZARO_FOKONYV!A4)<LEN(ZARO_FOKONYV!A5),LEFT(ZARO_FOKONYV!A5,LEN(ZARO_FOKONYV!A4))=ZARO_FOKONYV!A4),"IGEN","nem") -> nem
A5: =IFERROR(IF(OR(AND(beallitasok!$H$5="IGEN",J5="IGEN"),B5="",VALUE(LEFT(F5,LEN(beallitasok!$H$2)))=beallitasok!$H$2,VALUE(LEFT(E5,LEN(beallitasok!$H$3)))=beallitasok!$H$3,VALUE(LEFT(F5,LEN(beallitasok!$H$2)))=beallitasok!$H$3,VALUE(LEFT(E5,LEN(beallitasok!$H$3)))=beallitasok!$H$2),"",IF(D5="","",beallitasok!$B$2)),"") -> 2020-12-31 | B5: =IF(VALUE(LEFT(ZARO_FOKONYV!A5,1))<=beallitasok!$H$8,ZARO_FOKONYV!B5,"") -> Szellemi termékek | C5: =IF(B5="","",IF(beallitasok!$B$6="","",beallitasok!$B$6)) -> NYITÓ | D5: =IF(B5="","",ROUND(ZARO_FOKONYV!C5+ZARO_FOKONYV!D5,0)) -> 21000 | E5: =IF(B5="","",LEFT(IF(ZARO_FOKONYV!C5>0,IFERROR(VLOOKUP(ZARO_FOKONYV!$A5,FKCSERE!$A:$B,2,FALSE),ZARO_FOKONYV!$A5),beallitasok!$B$3)&"00000",6)) -> 114000 | F5: =IF(B5="","",LEFT(IF(ZARO_FOKONYV!D5>0,IFERROR(VLOOKUP(ZARO_FOKONYV!$A5,FKCSERE!$A:$B,2,FALSE),ZARO_FOKONYV!$A5),beallitasok!$B$3)&"000000",6)) -> 491000 | H5: =IF(LEFT(E5,3)=LEFT(beallitasok!$B$3,3),"",$B5) -> Szellemi termékek | I5: =IF(LEFT(F5,3)=LEFT(beallitasok!$B$3,3),"",$B5) ->  | J5: =IF(AND(LEN(ZARO_FOKONYV!A5)<LEN(ZARO_FOKONYV!A6),LEFT(ZARO_FOKONYV!A6,LEN(ZARO_FOKONYV!A5))=ZARO_FOKONYV!A5),"IGEN","nem") -> nem
A6: =IFERROR(IF(OR(AND(beallitasok!$H$5="IGEN",J6="IGEN"),B6="",VALUE(LEFT(F6,LEN(beallitasok!$H$2)))=beallitasok!$H$2,VALUE(LEFT(E6,LEN(beallitasok!$H$3)))=beallitasok!$H$3,VALUE(LEFT(F6,LEN(beallitasok!$H$2)))=beallitasok!$H$3,VALUE(LEFT(E6,LEN(beallitasok!$H$3)))=beallitasok!$H$2),"",IF(D6="","",beallitasok!$B$2)),"") -> 2020-12-31 | B6: =IF(VALUE(LEFT(ZARO_FOKONYV!A6,1))<=beallitasok!$H$8,ZARO_FOKONYV!B6,"") -> Immateriális javak terv szerinti értékcsökkenése | C6: =IF(B6="","",IF(beallitasok!$B$6="","",beallitasok!$B$6)) -> NYITÓ | D6: =IF(B6="","",ROUND(ZARO_FOKONYV!C6+ZARO_FOKONYV!D6,0)) -> 99737 | E6: =IF(B6="","",LEFT(IF(ZARO_FOKONYV!C6>0,IFERROR(VLOOKUP(ZARO_FOKONYV!$A6,FKCSERE!$A:$B,2,FALSE),ZARO_FOKONYV!$A6),beallitasok!$B$3)&"00000",6)) -> 491000 | F6: =IF(B6="","",LEFT(IF(ZARO_FOKONYV!D6>0,IFERROR(VLOOKUP(ZARO_FOKONYV!$A6,FKCSERE!$A:$B,2,FALSE),ZARO_FOKONYV!$A6),beallitasok!$B$3)&"000000",6)) -> 119000 | H6: =IF(LEFT(E6,3)=LEFT(beallitasok!$B$3,3),"",$B6) ->  | I6: =IF(LEFT(F6,3)=LEFT(beallitasok!$B$3,3),"",$B6) -> Immateriális javak terv szerinti értékcsökkenése | J6: =IF(AND(LEN(ZARO_FOKONYV!A6)<LEN(ZARO_FOKONYV!A7),LEFT(ZARO_FOKONYV!A7,LEN(ZARO_FOKONYV!A6))=ZARO_FOKONYV!A6),"IGEN","nem") -> nem
A7: =IFERROR(IF(OR(AND(beallitasok!$H$5="IGEN",J7="IGEN"),B7="",VALUE(LEFT(F7,LEN(beallitasok!$H$2)))=beallitasok!$H$2,VALUE(LEFT(E7,LEN(beallitasok!$H$3)))=beallitasok!$H$3,VALUE(LEFT(F7,LEN(beallitasok!$H$2)))=beallitasok!$H$3,VALUE(LEFT(E7,LEN(beallitasok!$H$3)))=beallitasok!$H$2),"",IF(D7="","",beallitasok!$B$2)),"") ->  | B7: =IF(VALUE(LEFT(ZARO_FOKONYV!A7,1))<=beallitasok!$H$8,ZARO_FOKONYV!B7,"") -> INGATLANOK ÉS KAPCSOLÓDÓ VAGYONI ÉRTÉKŰ JOGOK | C7: =IF(B7="","",IF(beallitasok!$B$6="","",beallitasok!$B$6)) -> NYITÓ | D7: =IF(B7="","",ROUND(ZARO_FOKONYV!C7+ZARO_FOKONYV!D7,0)) -> 49105108 | E7: =IF(B7="","",LEFT(IF(ZARO_FOKONYV!C7>0,IFERROR(VLOOKUP(ZARO_FOKONYV!$A7,FKCSERE!$A:$B,2,FALSE),ZARO_FOKONYV!$A7),beallitasok!$B$3)&"00000",6)) -> 120000 | F7: =IF(B7="","",LEFT(IF(ZARO_FOKONYV!D7>0,IFERROR(VLOOKUP(ZARO_FOKONYV!$A7,FKCSERE!$A:$B,2,FALSE),ZARO_FOKONYV!$A7),beallitasok!$B$3)&"000000",6)) -> 491000 | H7: =IF(LEFT(E7,3)=LEFT(beallitasok!$B$3,3),"",$B7) -> INGATLANOK ÉS KAPCSOLÓDÓ VAGYONI ÉRTÉKŰ JOGOK | I7: =IF(LEFT(F7,3)=LEFT(beallitasok!$B$3,3),"",$B7) ->  | J7: =IF(AND(LEN(ZARO_FOKONYV!A7)<LEN(ZARO_FOKONYV!A8),LEFT(ZARO_FOKONYV!A8,LEN(ZARO_FOKONYV!A7))=ZARO_FOKONYV!A7),"IGEN","nem") -> IGEN
A8: =IFERROR(IF(OR(AND(beallitasok!$H$5="IGEN",J8="IGEN"),B8="",VALUE(LEFT(F8,LEN(beallitasok!$H$2)))=beallitasok!$H$2,VALUE(LEFT(E8,LEN(beallitasok!$H$3)))=beallitasok!$H$3,VALUE(LEFT(F8,LEN(beallitasok!$H$2)))=beallitasok!$H$3,VALUE(LEFT(E8,LEN(beallitasok!$H$3)))=beallitasok!$H$2),"",IF(D8="","",beallitasok!$B$2)),"") -> 2020-12-31 | B8: =IF(VALUE(LEFT(ZARO_FOKONYV!A8,1))<=beallitasok!$H$8,ZARO_FOKONYV!B8,"") -> Épületek, épületrészek, tulajdoni hányadok | C8: =IF(B8="","",IF(beallitasok!$B$6="","",beallitasok!$B$6)) -> NYITÓ | D8: =IF(B8="","",ROUND(ZARO_FOKONYV!C8+ZARO_FOKONYV!D8,0)) -> 52000012 | E8: =IF(B8="","",LEFT(IF(ZARO_FOKONYV!C8>0,IFERROR(VLOOKUP(ZARO_FOKONYV!$A8,FKCSERE!$A:$B,2,FALSE),ZARO_FOKONYV!$A8),beallitasok!$B$3)&"00000",6)) -> 123000 | F8: =IF(B8="","",LEFT(IF(ZARO_FOKONYV!D8>0,IFERROR(VLOOKUP(ZARO_FOKONYV!$A8,FKCSERE!$A:$B,2,FALSE),ZARO_FOKONYV!$A8),beallitasok!$B$3)&"000000",6)) -> 491000 | H8: =IF(LEFT(E8,3)=LEFT(beallitasok!$B$3,3),"",$B8) -> Épületek, épületrészek, tulajdoni hányadok | I8: =IF(LEFT(F8,3)=LEFT(beallitasok!$B$3,3),"",$B8) ->  | J8: =IF(AND(LEN(ZARO_FOKONYV!A8)<LEN(ZARO_FOKONYV!A9),LEFT(ZARO_FOKONYV!A9,LEN(ZARO_FOKONYV!A8))=ZARO_FOKONYV!A8),"IGEN","nem") -> nem
A9: =IFERROR(IF(OR(AND(beallitasok!$H$5="IGEN",J9="IGEN"),B9="",VALUE(LEFT(F9,LEN(beallitasok!$H$2)))=beallitasok!$H$2,VALUE(LEFT(E9,LEN(beallitasok!$H$3)))=beallitasok!$H$3,VALUE(LEFT(F9,LEN(beallitasok!$H$2)))=beallitasok!$H$3,VALUE(LEFT(E9,LEN(beallitasok!$H$3)))=beallitasok!$H$2),"",IF(D9="","",beallitasok!$B$2)),"") -> 2020-12-31 | B9: =IF(VALUE(LEFT(ZARO_FOKONYV!A9,1))<=beallitasok!$H$8,ZARO_FOKONYV!B9,"") -> Ingatlanok terv szerinti értékcsökkenése | C9: =IF(B9="","",IF(beallitasok!$B$6="","",beallitasok!$B$6)) -> NYITÓ | D9: =IF(B9="","",ROUND(ZARO_FOKONYV!C9+ZARO_FOKONYV!D9,0)) -> 2894904 | E9: =IF(B9="","",LEFT(IF(ZARO_FOKONYV!C9>0,IFERROR(VLOOKUP(ZARO_FOKONYV!$A9,FKCSERE!$A:$B,2,FALSE),ZARO_FOKONYV!$A9),beallitasok!$B$3)&"00000",6)) -> 491000 | F9: =IF(B9="","",LEFT(IF(ZARO_FOKONYV!D9>0,IFERROR(VLOOKUP(ZARO_FOKONYV!$A9,FKCSERE!$A:$B,2,FALSE),ZARO_FOKONYV!$A9),beallitasok!$B$3)&"000000",6)) -> 129000 | H9: =IF(LEFT(E9,3)=LEFT(beallitasok!$B$3,3),"",$B9) ->  | I9: =IF(LEFT(F9,3)=LEFT(beallitasok!$B$3,3),"",$B9) -> Ingatlanok terv szerinti értékcsökkenése | J9: =IF(AND(LEN(ZARO_FOKONYV!A9)<LEN(ZARO_FOKONYV!A10),LEFT(ZARO_FOKONYV!A10,LEN(ZARO_FOKONYV!A9))=ZARO_FOKONYV!A9),"IGEN","nem") -> nem
A10: =IFERROR(IF(OR(AND(beallitasok!$H$5="IGEN",J10="IGEN"),B10="",VALUE(LEFT(F10,LEN(beallitasok!$H$2)))=beallitasok!$H$2,VALUE(LEFT(E10,LEN(beallitasok!$H$3)))=beallitasok!$H$3,VALUE(LEFT(F10,LEN(beallitasok!$H$2)))=beallitasok!$H$3,VALUE(LEFT(E10,LEN(beallitasok!$H$3)))=beallitasok!$H$2),"",IF(D10="","",beallitasok!$B$2)),"") ->  | B10: =IF(VALUE(LEFT(ZARO_FOKONYV!A10,1))<=beallitasok!$H$8,ZARO_FOKONYV!B10,"") -> EGYÉB BERENDEZÉSEK, FELSZERELÉSEK, GÉPEK, JÁRMŰVEK | C10: =IF(B10="","",IF(beallitasok!$B$6="","",beallitasok!$B$6)) -> NYITÓ | D10: =IF(B10="","",ROUND(ZARO_FOKONYV!C10+ZARO_FOKONYV!D10,0)) -> 8907049 | E10: =IF(B10="","",LEFT(IF(ZARO_FOKONYV!C10>0,IFERROR(VLOOKUP(ZARO_FOKONYV!$A10,FKCSERE!$A:$B,2,FALSE),ZARO_FOKONYV!$A10),beallitasok!$B$3)&"00000",6)) -> 140000 | F10: =IF(B10="","",LEFT(IF(ZARO_FOKONYV!D10>0,IFERROR(VLOOKUP(ZARO_FOKONYV!$A10,FKCSERE!$A:$B,2,FALSE),ZARO_FOKONYV!$A10),beallitasok!$B$3)&"000000",6)) -> 491000 | H10: =IF(LEFT(E10,3)=LEFT(beallitasok!$B$3,3),"",$B10) -> EGYÉB BERENDEZÉSEK, FELSZERELÉSEK, GÉPEK, JÁRMŰVEK | I10: =IF(LEFT(F10,3)=LEFT(beallitasok!$B$3,3),"",$B10) ->  | J10: =IF(AND(LEN(ZARO_FOKONYV!A10)<LEN(ZARO_FOKONYV!A11),LEFT(ZARO_FOKONYV!A11,LEN(ZARO_FOKONYV!A10))=ZARO_FOKONYV!A10),"IGEN","nem") -> IGEN
A11: =IFERROR(IF(OR(AND(beallitasok!$H$5="IGEN",J11="IGEN"),B11="",VALUE(LEFT(F11,LEN(beallitasok!$H$2)))=beallitasok!$H$2,VALUE(LEFT(E11,LEN(beallitasok!$H$3)))=beallitasok!$H$3,VALUE(LEFT(F11,LEN(beallitasok!$H$2)))=beallitasok!$H$3,VALUE(LEFT(E11,LEN(beallitasok!$H$3)))=beallitasok!$H$2),"",IF(D11="","",beallitasok!$B$2)),"") -> 2020-12-31 | B11: =IF(VALUE(LEFT(ZARO_FOKONYV!A11,1))<=beallitasok!$H$8,ZARO_FOKONYV!B11,"") -> Üzemi berend.tárgyak | C11: =IF(B11="","",IF(beallitasok!$B$6="","",beallitasok!$B$6)) -> NYITÓ | D11: =IF(B11="","",ROUND(ZARO_FOKONYV!C11+ZARO_FOKONYV!D11,0)) -> 5834040 | E11: =IF(B11="","",LEFT(IF(ZARO_FOKONYV!C11>0,IFERROR(VLOOKUP(ZARO_FOKONYV!$A11,FKCSERE!$A:$B,2,FALSE),ZARO_FOKONYV!$A11),beallitasok!$B$3)&"00000",6)) -> 141100 | F11: =IF(B11="","",LEFT(IF(ZARO_FOKONYV!D11>0,IFERROR(VLOOKUP(ZARO_FOKONYV!$A11,FKCSERE!$A:$B,2,FALSE),ZARO_FOKONYV!$A11),beallitasok!$B$3)&"000000",6)) -> 491000 | H11: =IF(LEFT(E11,3)=LEFT(beallitasok!$B$3,3),"",$B11) -> Üzemi berend.tárgyak | I11: =IF(LEFT(F11,3)=LEFT(beallitasok!$B$3,3),"",$B11) ->  | J11: =IF(AND(LEN(ZARO_FOKONYV!A11)<LEN(ZARO_FOKONYV!A12),LEFT(ZARO_FOKONYV!A12,LEN(ZARO_FOKONYV!A11))=ZARO_FOKONYV!A11),"IGEN","nem") -> nem
A12: =IFERROR(IF(OR(AND(beallitasok!$H$5="IGEN",J12="IGEN"),B12="",VALUE(LEFT(F12,LEN(beallitasok!$H$2)))=beallitasok!$H$2,VALUE(LEFT(E12,LEN(beallitasok!$H$3)))=beallitasok!$H$3,VALUE(LEFT(F12,LEN(beallitasok!$H$2)))=beallitasok!$H$3,VALUE(LEFT(E12,LEN(beallitasok!$H$3)))=beallitasok!$H$2),"",IF(D12="","",beallitasok!$B$2)),"") -> 2020-12-31 | B12: =IF(VALUE(LEFT(ZARO_FOKONYV!A12,1))<=beallitasok!$H$8,ZARO_FOKONYV!B12,"") -> Egyéb járművek | C12: =IF(B12="","",IF(beallitasok!$B$6="","",beallitasok!$B$6)) -> NYITÓ | D12: =IF(B12="","",ROUND(ZARO_FOKONYV!C12+ZARO_FOKONYV!D12,0)) -> 12820711 | E12: =IF(B12="","",LEFT(IF(ZARO_FOKONYV!C12>0,IFERROR(VLOOKUP(ZARO_FOKONYV!$A12,FKCSERE!$A:$B,2,FALSE),ZARO_FOKONYV!$A12),beallitasok!$B$3)&"00000",6)) -> 142000 | F12: =IF(B12="","",LEFT(IF(ZARO_FOKONYV!D12>0,IFERROR(VLOOKUP(ZARO_FOKONYV!$A12,FKCSERE!$A:$B,2,FALSE),ZARO_FOKONYV!$A12),beallitasok!$B$3)&"000000",6)) -> 491000 | H12: =IF(LEFT(E12,3)=LEFT(beallitasok!$B$3,3),"",$B12) -> Egyéb járművek | I12: =IF(LEFT(F12,3)=LEFT(beallitasok!$B$3,3),"",$B12) ->  | J12: =IF(AND(LEN(ZARO_FOKONYV!A12)<LEN(ZARO_FOKONYV!A13),LEFT(ZARO_FOKONYV!A13,LEN(ZARO_FOKONYV!A12))=ZARO_FOKONYV!A12),"IGEN","nem") -> nem
A13: =IFERROR(IF(OR(AND(beallitasok!$H$5="IGEN",J13="IGEN"),B13="",VALUE(LEFT(F13,LEN(beallitasok!$H$2)))=beallitasok!$H$2,VALUE(LEFT(E13,LEN(beallitasok!$H$3)))=beallitasok!$H$3,VALUE(LEFT(F13,LEN(beallitasok!$H$2)))=beallitasok!$H$3,VALUE(LEFT(E13,LEN(beallitasok!$H$3)))=beallitasok!$H$2),"",IF(D13="","",beallitasok!$B$2)),"") ->  | B13: =IF(VALUE(LEFT(ZARO_FOKONYV!A13,1))<=beallitasok!$H$8,ZARO_FOKONYV!B13,"") -> Irodai, igazgatási berendezések és felszerelések | C13: =IF(B13="","",IF(beallitasok!$B$6="","",beallitasok!$B$6)) -> NYITÓ | D13: =IF(B13="","",ROUND(ZARO_FOKONYV!C13+ZARO_FOKONYV!D13,0)) -> 3460124 | E13: =IF(B13="","",LEFT(IF(ZARO_FOKONYV!C13>0,IFERROR(VLOOKUP(ZARO_FOKONYV!$A13,FKCSERE!$A:$B,2,FALSE),ZARO_FOKONYV!$A13),beallitasok!$B$3)&"00000",6)) -> 143000 | F13: =IF(B13="","",LEFT(IF(ZARO_FOKONYV!D13>0,IFERROR(VLOOKUP(ZARO_FOKONYV!$A13,FKCSERE!$A:$B,2,FALSE),ZARO_FOKONYV!$A13),beallitasok!$B$3)&"000000",6)) -> 491000 | H13: =IF(LEFT(E13,3)=LEFT(beallitasok!$B$3,3),"",$B13) -> Irodai, igazgatási berendezések és felszerelések | I13: =IF(LEFT(F13,3)=LEFT(beallitasok!$B$3,3),"",$B13) ->  | J13: =IF(AND(LEN(ZARO_FOKONYV!A13)<LEN(ZARO_FOKONYV!A14),LEFT(ZARO_FOKONYV!A14,LEN(ZARO_FOKONYV!A13))=ZARO_FOKONYV!A13),"IGEN","nem") -> IGEN
A14: =IFERROR(IF(OR(AND(beallitasok!$H$5="IGEN",J14="IGEN"),B14="",VALUE(LEFT(F14,LEN(beallitasok!$H$2)))=beallitasok!$H$2,VALUE(LEFT(E14,LEN(beallitasok!$H$3)))=beallitasok!$H$3,VALUE(LEFT(F14,LEN(beallitasok!$H$2)))=beallitasok!$H$3,VALUE(LEFT(E14,LEN(beallitasok!$H$3)))=beallitasok!$H$2),"",IF(D14="","",beallitasok!$B$2)),"") -> 2020-12-31 | B14: =IF(VALUE(LEFT(ZARO_FOKONYV!A14,1))<=beallitasok!$H$8,ZARO_FOKONYV!B14,"") -> Adatrögzítő készölékek | C14: =IF(B14="","",IF(beallitasok!$B$6="","",beallitasok!$B$6)) -> NYITÓ | D14: =IF(B14="","",ROUND(ZARO_FOKONYV!C14+ZARO_FOKONYV!D14,0)) -> 5820273 | E14: =IF(B14="","",LEFT(IF(ZARO_FOKONYV!C14>0,IFERROR(VLOOKUP(ZARO_FOKONYV!$A14,FKCSERE!$A:$B,2,FALSE),ZARO_FOKONYV!$A14),beallitasok!$B$3)&"00000",6)) -> 143100 | F14: =IF(B14="","",LEFT(IF(ZARO_FOKONYV!D14>0,IFERROR(VLOOKUP(ZARO_FOKONYV!$A14,FKCSERE!$A:$B,2,FALSE),ZARO_FOKONYV!$A14),beallitasok!$B$3)&"000000",6)) -> 491000 | H14: =IF(LEFT(E14,3)=LEFT(beallitasok!$B$3,3),"",$B14) -> Adatrögzítő készölékek | I14: =IF(LEFT(F14,3)=LEFT(beallitasok!$B$3,3),"",$B14) ->  | J14: =IF(AND(LEN(ZARO_FOKONYV!A14)<LEN(ZARO_FOKONYV!A15),LEFT(ZARO_FOKONYV!A15,LEN(ZARO_FOKONYV!A14))=ZARO_FOKONYV!A14),"IGEN","nem") -> nem
A15: =IFERROR(IF(OR(AND(beallitasok!$H$5="IGEN",J15="IGEN"),B15="",VALUE(LEFT(F15,LEN(beallitasok!$H$2)))=beallitasok!$H$2,VALUE(LEFT(E15,LEN(beallitasok!$H$3)))=beallitasok!$H$3,VALUE(LEFT(F15,LEN(beallitasok!$H$2)))=beallitasok!$H$3,VALUE(LEFT(E15,LEN(beallitasok!$H$3)))=beallitasok!$H$2),"",IF(D15="","",beallitasok!$B$2)),"") -> 2020-12-31 | B15: =IF(VALUE(LEFT(ZARO_FOKONYV!A15,1))<=beallitasok!$H$8,ZARO_FOKONYV!B15,"") -> Üzemkörön kívüli berendezése, felszerelések, járművek | C15: =IF(B15="","",IF(beallitasok!$B$6="","",beallitasok!$B$6)) -> NYITÓ | D15: =IF(B15="","",ROUND(ZARO_FOKONYV!C15+ZARO_FOKONYV!D15,0)) -> 169900 | E15: =IF(B15="","",LEFT(IF(ZARO_FOKONYV!C15>0,IFERROR(VLOOKUP(ZARO_FOKONYV!$A15,FKCSERE!$A:$B,2,FALSE),ZARO_FOKONYV!$A15),beallitasok!$B$3)&"00000",6)) -> 144000 | F15: =IF(B15="","",LEFT(IF(ZARO_FOKONYV!D15>0,IFERROR(VLOOKUP(ZARO_FOKONYV!$A15,FKCSERE!$A:$B,2,FALSE),ZARO_FOKONYV!$A15),beallitasok!$B$3)&"000000",6)) -> 491000 | H15: =IF(LEFT(E15,3)=LEFT(beallitasok!$B$3,3),"",$B15) -> Üzemkörön kívüli berendezése, felszerelések, járművek | I15: =IF(LEFT(F15,3)=LEFT(beallitasok!$B$3,3),"",$B15) ->  | J15: =IF(AND(LEN(ZARO_FOKONYV!A15)<LEN(ZARO_FOKONYV!A16),LEFT(ZARO_FOKONYV!A16,LEN(ZARO_FOKONYV!A15))=ZARO_FOKONYV!A15),"IGEN","nem") -> nem
A16: =IFERROR(IF(OR(AND(beallitasok!$H$5="IGEN",J16="IGEN"),B16="",VALUE(LEFT(F16,LEN(beallitasok!$H$2)))=beallitasok!$H$2,VALUE(LEFT(E16,LEN(beallitasok!$H$3)))=beallitasok!$H$3,VALUE(LEFT(F16,LEN(beallitasok!$H$2)))=beallitasok!$H$3,VALUE(LEFT(E16,LEN(beallitasok!$H$3)))=beallitasok!$H$2),"",IF(D16="","",beallitasok!$B$2)),"") -> 2020-12-31 | B16: =IF(VALUE(LEFT(ZARO_FOKONYV!A16,1))<=beallitasok!$H$8,ZARO_FOKONYV!B16,"") -> Kisértékű eszközök | C16: =IF(B16="","",IF(beallitasok!$B$6="","",beallitasok!$B$6)) -> NYITÓ | D16: =IF(B16="","",ROUND(ZARO_FOKONYV!C16+ZARO_FOKONYV!D16,0)) -> 901146 | E16: =IF(B16="","",LEFT(IF(ZARO_FOKONYV!C16>0,IFERROR(VLOOKUP(ZARO_FOKONYV!$A16,FKCSERE!$A:$B,2,FALSE),ZARO_FOKONYV!$A16),beallitasok!$B$3)&"00000",6)) -> 145000 | F16: =IF(B16="","",LEFT(IF(ZARO_FOKONYV!D16>0,IFERROR(VLOOKUP(ZARO_FOKONYV!$A16,FKCSERE!$A:$B,2,FALSE),ZARO_FOKONYV!$A16),beallitasok!$B$3)&"000000",6)) -> 491000 | H16: =IF(LEFT(E16,3)=LEFT(beallitasok!$B$3,3),"",$B16) -> Kisértékű eszközök | I16: =IF(LEFT(F16,3)=LEFT(beallitasok!$B$3,3),"",$B16) ->  | J16: =IF(AND(LEN(ZARO_FOKONYV!A16)<LEN(ZARO_FOKONYV!A17),LEFT(ZARO_FOKONYV!A17,LEN(ZARO_FOKONYV!A16))=ZARO_FOKONYV!A16),"IGEN","nem") -> nem
A17: =IFERROR(IF(OR(AND(beallitasok!$H$5="IGEN",J17="IGEN"),B17="",VALUE(LEFT(F17,LEN(beallitasok!$H$2)))=beallitasok!$H$2,VALUE(LEFT(E17,LEN(beallitasok!$H$3)))=beallitasok!$H$3,VALUE(LEFT(F17,LEN(beallitasok!$H$2)))=beallitasok!$H$3,VALUE(LEFT(E17,LEN(beallitasok!$H$3)))=beallitasok!$H$2),"",IF(D17="","",beallitasok!$B$2)),"") -> 2020-12-31 | B17: =IF(VALUE(LEFT(ZARO_FOKONYV!A17,1))<=beallitasok!$H$8,ZARO_FOKONYV!B17,"") -> Egyéb berendezések, felszerelések, járművek értékhelyesbítése | C17: =IF(B17="","",IF(beallitasok!$B$6="","",beallitasok!$B$6)) -> NYITÓ | D17: =IF(B17="","",ROUND(ZARO_FOKONYV!C17+ZARO_FOKONYV!D17,0)) -> 5052160 | E17: =IF(B17="","",LEFT(IF(ZARO_FOKONYV!C17>0,IFERROR(VLOOKUP(ZARO_FOKONYV!$A17,FKCSERE!$A:$B,2,FALSE),ZARO_FOKONYV!$A17),beallitasok!$B$3)&"00000",6)) -> 147000 | F17: =IF(B17="","",LEFT(IF(ZARO_FOKONYV!D17>0,IFERROR(VLOOKUP(ZARO_FOKONYV!$A17,FKCSERE!$A:$B,2,FALSE),ZARO_FOKONYV!$A17),beallitasok!$B$3)&"000000",6)) -> 491000 | H17: =IF(LEFT(E17,3)=LEFT(beallitasok!$B$3,3),"",$B17) -> Egyéb berendezések, felszerelések, járművek értékhelyesbítése | I17: =IF(LEFT(F17,3)=LEFT(beallitasok!$B$3,3),"",$B17) ->  | J17: =IF(AND(LEN(ZARO_FOKONYV!A17)<LEN(ZARO_FOKONYV!A18),LEFT(ZARO_FOKONYV!A18,LEN(ZARO_FOKONYV!A17))=ZARO_FOKONYV!A17),"IGEN","nem") -> nem
A18: =IFERROR(IF(OR(AND(beallitasok!$H$5="IGEN",J18="IGEN"),B18="",VALUE(LEFT(F18,LEN(beallitasok!$H$2)))=beallitasok!$H$2,VALUE(LEFT(E18,LEN(beallitasok!$H$3)))=beallitasok!$H$3,VALUE(LEFT(F18,LEN(beallitasok!$H$2)))=beallitasok!$H$3,VALUE(LEFT(E18,LEN(beallitasok!$H$3)))=beallitasok!$H$2),"",IF(D18="","",beallitasok!$B$2)),"") ->  | B18: =IF(VALUE(LEFT(ZARO_FOKONYV!A18,1))<=beallitasok!$H$8,ZARO_FOKONYV!B18,"") -> Egyéb berendezések, felszerelések, járművek terv szerinti értékcsökkenése | C18: =IF(B18="","",IF(beallitasok!$B$6="","",beallitasok!$B$6)) -> NYITÓ | D18: =IF(B18="","",ROUND(ZARO_FOKONYV!C18+ZARO_FOKONYV!D18,0)) -> 25151305 | E18: =IF(B18="","",LEFT(IF(ZARO_FOKONYV!C18>0,IFERROR(VLOOKUP(ZARO_FOKONYV!$A18,FKCSERE!$A:$B,2,FALSE),ZARO_FOKONYV!$A18),beallitasok!$B$3)&"00000",6)) -> 491000 | F18: =IF(B18="","",LEFT(IF(ZARO_FOKONYV!D18>0,IFERROR(VLOOKUP(ZARO_FOKONYV!$A18,FKCSERE!$A:$B,2,FALSE),ZARO_FOKONYV!$A18),beallitasok!$B$3)&"000000",6)) -> 149000 | H18: =IF(LEFT(E18,3)=LEFT(beallitasok!$B$3,3),"",$B18) ->  | I18: =IF(LEFT(F18,3)=LEFT(beallitasok!$B$3,3),"",$B18) -> Egyéb berendezések, felszerelések, járművek terv szerinti értékcsökkenése | J18: =IF(AND(LEN(ZARO_FOKONYV!A18)<LEN(ZARO_FOKONYV!A19),LEFT(ZARO_FOKONYV!A19,LEN(ZARO_FOKONYV!A18))=ZARO_FOKONYV!A18),"IGEN","nem") -> IGEN
A19: =IFERROR(IF(OR(AND(beallitasok!$H$5="IGEN",J19="IGEN"),B19="",VALUE(LEFT(F19,LEN(beallitasok!$H$2)))=beallitasok!$H$2,VALUE(LEFT(E19,LEN(beallitasok!$H$3)))=beallitasok!$H$3,VALUE(LEFT(F19,LEN(beallitasok!$H$2)))=beallitasok!$H$3,VALUE(LEFT(E19,LEN(beallitasok!$H$3)))=beallitasok!$H$2),"",IF(D19="","",beallitasok!$B$2)),"") -> 2020-12-31 | B19: =IF(VALUE(LEFT(ZARO_FOKONYV!A19,1))<=beallitasok!$H$8,ZARO_FOKONYV!B19,"") -> Egyéb berendezési tárgyak ÉCS | C19: =IF(B19="","",IF(beallitasok!$B$6="","",beallitasok!$B$6)) -> NYITÓ | D19: =IF(B19="","",ROUND(ZARO_FOKONYV!C19+ZARO_FOKONYV!D19,0)) -> 6020578 | E19: =IF(B19="","",LEFT(IF(ZARO_FOKONYV!C19>0,IFERROR(VLOOKUP(ZARO_FOKONYV!$A19,FKCSERE!$A:$B,2,FALSE),ZARO_FOKONYV!$A19),beallitasok!$B$3)&"00000",6)) -> 491000 | F19: =IF(B19="","",LEFT(IF(ZARO_FOKONYV!D19>0,IFERROR(VLOOKUP(ZARO_FOKONYV!$A19,FKCSERE!$A:$B,2,FALSE),ZARO_FOKONYV!$A19),beallitasok!$B$3)&"000000",6)) -> 149100 | H19: =IF(LEFT(E19,3)=LEFT(beallitasok!$B$3,3),"",$B19) ->  | I19: =IF(LEFT(F19,3)=LEFT(beallitasok!$B$3,3),"",$B19) -> Egyéb berendezési tárgyak ÉCS | J19: =IF(AND(LEN(ZARO_FOKONYV!A19)<LEN(ZARO_FOKONYV!A20),LEFT(ZARO_FOKONYV!A20,LEN(ZARO_FOKONYV!A19))=ZARO_FOKONYV!A19),"IGEN","nem") -> nem
A20: =IFERROR(IF(OR(AND(beallitasok!$H$5="IGEN",J20="IGEN"),B20="",VALUE(LEFT(F20,LEN(beallitasok!$H$2)))=beallitasok!$H$2,VALUE(LEFT(E20,LEN(beallitasok!$H$3)))=beallitasok!$H$3,VALUE(LEFT(F20,LEN(beallitasok!$H$2)))=beallitasok!$H$3,VALUE(LEFT(E20,LEN(beallitasok!$H$3)))=beallitasok!$H$2),"",IF(D20="","",beallitasok!$B$2)),"") -> 2020-12-31 | B20: =IF(VALUE(LEFT(ZARO_FOKONYV!A20,1))<=beallitasok!$H$8,ZARO_FOKONYV!B20,"") -> Adatrögzítő kész.ÉCS | C20: =IF(B20="","",IF(beallitasok!$B$6="","",beallitasok!$B$6)) -> NYITÓ | D20: =IF(B20="","",ROUND(ZARO_FOKONYV!C20+ZARO_FOKONYV!D20,0)) -> 5509265 | E20: =IF(B20="","",LEFT(IF(ZARO_FOKONYV!C20>0,IFERROR(VLOOKUP(ZARO_FOKONYV!$A20,FKCSERE!$A:$B,2,FALSE),ZARO_FOKONYV!$A20),beallitasok!$B$3)&"00000",6)) -> 491000 | F20: =IF(B20="","",LEFT(IF(ZARO_FOKONYV!D20>0,IFERROR(VLOOKUP(ZARO_FOKONYV!$A20,FKCSERE!$A:$B,2,FALSE),ZARO_FOKONYV!$A20),beallitasok!$B$3)&"000000",6)) -> 149310 | H20: =IF(LEFT(E20,3)=LEFT(beallitasok!$B$3,3),"",$B20) ->  | I20: =IF(LEFT(F20,3)=LEFT(beallitasok!$B$3,3),"",$B20) -> Adatrögzítő kész.ÉCS | J20: =IF(AND(LEN(ZARO_FOKONYV!A20)<LEN(ZARO_FOKONYV!A21),LEFT(ZARO_FOKONYV!A21,LEN(ZARO_FOKONYV!A20))=ZARO_FOKONYV!A20),"IGEN","nem") -> nem
A21: =IFERROR(IF(OR(AND(beallitasok!$H$5="IGEN",J21="IGEN"),B21="",VALUE(LEFT(F21,LEN(beallitasok!$H$2)))=beallitasok!$H$2,VALUE(LEFT(E21,LEN(beallitasok!$H$3)))=beallitasok!$H$3,VALUE(LEFT(F21,LEN(beallitasok!$H$2)))=beallitasok!$H$3,VALUE(LEFT(E21,LEN(beallitasok!$H$3)))=beallitasok!$H$2),"",IF(D21="","",beallitasok!$B$2)),"") -> 2020-12-31 | B21: =IF(VALUE(LEFT(ZARO_FOKONYV!A21,1))<=beallitasok!$H$8,ZARO_FOKONYV!B21,"") -> Irodai berendezések ÉCS | C21: =IF(B21="","",IF(beallitasok!$B$6="","",beallitasok!$B$6)) -> NYITÓ | D21: =IF(B21="","",ROUND(ZARO_FOKONYV!C21+ZARO_FOKONYV!D21,0)) -> 2379292 | E21: =IF(B21="","",LEFT(IF(ZARO_FOKONYV!C21>0,IFERROR(VLOOKUP(ZARO_FOKONYV!$A21,FKCSERE!$A:$B,2,FALSE),ZARO_FOKONYV!$A21),beallitasok!$B$3)&"00000",6)) -> 491000 | F21: =IF(B21="","",LEFT(IF(ZARO_FOKONYV!D21>0,IFERROR(VLOOKUP(ZARO_FOKONYV!$A21,FKCSERE!$A:$B,2,FALSE),ZARO_FOKONYV!$A21),beallitasok!$B$3)&"000000",6)) -> 149320 | H21: =IF(LEFT(E21,3)=LEFT(beallitasok!$B$3,3),"",$B21) ->  | I21: =IF(LEFT(F21,3)=LEFT(beallitasok!$B$3,3),"",$B21) -> Irodai berendezések ÉCS | J21: =IF(AND(LEN(ZARO_FOKONYV!A21)<LEN(ZARO_FOKONYV!A22),LEFT(ZARO_FOKONYV!A22,LEN(ZARO_FOKONYV!A21))=ZARO_FOKONYV!A21),"IGEN","nem") -> nem
A22: =IFERROR(IF(OR(AND(beallitasok!$H$5="IGEN",J22="IGEN"),B22="",VALUE(LEFT(F22,LEN(beallitasok!$H$2)))=beallitasok!$H$2,VALUE(LEFT(E22,LEN(beallitasok!$H$3)))=beallitasok!$H$3,VALUE(LEFT(F22,LEN(beallitasok!$H$2)))=beallitasok!$H$3,VALUE(LEFT(E22,LEN(beallitasok!$H$3)))=beallitasok!$H$2),"",IF(D22="","",beallitasok!$B$2)),"") -> 2020-12-31 | B22: =IF(VALUE(LEFT(ZARO_FOKONYV!A22,1))<=beallitasok!$H$8,ZARO_FOKONYV!B22,"") -> Számítástechnikai eszközök ÉCS | C22: =IF(B22="","",IF(beallitasok!$B$6="","",beallitasok!$B$6)) -> NYITÓ | D22: =IF(B22="","",ROUND(ZARO_FOKONYV!C22+ZARO_FOKONYV!D22,0)) -> 248250 | E22: =IF(B22="","",LEFT(IF(ZARO_FOKONYV!C22>0,IFERROR(VLOOKUP(ZARO_FOKONYV!$A22,FKCSERE!$A:$B,2,FALSE),ZARO_FOKONYV!$A22),beallitasok!$B$3)&"00000",6)) -> 491000 | F22: =IF(B22="","",LEFT(IF(ZARO_FOKONYV!D22>0,IFERROR(VLOOKUP(ZARO_FOKONYV!$A22,FKCSERE!$A:$B,2,FALSE),ZARO_FOKONYV!$A22),beallitasok!$B$3)&"000000",6)) -> 149400 | H22: =IF(LEFT(E22,3)=LEFT(beallitasok!$B$3,3),"",$B22) ->  | I22: =IF(LEFT(F22,3)=LEFT(beallitasok!$B$3,3),"",$B22) -> Számítástechnikai eszközök ÉCS | J22: =IF(AND(LEN(ZARO_FOKONYV!A22)<LEN(ZARO_FOKONYV!A23),LEFT(ZARO_FOKONYV!A23,LEN(ZARO_FOKONYV!A22))=ZARO_FOKONYV!A22),"IGEN","nem") -> nem
A23: =IFERROR(IF(OR(AND(beallitasok!$H$5="IGEN",J23="IGEN"),B23="",VALUE(LEFT(F23,LEN(beallitasok!$H$2)))=beallitasok!$H$2,VALUE(LEFT(E23,LEN(beallitasok!$H$3)))=beallitasok!$H$3,VALUE(LEFT(F23,LEN(beallitasok!$H$2)))=beallitasok!$H$3,VALUE(LEFT(E23,LEN(beallitasok!$H$3)))=beallitasok!$H$2),"",IF(D23="","",beallitasok!$B$2)),"") -> 2020-12-31 | B23: =IF(VALUE(LEFT(ZARO_FOKONYV!A23,1))<=beallitasok!$H$8,ZARO_FOKONYV!B23,"") -> Kisértékű eszközök ÉCS | C23: =IF(B23="","",IF(beallitasok!$B$6="","",beallitasok!$B$6)) -> NYITÓ | D23: =IF(B23="","",ROUND(ZARO_FOKONYV!C23+ZARO_FOKONYV!D23,0)) -> 901146 | E23: =IF(B23="","",LEFT(IF(ZARO_FOKONYV!C23>0,IFERROR(VLOOKUP(ZARO_FOKONYV!$A23,FKCSERE!$A:$B,2,FALSE),ZARO_FOKONYV!$A23),beallitasok!$B$3)&"00000",6)) -> 491000 | F23: =IF(B23="","",LEFT(IF(ZARO_FOKONYV!D23>0,IFERROR(VLOOKUP(ZARO_FOKONYV!$A23,FKCSERE!$A:$B,2,FALSE),ZARO_FOKONYV!$A23),beallitasok!$B$3)&"000000",6)) -> 149500 | H23: =IF(LEFT(E23,3)=LEFT(beallitasok!$B$3,3),"",$B23) ->  | I23: =IF(LEFT(F23,3)=LEFT(beallitasok!$B$3,3),"",$B23) -> Kisértékű eszközök ÉCS | J23: =IF(AND(LEN(ZARO_FOKONYV!A23)<LEN(ZARO_FOKONYV!A24),LEFT(ZARO_FOKONYV!A24,LEN(ZARO_FOKONYV!A23))=ZARO_FOKONYV!A23),"IGEN","nem") -> nem
A24: =IFERROR(IF(OR(AND(beallitasok!$H$5="IGEN",J24="IGEN"),B24="",VALUE(LEFT(F24,LEN(beallitasok!$H$2)))=beallitasok!$H$2,VALUE(LEFT(E24,LEN(beallitasok!$H$3)))=beallitasok!$H$3,VALUE(LEFT(F24,LEN(beallitasok!$H$2)))=beallitasok!$H$3,VALUE(LEFT(E24,LEN(beallitasok!$H$3)))=beallitasok!$H$2),"",IF(D24="","",beallitasok!$B$2)),"") -> 2020-12-31 | B24: =IF(VALUE(LEFT(ZARO_FOKONYV!A24,1))<=beallitasok!$H$8,ZARO_FOKONYV!B24,"") -> Járművek ÉCS | C24: =IF(B24="","",IF(beallitasok!$B$6="","",beallitasok!$B$6)) -> NYITÓ | D24: =IF(B24="","",ROUND(ZARO_FOKONYV!C24+ZARO_FOKONYV!D24,0)) -> 10092774 | E24: =IF(B24="","",LEFT(IF(ZARO_FOKONYV!C24>0,IFERROR(VLOOKUP(ZARO_FOKONYV!$A24,FKCSERE!$A:$B,2,FALSE),ZARO_FOKONYV!$A24),beallitasok!$B$3)&"00000",6)) -> 491000 | F24: =IF(B24="","",LEFT(IF(ZARO_FOKONYV!D24>0,IFERROR(VLOOKUP(ZARO_FOKONYV!$A24,FKCSERE!$A:$B,2,FALSE),ZARO_FOKONYV!$A24),beallitasok!$B$3)&"000000",6)) -> 149700 | H24: =IF(LEFT(E24,3)=LEFT(beallitasok!$B$3,3),"",$B24) ->  | I24: =IF(LEFT(F24,3)=LEFT(beallitasok!$B$3,3),"",$B24) -> Járművek ÉCS | J24: =IF(AND(LEN(ZARO_FOKONYV!A24)<LEN(ZARO_FOKONYV!A25),LEFT(ZARO_FOKONYV!A25,LEN(ZARO_FOKONYV!A24))=ZARO_FOKONYV!A24),"IGEN","nem") -> nem
A25: =IFERROR(IF(OR(AND(beallitasok!$H$5="IGEN",J25="IGEN"),B25="",VALUE(LEFT(F25,LEN(beallitasok!$H$2)))=beallitasok!$H$2,VALUE(LEFT(E25,LEN(beallitasok!$H$3)))=beallitasok!$H$3,VALUE(LEFT(F25,LEN(beallitasok!$H$2)))=beallitasok!$H$3,VALUE(LEFT(E25,LEN(beallitasok!$H$3)))=beallitasok!$H$2),"",IF(D25="","",beallitasok!$B$2)),"") ->  | B25: =IF(VALUE(LEFT(ZARO_FOKONYV!A25,1))<=beallitasok!$H$8,ZARO_FOKONYV!B25,"") -> BERUHÁZÁSOK, FELÚJÍTÁSOK | C25: =IF(B25="","",IF(beallitasok!$B$6="","",beallitasok!$B$6)) -> NYITÓ | D25: =IF(B25="","",ROUND(ZARO_FOKONYV!C25+ZARO_FOKONYV!D25,0)) -> 3551259 | E25: =IF(B25="","",LEFT(IF(ZARO_FOKONYV!C25>0,IFERROR(VLOOKUP(ZARO_FOKONYV!$A25,FKCSERE!$A:$B,2,FALSE),ZARO_FOKONYV!$A25),beallitasok!$B$3)&"00000",6)) -> 160000 | F25: =IF(B25="","",LEFT(IF(ZARO_FOKONYV!D25>0,IFERROR(VLOOKUP(ZARO_FOKONYV!$A25,FKCSERE!$A:$B,2,FALSE),ZARO_FOKONYV!$A25),beallitasok!$B$3)&"000000",6)) -> 491000 | H25: =IF(LEFT(E25,3)=LEFT(beallitasok!$B$3,3),"",$B25) -> BERUHÁZÁSOK, FELÚJÍTÁSOK | I25: =IF(LEFT(F25,3)=LEFT(beallitasok!$B$3,3),"",$B25) ->  | J25: =IF(AND(LEN(ZARO_FOKONYV!A25)<LEN(ZARO_FOKONYV!A26),LEFT(ZARO_FOKONYV!A26,LEN(ZARO_FOKONYV!A25))=ZARO_FOKONYV!A25),"IGEN","nem") -> IGEN
A26: =IFERROR(IF(OR(AND(beallitasok!$H$5="IGEN",J26="IGEN"),B26="",VALUE(LEFT(F26,LEN(beallitasok!$H$2)))=beallitasok!$H$2,VALUE(LEFT(E26,LEN(beallitasok!$H$3)))=beallitasok!$H$3,VALUE(LEFT(F26,LEN(beallitasok!$H$2)))=beallitasok!$H$3,VALUE(LEFT(E26,LEN(beallitasok!$H$3)))=beallitasok!$H$2),"",IF(D26="","",beallitasok!$B$2)),"") -> 2020-12-31 | B26: =IF(VALUE(LEFT(ZARO_FOKONYV!A26,1))<=beallitasok!$H$8,ZARO_FOKONYV!B26,"") -> Befejezetlen beruházások | C26: =IF(B26="","",IF(beallitasok!$B$6="","",beallitasok!$B$6)) -> NYITÓ | D26: =IF(B26="","",ROUND(ZARO_FOKONYV!C26+ZARO_FOKONYV!D26,0)) -> 3551259 | E26: =IF(B26="","",LEFT(IF(ZARO_FOKONYV!C26>0,IFERROR(VLOOKUP(ZARO_FOKONYV!$A26,FKCSERE!$A:$B,2,FALSE),ZARO_FOKONYV!$A26),beallitasok!$B$3)&"00000",6)) -> 161000 | F26: =IF(B26="","",LEFT(IF(ZARO_FOKONYV!D26>0,IFERROR(VLOOKUP(ZARO_FOKONYV!$A26,FKCSERE!$A:$B,2,FALSE),ZARO_FOKONYV!$A26),beallitasok!$B$3)&"000000",6)) -> 491000 | H26: =IF(LEFT(E26,3)=LEFT(beallitasok!$B$3,3),"",$B26) -> Befejezetlen beruházások | I26: =IF(LEFT(F26,3)=LEFT(beallitasok!$B$3,3),"",$B26) ->  | J26: =IF(AND(LEN(ZARO_FOKONYV!A26)<LEN(ZARO_FOKONYV!A27),LEFT(ZARO_FOKONYV!A27,LEN(ZARO_FOKONYV!A26))=ZARO_FOKONYV!A26),"IGEN","nem") -> nem
A27: =IFERROR(IF(OR(AND(beallitasok!$H$5="IGEN",J27="IGEN"),B27="",VALUE(LEFT(F27,LEN(beallitasok!$H$2)))=beallitasok!$H$2,VALUE(LEFT(E27,LEN(beallitasok!$H$3)))=beallitasok!$H$3,VALUE(LEFT(F27,LEN(beallitasok!$H$2)))=beallitasok!$H$3,VALUE(LEFT(E27,LEN(beallitasok!$H$3)))=beallitasok!$H$2),"",IF(D27="","",beallitasok!$B$2)),"") ->  | B27: =IF(VALUE(LEFT(ZARO_FOKONYV!A27,1))<=beallitasok!$H$8,ZARO_FOKONYV!B27,"") -> KÉSZLETEK | C27: =IF(B27="","",IF(beallitasok!$B$6="","",beallitasok!$B$6)) -> NYITÓ | D27: =IF(B27="","",ROUND(ZARO_FOKONYV!C27+ZARO_FOKONYV!D27,0)) -> 14902580 | E27: =IF(B27="","",LEFT(IF(ZARO_FOKONYV!C27>0,IFERROR(VLOOKUP(ZARO_FOKONYV!$A27,FKCSERE!$A:$B,2,FALSE),ZARO_FOKONYV!$A27),beallitasok!$B$3)&"00000",6)) -> 200000 | F27: =IF(B27="","",LEFT(IF(ZARO_FOKONYV!D27>0,IFERROR(VLOOKUP(ZARO_FOKONYV!$A27,FKCSERE!$A:$B,2,FALSE),ZARO_FOKONYV!$A27),beallitasok!$B$3)&"000000",6)) -> 491000 | H27: =IF(LEFT(E27,3)=LEFT(beallitasok!$B$3,3),"",$B27) -> KÉSZLETEK | I27: =IF(LEFT(F27,3)=LEFT(beallitasok!$B$3,3),"",$B27) ->  | J27: =IF(AND(LEN(ZARO_FOKONYV!A27)<LEN(ZARO_FOKONYV!A28),LEFT(ZARO_FOKONYV!A28,LEN(ZARO_FOKONYV!A27))=ZARO_FOKONYV!A27),"IGEN","nem") -> IGEN
A28: =IFERROR(IF(OR(AND(beallitasok!$H$5="IGEN",J28="IGEN"),B28="",VALUE(LEFT(F28,LEN(beallitasok!$H$2)))=beallitasok!$H$2,VALUE(LEFT(E28,LEN(beallitasok!$H$3)))=beallitasok!$H$3,VALUE(LEFT(F28,LEN(beallitasok!$H$2)))=beallitasok!$H$3,VALUE(LEFT(E28,LEN(beallitasok!$H$3)))=beallitasok!$H$2),"",IF(D28="","",beallitasok!$B$2)),"") ->  | B28: =IF(VALUE(LEFT(ZARO_FOKONYV!A28,1))<=beallitasok!$H$8,ZARO_FOKONYV!B28,"") -> KERESKEDELMI ÁRUK | C28: =IF(B28="","",IF(beallitasok!$B$6="","",beallitasok!$B$6)) -> NYITÓ | D28: =IF(B28="","",ROUND(ZARO_FOKONYV!C28+ZARO_FOKONYV!D28,0)) -> 14902580 | E28: =IF(B28="","",LEFT(IF(ZARO_FOKONYV!C28>0,IFERROR(VLOOKUP(ZARO_FOKONYV!$A28,FKCSERE!$A:$B,2,FALSE),ZARO_FOKONYV!$A28),beallitasok!$B$3)&"00000",6)) -> 260000 | F28: =IF(B28="","",LEFT(IF(ZARO_FOKONYV!D28>0,IFERROR(VLOOKUP(ZARO_FOKONYV!$A28,FKCSERE!$A:$B,2,FALSE),ZARO_FOKONYV!$A28),beallitasok!$B$3)&"000000",6)) -> 491000 | H28: =IF(LEFT(E28,3)=LEFT(beallitasok!$B$3,3),"",$B28) -> KERESKEDELMI ÁRUK | I28: =IF(LEFT(F28,3)=LEFT(beallitasok!$B$3,3),"",$B28) ->  | J28: =IF(AND(LEN(ZARO_FOKONYV!A28)<LEN(ZARO_FOKONYV!A29),LEFT(ZARO_FOKONYV!A29,LEN(ZARO_FOKONYV!A28))=ZARO_FOKONYV!A28),"IGEN","nem") -> IGEN
A29: =IFERROR(IF(OR(AND(beallitasok!$H$5="IGEN",J29="IGEN"),B29="",VALUE(LEFT(F29,LEN(beallitasok!$H$2)))=beallitasok!$H$2,VALUE(LEFT(E29,LEN(beallitasok!$H$3)))=beallitasok!$H$3,VALUE(LEFT(F29,LEN(beallitasok!$H$2)))=beallitasok!$H$3,VALUE(LEFT(E29,LEN(beallitasok!$H$3)))=beallitasok!$H$2),"",IF(D29="","",beallitasok!$B$2)),"") -> 2020-12-31 | B29: =IF(VALUE(LEFT(ZARO_FOKONYV!A29,1))<=beallitasok!$H$8,ZARO_FOKONYV!B29,"") -> Áruk beszerzési áron | C29: =IF(B29="","",IF(beallitasok!$B$6="","",beallitasok!$B$6)) -> NYITÓ | D29: =IF(B29="","",ROUND(ZARO_FOKONYV!C29+ZARO_FOKONYV!D29,0)) -> 14902580 | E29: =IF(B29="","",LEFT(IF(ZARO_FOKONYV!C29>0,IFERROR(VLOOKUP(ZARO_FOKONYV!$A29,FKCSERE!$A:$B,2,FALSE),ZARO_FOKONYV!$A29),beallitasok!$B$3)&"00000",6)) -> 261000 | F29: =IF(B29="","",LEFT(IF(ZARO_FOKONYV!D29>0,IFERROR(VLOOKUP(ZARO_FOKONYV!$A29,FKCSERE!$A:$B,2,FALSE),ZARO_FOKONYV!$A29),beallitasok!$B$3)&"000000",6)) -> 491000 | H29: =IF(LEFT(E29,3)=LEFT(beallitasok!$B$3,3),"",$B29) -> Áruk beszerzési áron | I29: =IF(LEFT(F29,3)=LEFT(beallitasok!$B$3,3),"",$B29) ->  | J29: =IF(AND(LEN(ZARO_FOKONYV!A29)<LEN(ZARO_FOKONYV!A30),LEFT(ZARO_FOKONYV!A30,LEN(ZARO_FOKONYV!A29))=ZARO_FOKONYV!A29),"IGEN","nem") -> nem
A30: =IFERROR(IF(OR(AND(beallitasok!$H$5="IGEN",J30="IGEN"),B30="",VALUE(LEFT(F30,LEN(beallitasok!$H$2)))=beallitasok!$H$2,VALUE(LEFT(E30,LEN(beallitasok!$H$3)))=beallitasok!$H$3,VALUE(LEFT(F30,LEN(beallitasok!$H$2)))=beallitasok!$H$3,VALUE(LEFT(E30,LEN(beallitasok!$H$3)))=beallitasok!$H$2),"",IF(D30="","",beallitasok!$B$2)),"") ->  | B30: =IF(VALUE(LEFT(ZARO_FOKONYV!A30,1))<=beallitasok!$H$8,ZARO_FOKONYV!B30,"") -> KÖVETELÉSEK, PÉNZÜGYI ESZKÖZÖK ÉS AKTÍV IDŐBELI ELHATÁROLÁSOK | C30: =IF(B30="","",IF(beallitasok!$B$6="","",beallitasok!$B$6)) -> NYITÓ | D30: =IF(B30="","",ROUND(ZARO_FOKONYV!C30+ZARO_FOKONYV!D30,0)) -> 75259587 | E30: =IF(B30="","",LEFT(IF(ZARO_FOKONYV!C30>0,IFERROR(VLOOKUP(ZARO_FOKONYV!$A30,FKCSERE!$A:$B,2,FALSE),ZARO_FOKONYV!$A30),beallitasok!$B$3)&"00000",6)) -> 300000 | F30: =IF(B30="","",LEFT(IF(ZARO_FOKONYV!D30>0,IFERROR(VLOOKUP(ZARO_FOKONYV!$A30,FKCSERE!$A:$B,2,FALSE),ZARO_FOKONYV!$A30),beallitasok!$B$3)&"000000",6)) -> 491000 | H30: =IF(LEFT(E30,3)=LEFT(beallitasok!$B$3,3),"",$B30) -> KÖVETELÉSEK, PÉNZÜGYI ESZKÖZÖK ÉS AKTÍV IDŐBELI ELHATÁROLÁSOK | I30: =IF(LEFT(F30,3)=LEFT(beallitasok!$B$3,3),"",$B30) ->  | J30: =IF(AND(LEN(ZARO_FOKONYV!A30)<LEN(ZARO_FOKONYV!A31),LEFT(ZARO_FOKONYV!A31,LEN(ZARO_FOKONYV!A30))=ZARO_FOKONYV!A30),"IGEN","nem") -> IGEN
A31: =IFERROR(IF(OR(AND(beallitasok!$H$5="IGEN",J31="IGEN"),B31="",VALUE(LEFT(F31,LEN(beallitasok!$H$2)))=beallitasok!$H$2,VALUE(LEFT(E31,LEN(beallitasok!$H$3)))=beallitasok!$H$3,VALUE(LEFT(F31,LEN(beallitasok!$H$2)))=beallitasok!$H$3,VALUE(LEFT(E31,LEN(beallitasok!$H$3)))=beallitasok!$H$2),"",IF(D31="","",beallitasok!$B$2)),"") ->  | B31: =IF(VALUE(LEFT(ZARO_FOKONYV!A31,1))<=beallitasok!$H$8,ZARO_FOKONYV!B31,"") -> KÖVETELÉSEK ÁRUSZÁLLÍTÁSBÓL ÉS SZOLGÁLTATÁSBÓL (VEVŐK) | C31: =IF(B31="","",IF(beallitasok!$B$6="","",beallitasok!$B$6)) -> NYITÓ | D31: =IF(B31="","",ROUND(ZARO_FOKONYV!C31+ZARO_FOKONYV!D31,0)) -> 76722709 | E31: =IF(B31="","",LEFT(IF(ZARO_FOKONYV!C31>0,IFERROR(VLOOKUP(ZARO_FOKONYV!$A31,FKCSERE!$A:$B,2,FALSE),ZARO_FOKONYV!$A31),beallitasok!$B$3)&"00000",6)) -> 310000 | F31: =IF(B31="","",LEFT(IF(ZARO_FOKONYV!D31>0,IFERROR(VLOOKUP(ZARO_FOKONYV!$A31,FKCSERE!$A:$B,2,FALSE),ZARO_FOKONYV!$A31),beallitasok!$B$3)&"000000",6)) -> 491000 | H31: =IF(LEFT(E31,3)=LEFT(beallitasok!$B$3,3),"",$B31) -> KÖVETELÉSEK ÁRUSZÁLLÍTÁSBÓL ÉS SZOLGÁLTATÁSBÓL (VEVŐK) | I31: =IF(LEFT(F31,3)=LEFT(beallitasok!$B$3,3),"",$B31) ->  | J31: =IF(AND(LEN(ZARO_FOKONYV!A31)<LEN(ZARO_FOKONYV!A32),LEFT(ZARO_FOKONYV!A32,LEN(ZARO_FOKONYV!A31))=ZARO_FOKONYV!A31),"IGEN","nem") -> IGEN
A32: =IFERROR(IF(OR(AND(beallitasok!$H$5="IGEN",J32="IGEN"),B32="",VALUE(LEFT(F32,LEN(beallitasok!$H$2)))=beallitasok!$H$2,VALUE(LEFT(E32,LEN(beallitasok!$H$3)))=beallitasok!$H$3,VALUE(LEFT(F32,LEN(beallitasok!$H$2)))=beallitasok!$H$3,VALUE(LEFT(E32,LEN(beallitasok!$H$3)))=beallitasok!$H$2),"",IF(D32="","",beallitasok!$B$2)),"") ->  | B32: =IF(VALUE(LEFT(ZARO_FOKONYV!A32,1))<=beallitasok!$H$8,ZARO_FOKONYV!B32,"") -> Belföldi vevő követelések forintban | C32: =IF(B32="","",IF(beallitasok!$B$6="","",beallitasok!$B$6)) -> NYITÓ | D32: =IF(B32="","",ROUND(ZARO_FOKONYV!C32+ZARO_FOKONYV!D32,0)) -> 76722709 | E32: =IF(B32="","",LEFT(IF(ZARO_FOKONYV!C32>0,IFERROR(VLOOKUP(ZARO_FOKONYV!$A32,FKCSERE!$A:$B,2,FALSE),ZARO_FOKONYV!$A32),beallitasok!$B$3)&"00000",6)) -> 311000 | F32: =IF(B32="","",LEFT(IF(ZARO_FOKONYV!D32>0,IFERROR(VLOOKUP(ZARO_FOKONYV!$A32,FKCSERE!$A:$B,2,FALSE),ZARO_FOKONYV!$A32),beallitasok!$B$3)&"000000",6)) -> 491000 | H32: =IF(LEFT(E32,3)=LEFT(beallitasok!$B$3,3),"",$B32) -> Belföldi vevő követelések forintban | I32: =IF(LEFT(F32,3)=LEFT(beallitasok!$B$3,3),"",$B32) ->  | J32: =IF(AND(LEN(ZARO_FOKONYV!A32)<LEN(ZARO_FOKONYV!A33),LEFT(ZARO_FOKONYV!A33,LEN(ZARO_FOKONYV!A32))=ZARO_FOKONYV!A32),"IGEN","nem") -> nem
A33: =IFERROR(IF(OR(AND(beallitasok!$H$5="IGEN",J33="IGEN"),B33="",VALUE(LEFT(F33,LEN(beallitasok!$H$2)))=beallitasok!$H$2,VALUE(LEFT(E33,LEN(beallitasok!$H$3)))=beallitasok!$H$3,VALUE(LEFT(F33,LEN(beallitasok!$H$2)))=beallitasok!$H$3,VALUE(LEFT(E33,LEN(beallitasok!$H$3)))=beallitasok!$H$2),"",IF(D33="","",beallitasok!$B$2)),"") ->  | B33: =IF(VALUE(LEFT(ZARO_FOKONYV!A33,1))<=beallitasok!$H$8,ZARO_FOKONYV!B33,"") -> ADOTT ELŐLEGEK | C33: =IF(B33="","",IF(beallitasok!$B$6="","",beallitasok!$B$6)) -> NYITÓ | D33: =IF(B33="","",ROUND(ZARO_FOKONYV!C33+ZARO_FOKONYV!D33,0)) -> 73199 | E33: =IF(B33="","",LEFT(IF(ZARO_FOKONYV!C33>0,IFERROR(VLOOKUP(ZARO_FOKONYV!$A33,FKCSERE!$A:$B,2,FALSE),ZARO_FOKONYV!$A33),beallitasok!$B$3)&"00000",6)) -> 350000 | F33: =IF(B33="","",LEFT(IF(ZARO_FOKONYV!D33>0,IFERROR(VLOOKUP(ZARO_FOKONYV!$A33,FKCSERE!$A:$B,2,FALSE),ZARO_FOKONYV!$A33),beallitasok!$B$3)&"000000",6)) -> 491000 | H33: =IF(LEFT(E33,3)=LEFT(beallitasok!$B$3,3),"",$B33) -> ADOTT ELŐLEGEK | I33: =IF(LEFT(F33,3)=LEFT(beallitasok!$B$3,3),"",$B33) ->  | J33: =IF(AND(LEN(ZARO_FOKONYV!A33)<LEN(ZARO_FOKONYV!A34),LEFT(ZARO_FOKONYV!A34,LEN(ZARO_FOKONYV!A33))=ZARO_FOKONYV!A33),"IGEN","nem") -> IGEN
A34: =IFERROR(IF(OR(AND(beallitasok!$H$5="IGEN",J34="IGEN"),B34="",VALUE(LEFT(F34,LEN(beallitasok!$H$2)))=beallitasok!$H$2,VALUE(LEFT(E34,LEN(beallitasok!$H$3)))=beallitasok!$H$3,VALUE(LEFT(F34,LEN(beallitasok!$H$2)))=beallitasok!$H$3,VALUE(LEFT(E34,LEN(beallitasok!$H$3)))=beallitasok!$H$2),"",IF(D34="","",beallitasok!$B$2)),"") -> 2020-12-31 | B34: =IF(VALUE(LEFT(ZARO_FOKONYV!A34,1))<=beallitasok!$H$8,ZARO_FOKONYV!B34,"") -> Beruházásokra adott előlegek | C34: =IF(B34="","",IF(beallitasok!$B$6="","",beallitasok!$B$6)) -> NYITÓ | D34: =IF(B34="","",ROUND(ZARO_FOKONYV!C34+ZARO_FOKONYV!D34,0)) -> 1 | E34: =IF(B34="","",LEFT(IF(ZARO_FOKONYV!C34>0,IFERROR(VLOOKUP(ZARO_FOKONYV!$A34,FKCSERE!$A:$B,2,FALSE),ZARO_FOKONYV!$A34),beallitasok!$B$3)&"00000",6)) -> 491000 | F34: =IF(B34="","",LEFT(IF(ZARO_FOKONYV!D34>0,IFERROR(VLOOKUP(ZARO_FOKONYV!$A34,FKCSERE!$A:$B,2,FALSE),ZARO_FOKONYV!$A34),beallitasok!$B$3)&"000000",6)) -> 352000 | H34: =IF(LEFT(E34,3)=LEFT(beallitasok!$B$3,3),"",$B34) ->  | I34: =IF(LEFT(F34,3)=LEFT(beallitasok!$B$3,3),"",$B34) -> Beruházásokra adott előlegek | J34: =IF(AND(LEN(ZARO_FOKONYV!A34)<LEN(ZARO_FOKONYV!A35),LEFT(ZARO_FOKONYV!A35,LEN(ZARO_FOKONYV!A34))=ZARO_FOKONYV!A34),"IGEN","nem") -> nem
A35: =IFERROR(IF(OR(AND(beallitasok!$H$5="IGEN",J35="IGEN"),B35="",VALUE(LEFT(F35,LEN(beallitasok!$H$2)))=beallitasok!$H$2,VALUE(LEFT(E35,LEN(beallitasok!$H$3)))=beallitasok!$H$3,VALUE(LEFT(F35,LEN(beallitasok!$H$2)))=beallitasok!$H$3,VALUE(LEFT(E35,LEN(beallitasok!$H$3)))=beallitasok!$H$2),"",IF(D35="","",beallitasok!$B$2)),"") -> 2020-12-31 | B35: =IF(VALUE(LEFT(ZARO_FOKONYV!A35,1))<=beallitasok!$H$8,ZARO_FOKONYV!B35,"") -> Készletekre adott előlegek | C35: =IF(B35="","",IF(beallitasok!$B$6="","",beallitasok!$B$6)) -> NYITÓ | D35: =IF(B35="","",ROUND(ZARO_FOKONYV!C35+ZARO_FOKONYV!D35,0)) -> 73200 | E35: =IF(B35="","",LEFT(IF(ZARO_FOKONYV!C35>0,IFERROR(VLOOKUP(ZARO_FOKONYV!$A35,FKCSERE!$A:$B,2,FALSE),ZARO_FOKONYV!$A35),beallitasok!$B$3)&"00000",6)) -> 354000 | F35: =IF(B35="","",LEFT(IF(ZARO_FOKONYV!D35>0,IFERROR(VLOOKUP(ZARO_FOKONYV!$A35,FKCSERE!$A:$B,2,FALSE),ZARO_FOKONYV!$A35),beallitasok!$B$3)&"000000",6)) -> 491000 | H35: =IF(LEFT(E35,3)=LEFT(beallitasok!$B$3,3),"",$B35) -> Készletekre adott előlegek | I35: =IF(LEFT(F35,3)=LEFT(beallitasok!$B$3,3),"",$B35) ->  | J35: =IF(AND(LEN(ZARO_FOKONYV!A35)<LEN(ZARO_FOKONYV!A36),LEFT(ZARO_FOKONYV!A36,LEN(ZARO_FOKONYV!A35))=ZARO_FOKONYV!A35),"IGEN","nem") -> nem
A36: =IFERROR(IF(OR(AND(beallitasok!$H$5="IGEN",J36="IGEN"),B36="",VALUE(LEFT(F36,LEN(beallitasok!$H$2)))=beallitasok!$H$2,VALUE(LEFT(E36,LEN(beallitasok!$H$3)))=beallitasok!$H$3,VALUE(LEFT(F36,LEN(beallitasok!$H$2)))=beallitasok!$H$3,VALUE(LEFT(E36,LEN(beallitasok!$H$3)))=beallitasok!$H$2),"",IF(D36="","",beallitasok!$B$2)),"") ->  | B36: =IF(VALUE(LEFT(ZARO_FOKONYV!A36,1))<=beallitasok!$H$8,ZARO_FOKONYV!B36,"") -> EGYÉB KÖVETELÉSEK | C36: =IF(B36="","",IF(beallitasok!$B$6="","",beallitasok!$B$6)) -> NYITÓ | D36: =IF(B36="","",ROUND(ZARO_FOKONYV!C36+ZARO_FOKONYV!D36,0)) -> 0 | E36: =IF(B36="","",LEFT(IF(ZARO_FOKONYV!C36>0,IFERROR(VLOOKUP(ZARO_FOKONYV!$A36,FKCSERE!$A:$B,2,FALSE),ZARO_FOKONYV!$A36),beallitasok!$B$3)&"00000",6)) -> 491000 | F36: =IF(B36="","",LEFT(IF(ZARO_FOKONYV!D36>0,IFERROR(VLOOKUP(ZARO_FOKONYV!$A36,FKCSERE!$A:$B,2,FALSE),ZARO_FOKONYV!$A36),beallitasok!$B$3)&"000000",6)) -> 491000 | H36: =IF(LEFT(E36,3)=LEFT(beallitasok!$B$3,3),"",$B36) ->  | I36: =IF(LEFT(F36,3)=LEFT(beallitasok!$B$3,3),"",$B36) ->  | J36: =IF(AND(LEN(ZARO_FOKONYV!A36)<LEN(ZARO_FOKONYV!A37),LEFT(ZARO_FOKONYV!A37,LEN(ZARO_FOKONYV!A36))=ZARO_FOKONYV!A36),"IGEN","nem") -> IGEN
A37: =IFERROR(IF(OR(AND(beallitasok!$H$5="IGEN",J37="IGEN"),B37="",VALUE(LEFT(F37,LEN(beallitasok!$H$2)))=beallitasok!$H$2,VALUE(LEFT(E37,LEN(beallitasok!$H$3)))=beallitasok!$H$3,VALUE(LEFT(F37,LEN(beallitasok!$H$2)))=beallitasok!$H$3,VALUE(LEFT(E37,LEN(beallitasok!$H$3)))=beallitasok!$H$2),"",IF(D37="","",beallitasok!$B$2)),"") ->  | B37: =IF(VALUE(LEFT(ZARO_FOKONYV!A37,1))<=beallitasok!$H$8,ZARO_FOKONYV!B37,"") -> Rövid lejáratú kölcsönadott pénzeszközök | C37: =IF(B37="","",IF(beallitasok!$B$6="","",beallitasok!$B$6)) -> NYITÓ | D37: =IF(B37="","",ROUND(ZARO_FOKONYV!C37+ZARO_FOKONYV!D37,0)) -> 0 | E37: =IF(B37="","",LEFT(IF(ZARO_FOKONYV!C37>0,IFERROR(VLOOKUP(ZARO_FOKONYV!$A37,FKCSERE!$A:$B,2,FALSE),ZARO_FOKONYV!$A37),beallitasok!$B$3)&"00000",6)) -> 491000 | F37: =IF(B37="","",LEFT(IF(ZARO_FOKONYV!D37>0,IFERROR(VLOOKUP(ZARO_FOKONYV!$A37,FKCSERE!$A:$B,2,FALSE),ZARO_FOKONYV!$A37),beallitasok!$B$3)&"000000",6)) -> 491000 | H37: =IF(LEFT(E37,3)=LEFT(beallitasok!$B$3,3),"",$B37) ->  | I37: =IF(LEFT(F37,3)=LEFT(beallitasok!$B$3,3),"",$B37) ->  | J37: =IF(AND(LEN(ZARO_FOKONYV!A37)<LEN(ZARO_FOKONYV!A38),LEFT(ZARO_FOKONYV!A38,LEN(ZARO_FOKONYV!A37))=ZARO_FOKONYV!A37),"IGEN","nem") -> IGEN
A38: =IFERROR(IF(OR(AND(beallitasok!$H$5="IGEN",J38="IGEN"),B38="",VALUE(LEFT(F38,LEN(beallitasok!$H$2)))=beallitasok!$H$2,VALUE(LEFT(E38,LEN(beallitasok!$H$3)))=beallitasok!$H$3,VALUE(LEFT(F38,LEN(beallitasok!$H$2)))=beallitasok!$H$3,VALUE(LEFT(E38,LEN(beallitasok!$H$3)))=beallitasok!$H$2),"",IF(D38="","",beallitasok!$B$2)),"") -> 2020-12-31 | B38: =IF(VALUE(LEFT(ZARO_FOKONYV!A38,1))<=beallitasok!$H$8,ZARO_FOKONYV!B38,"") -> Rövid lejáratú kölcsönök | C38: =IF(B38="","",IF(beallitasok!$B$6="","",beallitasok!$B$6)) -> NYITÓ | D38: =IF(B38="","",ROUND(ZARO_FOKONYV!C38+ZARO_FOKONYV!D38,0)) -> 0 | E38: =IF(B38="","",LEFT(IF(ZARO_FOKONYV!C38>0,IFERROR(VLOOKUP(ZARO_FOKONYV!$A38,FKCSERE!$A:$B,2,FALSE),ZARO_FOKONYV!$A38),beallitasok!$B$3)&"00000",6)) -> 491000 | F38: =IF(B38="","",LEFT(IF(ZARO_FOKONYV!D38>0,IFERROR(VLOOKUP(ZARO_FOKONYV!$A38,FKCSERE!$A:$B,2,FALSE),ZARO_FOKONYV!$A38),beallitasok!$B$3)&"000000",6)) -> 491000 | H38: =IF(LEFT(E38,3)=LEFT(beallitasok!$B$3,3),"",$B38) ->  | I38: =IF(LEFT(F38,3)=LEFT(beallitasok!$B$3,3),"",$B38) ->  | J38: =IF(AND(LEN(ZARO_FOKONYV!A38)<LEN(ZARO_FOKONYV!A39),LEFT(ZARO_FOKONYV!A39,LEN(ZARO_FOKONYV!A38))=ZARO_FOKONYV!A38),"IGEN","nem") -> nem
A39: =IFERROR(IF(OR(AND(beallitasok!$H$5="IGEN",J39="IGEN"),B39="",VALUE(LEFT(F39,LEN(beallitasok!$H$2)))=beallitasok!$H$2,VALUE(LEFT(E39,LEN(beallitasok!$H$3)))=beallitasok!$H$3,VALUE(LEFT(F39,LEN(beallitasok!$H$2)))=beallitasok!$H$3,VALUE(LEFT(E39,LEN(beallitasok!$H$3)))=beallitasok!$H$2),"",IF(D39="","",beallitasok!$B$2)),"") ->  | B39: =IF(VALUE(LEFT(ZARO_FOKONYV!A39,1))<=beallitasok!$H$8,ZARO_FOKONYV!B39,"") -> PÉNZESZKÖZÖK | C39: =IF(B39="","",IF(beallitasok!$B$6="","",beallitasok!$B$6)) -> NYITÓ | D39: =IF(B39="","",ROUND(ZARO_FOKONYV!C39+ZARO_FOKONYV!D39,0)) -> 5771580 | E39: =IF(B39="","",LEFT(IF(ZARO_FOKONYV!C39>0,IFERROR(VLOOKUP(ZARO_FOKONYV!$A39,FKCSERE!$A:$B,2,FALSE),ZARO_FOKONYV!$A39),beallitasok!$B$3)&"00000",6)) -> 491000 | F39: =IF(B39="","",LEFT(IF(ZARO_FOKONYV!D39>0,IFERROR(VLOOKUP(ZARO_FOKONYV!$A39,FKCSERE!$A:$B,2,FALSE),ZARO_FOKONYV!$A39),beallitasok!$B$3)&"000000",6)) -> 380000 | H39: =IF(LEFT(E39,3)=LEFT(beallitasok!$B$3,3),"",$B39) ->  | I39: =IF(LEFT(F39,3)=LEFT(beallitasok!$B$3,3),"",$B39) -> PÉNZESZKÖZÖK | J39: =IF(AND(LEN(ZARO_FOKONYV!A39)<LEN(ZARO_FOKONYV!A40),LEFT(ZARO_FOKONYV!A40,LEN(ZARO_FOKONYV!A39))=ZARO_FOKONYV!A39),"IGEN","nem") -> IGEN
A40: =IFERROR(IF(OR(AND(beallitasok!$H$5="IGEN",J40="IGEN"),B40="",VALUE(LEFT(F40,LEN(beallitasok!$H$2)))=beallitasok!$H$2,VALUE(LEFT(E40,LEN(beallitasok!$H$3)))=beallitasok!$H$3,VALUE(LEFT(F40,LEN(beallitasok!$H$2)))=beallitasok!$H$3,VALUE(LEFT(E40,LEN(beallitasok!$H$3)))=beallitasok!$H$2),"",IF(D40="","",beallitasok!$B$2)),"") ->  | B40: =IF(VALUE(LEFT(ZARO_FOKONYV!A40,1))<=beallitasok!$H$8,ZARO_FOKONYV!B40,"") -> Pénztár | C40: =IF(B40="","",IF(beallitasok!$B$6="","",beallitasok!$B$6)) -> NYITÓ | D40: =IF(B40="","",ROUND(ZARO_FOKONYV!C40+ZARO_FOKONYV!D40,0)) -> 2043892 | E40: =IF(B40="","",LEFT(IF(ZARO_FOKONYV!C40>0,IFERROR(VLOOKUP(ZARO_FOKONYV!$A40,FKCSERE!$A:$B,2,FALSE),ZARO_FOKONYV!$A40),beallitasok!$B$3)&"00000",6)) -> 381000 | F40: =IF(B40="","",LEFT(IF(ZARO_FOKONYV!D40>0,IFERROR(VLOOKUP(ZARO_FOKONYV!$A40,FKCSERE!$A:$B,2,FALSE),ZARO_FOKONYV!$A40),beallitasok!$B$3)&"000000",6)) -> 491000 | H40: =IF(LEFT(E40,3)=LEFT(beallitasok!$B$3,3),"",$B40) -> Pénztár | I40: =IF(LEFT(F40,3)=LEFT(beallitasok!$B$3,3),"",$B40) ->  | J40: =IF(AND(LEN(ZARO_FOKONYV!A40)<LEN(ZARO_FOKONYV!A41),LEFT(ZARO_FOKONYV!A41,LEN(ZARO_FOKONYV!A40))=ZARO_FOKONYV!A40),"IGEN","nem") -> IGEN
A41: =IFERROR(IF(OR(AND(beallitasok!$H$5="IGEN",J41="IGEN"),B41="",VALUE(LEFT(F41,LEN(beallitasok!$H$2)))=beallitasok!$H$2,VALUE(LEFT(E41,LEN(beallitasok!$H$3)))=beallitasok!$H$3,VALUE(LEFT(F41,LEN(beallitasok!$H$2)))=beallitasok!$H$3,VALUE(LEFT(E41,LEN(beallitasok!$H$3)))=beallitasok!$H$2),"",IF(D41="","",beallitasok!$B$2)),"") -> 2020-12-31 | B41: =IF(VALUE(LEFT(ZARO_FOKONYV!A41,1))<=beallitasok!$H$8,ZARO_FOKONYV!B41,"") -> Pénztár-számla | C41: =IF(B41="","",IF(beallitasok!$B$6="","",beallitasok!$B$6)) -> NYITÓ | D41: =IF(B41="","",ROUND(ZARO_FOKONYV!C41+ZARO_FOKONYV!D41,0)) -> 2043892 | E41: =IF(B41="","",LEFT(IF(ZARO_FOKONYV!C41>0,IFERROR(VLOOKUP(ZARO_FOKONYV!$A41,FKCSERE!$A:$B,2,FALSE),ZARO_FOKONYV!$A41),beallitasok!$B$3)&"00000",6)) -> 381100 | F41: =IF(B41="","",LEFT(IF(ZARO_FOKONYV!D41>0,IFERROR(VLOOKUP(ZARO_FOKONYV!$A41,FKCSERE!$A:$B,2,FALSE),ZARO_FOKONYV!$A41),beallitasok!$B$3)&"000000",6)) -> 491000 | H41: =IF(LEFT(E41,3)=LEFT(beallitasok!$B$3,3),"",$B41) -> Pénztár-számla | I41: =IF(LEFT(F41,3)=LEFT(beallitasok!$B$3,3),"",$B41) ->  | J41: =IF(AND(LEN(ZARO_FOKONYV!A41)<LEN(ZARO_FOKONYV!A42),LEFT(ZARO_FOKONYV!A42,LEN(ZARO_FOKONYV!A41))=ZARO_FOKONYV!A41),"IGEN","nem") -> nem
A42: =IFERROR(IF(OR(AND(beallitasok!$H$5="IGEN",J42="IGEN"),B42="",VALUE(LEFT(F42,LEN(beallitasok!$H$2)))=beallitasok!$H$2,VALUE(LEFT(E42,LEN(beallitasok!$H$3)))=beallitasok!$H$3,VALUE(LEFT(F42,LEN(beallitasok!$H$2)))=beallitasok!$H$3,VALUE(LEFT(E42,LEN(beallitasok!$H$3)))=beallitasok!$H$2),"",IF(D42="","",beallitasok!$B$2)),"") ->  | B42: =IF(VALUE(LEFT(ZARO_FOKONYV!A42,1))<=beallitasok!$H$8,ZARO_FOKONYV!B42,"") -> Valutapénztár | C42: =IF(B42="","",IF(beallitasok!$B$6="","",beallitasok!$B$6)) -> NYITÓ | D42: =IF(B42="","",ROUND(ZARO_FOKONYV!C42+ZARO_FOKONYV!D42,0)) -> 844607 | E42: =IF(B42="","",LEFT(IF(ZARO_FOKONYV!C42>0,IFERROR(VLOOKUP(ZARO_FOKONYV!$A42,FKCSERE!$A:$B,2,FALSE),ZARO_FOKONYV!$A42),beallitasok!$B$3)&"00000",6)) -> 382000 | F42: =IF(B42="","",LEFT(IF(ZARO_FOKONYV!D42>0,IFERROR(VLOOKUP(ZARO_FOKONYV!$A42,FKCSERE!$A:$B,2,FALSE),ZARO_FOKONYV!$A42),beallitasok!$B$3)&"000000",6)) -> 491000 | H42: =IF(LEFT(E42,3)=LEFT(beallitasok!$B$3,3),"",$B42) -> Valutapénztár | I42: =IF(LEFT(F42,3)=LEFT(beallitasok!$B$3,3),"",$B42) ->  | J42: =IF(AND(LEN(ZARO_FOKONYV!A42)<LEN(ZARO_FOKONYV!A43),LEFT(ZARO_FOKONYV!A43,LEN(ZARO_FOKONYV!A42))=ZARO_FOKONYV!A42),"IGEN","nem") -> IGEN
A43: =IFERROR(IF(OR(AND(beallitasok!$H$5="IGEN",J43="IGEN"),B43="",VALUE(LEFT(F43,LEN(beallitasok!$H$2)))=beallitasok!$H$2,VALUE(LEFT(E43,LEN(beallitasok!$H$3)))=beallitasok!$H$3,VALUE(LEFT(F43,LEN(beallitasok!$H$2)))=beallitasok!$H$3,VALUE(LEFT(E43,LEN(beallitasok!$H$3)))=beallitasok!$H$2),"",IF(D43="","",beallitasok!$B$2)),"") -> 2020-12-31 | B43: =IF(VALUE(LEFT(ZARO_FOKONYV!A43,1))<=beallitasok!$H$8,ZARO_FOKONYV!B43,"") -> Valutapénztár-számla | C43: =IF(B43="","",IF(beallitasok!$B$6="","",beallitasok!$B$6)) -> NYITÓ | D43: =IF(B43="","",ROUND(ZARO_FOKONYV!C43+ZARO_FOKONYV!D43,0)) -> 844607 | E43: =IF(B43="","",LEFT(IF(ZARO_FOKONYV!C43>0,IFERROR(VLOOKUP(ZARO_FOKONYV!$A43,FKCSERE!$A:$B,2,FALSE),ZARO_FOKONYV!$A43),beallitasok!$B$3)&"00000",6)) -> 382100 | F43: =IF(B43="","",LEFT(IF(ZARO_FOKONYV!D43>0,IFERROR(VLOOKUP(ZARO_FOKONYV!$A43,FKCSERE!$A:$B,2,FALSE),ZARO_FOKONYV!$A43),beallitasok!$B$3)&"000000",6)) -> 491000 | H43: =IF(LEFT(E43,3)=LEFT(beallitasok!$B$3,3),"",$B43) -> Valutapénztár-számla | I43: =IF(LEFT(F43,3)=LEFT(beallitasok!$B$3,3),"",$B43) ->  | J43: =IF(AND(LEN(ZARO_FOKONYV!A43)<LEN(ZARO_FOKONYV!A44),LEFT(ZARO_FOKONYV!A44,LEN(ZARO_FOKONYV!A43))=ZARO_FOKONYV!A43),"IGEN","nem") -> nem
A44: =IFERROR(IF(OR(AND(beallitasok!$H$5="IGEN",J44="IGEN"),B44="",VALUE(LEFT(F44,LEN(beallitasok!$H$2)))=beallitasok!$H$2,VALUE(LEFT(E44,LEN(beallitasok!$H$3)))=beallitasok!$H$3,VALUE(LEFT(F44,LEN(beallitasok!$H$2)))=beallitasok!$H$3,VALUE(LEFT(E44,LEN(beallitasok!$H$3)))=beallitasok!$H$2),"",IF(D44="","",beallitasok!$B$2)),"") ->  | B44: =IF(VALUE(LEFT(ZARO_FOKONYV!A44,1))<=beallitasok!$H$8,ZARO_FOKONYV!B44,"") -> Bankszámlák | C44: =IF(B44="","",IF(beallitasok!$B$6="","",beallitasok!$B$6)) -> NYITÓ | D44: =IF(B44="","",ROUND(ZARO_FOKONYV!C44+ZARO_FOKONYV!D44,0)) -> 8637639 | E44: =IF(B44="","",LEFT(IF(ZARO_FOKONYV!C44>0,IFERROR(VLOOKUP(ZARO_FOKONYV!$A44,FKCSERE!$A:$B,2,FALSE),ZARO_FOKONYV!$A44),beallitasok!$B$3)&"00000",6)) -> 491000 | F44: =IF(B44="","",LEFT(IF(ZARO_FOKONYV!D44>0,IFERROR(VLOOKUP(ZARO_FOKONYV!$A44,FKCSERE!$A:$B,2,FALSE),ZARO_FOKONYV!$A44),beallitasok!$B$3)&"000000",6)) -> 384000 | H44: =IF(LEFT(E44,3)=LEFT(beallitasok!$B$3,3),"",$B44) ->  | I44: =IF(LEFT(F44,3)=LEFT(beallitasok!$B$3,3),"",$B44) -> Bankszámlák | J44: =IF(AND(LEN(ZARO_FOKONYV!A44)<LEN(ZARO_FOKONYV!A45),LEFT(ZARO_FOKONYV!A45,LEN(ZARO_FOKONYV!A44))=ZARO_FOKONYV!A44),"IGEN","nem") -> IGEN
A45: =IFERROR(IF(OR(AND(beallitasok!$H$5="IGEN",J45="IGEN"),B45="",VALUE(LEFT(F45,LEN(beallitasok!$H$2)))=beallitasok!$H$2,VALUE(LEFT(E45,LEN(beallitasok!$H$3)))=beallitasok!$H$3,VALUE(LEFT(F45,LEN(beallitasok!$H$2)))=beallitasok!$H$3,VALUE(LEFT(E45,LEN(beallitasok!$H$3)))=beallitasok!$H$2),"",IF(D45="","",beallitasok!$B$2)),"") -> 2020-12-31 | B45: =IF(VALUE(LEFT(ZARO_FOKONYV!A45,1))<=beallitasok!$H$8,ZARO_FOKONYV!B45,"") -> K&H Bank | C45: =IF(B45="","",IF(beallitasok!$B$6="","",beallitasok!$B$6)) -> NYITÓ | D45: =IF(B45="","",ROUND(ZARO_FOKONYV!C45+ZARO_FOKONYV!D45,0)) -> 4914593 | E45: =IF(B45="","",LEFT(IF(ZARO_FOKONYV!C45>0,IFERROR(VLOOKUP(ZARO_FOKONYV!$A45,FKCSERE!$A:$B,2,FALSE),ZARO_FOKONYV!$A45),beallitasok!$B$3)&"00000",6)) -> 491000 | F45: =IF(B45="","",LEFT(IF(ZARO_FOKONYV!D45>0,IFERROR(VLOOKUP(ZARO_FOKONYV!$A45,FKCSERE!$A:$B,2,FALSE),ZARO_FOKONYV!$A45),beallitasok!$B$3)&"000000",6)) -> 384100 | H45: =IF(LEFT(E45,3)=LEFT(beallitasok!$B$3,3),"",$B45) ->  | I45: =IF(LEFT(F45,3)=LEFT(beallitasok!$B$3,3),"",$B45) -> K&H Bank | J45: =IF(AND(LEN(ZARO_FOKONYV!A45)<LEN(ZARO_FOKONYV!A46),LEFT(ZARO_FOKONYV!A46,LEN(ZARO_FOKONYV!A45))=ZARO_FOKONYV!A45),"IGEN","nem") -> nem
A46: =IFERROR(IF(OR(AND(beallitasok!$H$5="IGEN",J46="IGEN"),B46="",VALUE(LEFT(F46,LEN(beallitasok!$H$2)))=beallitasok!$H$2,VALUE(LEFT(E46,LEN(beallitasok!$H$3)))=beallitasok!$H$3,VALUE(LEFT(F46,LEN(beallitasok!$H$2)))=beallitasok!$H$3,VALUE(LEFT(E46,LEN(beallitasok!$H$3)))=beallitasok!$H$2),"",IF(D46="","",beallitasok!$B$2)),"") -> 2020-12-31 | B46: =IF(VALUE(LEFT(ZARO_FOKONYV!A46,1))<=beallitasok!$H$8,ZARO_FOKONYV!B46,"") -> Raiffeisen Bank | C46: =IF(B46="","",IF(beallitasok!$B$6="","",beallitasok!$B$6)) -> NYITÓ | D46: =IF(B46="","",ROUND(ZARO_FOKONYV!C46+ZARO_FOKONYV!D46,0)) -> 3723046 | E46: =IF(B46="","",LEFT(IF(ZARO_FOKONYV!C46>0,IFERROR(VLOOKUP(ZARO_FOKONYV!$A46,FKCSERE!$A:$B,2,FALSE),ZARO_FOKONYV!$A46),beallitasok!$B$3)&"00000",6)) -> 491000 | F46: =IF(B46="","",LEFT(IF(ZARO_FOKONYV!D46>0,IFERROR(VLOOKUP(ZARO_FOKONYV!$A46,FKCSERE!$A:$B,2,FALSE),ZARO_FOKONYV!$A46),beallitasok!$B$3)&"000000",6)) -> 384200 | H46: =IF(LEFT(E46,3)=LEFT(beallitasok!$B$3,3),"",$B46) ->  | I46: =IF(LEFT(F46,3)=LEFT(beallitasok!$B$3,3),"",$B46) -> Raiffeisen Bank | J46: =IF(AND(LEN(ZARO_FOKONYV!A46)<LEN(ZARO_FOKONYV!A47),LEFT(ZARO_FOKONYV!A47,LEN(ZARO_FOKONYV!A46))=ZARO_FOKONYV!A46),"IGEN","nem") -> nem
A47: =IFERROR(IF(OR(AND(beallitasok!$H$5="IGEN",J47="IGEN"),B47="",VALUE(LEFT(F47,LEN(beallitasok!$H$2)))=beallitasok!$H$2,VALUE(LEFT(E47,LEN(beallitasok!$H$3)))=beallitasok!$H$3,VALUE(LEFT(F47,LEN(beallitasok!$H$2)))=beallitasok!$H$3,VALUE(LEFT(E47,LEN(beallitasok!$H$3)))=beallitasok!$H$2),"",IF(D47="","",beallitasok!$B$2)),"") ->  | B47: =IF(VALUE(LEFT(ZARO_FOKONYV!A47,1))<=beallitasok!$H$8,ZARO_FOKONYV!B47,"") -> Átvezetési számla | C47: =IF(B47="","",IF(beallitasok!$B$6="","",beallitasok!$B$6)) -> NYITÓ | D47: =IF(B47="","",ROUND(ZARO_FOKONYV!C47+ZARO_FOKONYV!D47,0)) -> 22440 | E47: =IF(B47="","",LEFT(IF(ZARO_FOKONYV!C47>0,IFERROR(VLOOKUP(ZARO_FOKONYV!$A47,FKCSERE!$A:$B,2,FALSE),ZARO_FOKONYV!$A47),beallitasok!$B$3)&"00000",6)) -> 491000 | F47: =IF(B47="","",LEFT(IF(ZARO_FOKONYV!D47>0,IFERROR(VLOOKUP(ZARO_FOKONYV!$A47,FKCSERE!$A:$B,2,FALSE),ZARO_FOKONYV!$A47),beallitasok!$B$3)&"000000",6)) -> 389000 | H47: =IF(LEFT(E47,3)=LEFT(beallitasok!$B$3,3),"",$B47) ->  | I47: =IF(LEFT(F47,3)=LEFT(beallitasok!$B$3,3),"",$B47) -> Átvezetési számla | J47: =IF(AND(LEN(ZARO_FOKONYV!A47)<LEN(ZARO_FOKONYV!A48),LEFT(ZARO_FOKONYV!A48,LEN(ZARO_FOKONYV!A47))=ZARO_FOKONYV!A47),"IGEN","nem") -> IGEN
A48: =IFERROR(IF(OR(AND(beallitasok!$H$5="IGEN",J48="IGEN"),B48="",VALUE(LEFT(F48,LEN(beallitasok!$H$2)))=beallitasok!$H$2,VALUE(LEFT(E48,LEN(beallitasok!$H$3)))=beallitasok!$H$3,VALUE(LEFT(F48,LEN(beallitasok!$H$2)))=beallitasok!$H$3,VALUE(LEFT(E48,LEN(beallitasok!$H$3)))=beallitasok!$H$2),"",IF(D48="","",beallitasok!$B$2)),"") -> 2020-12-31 | B48: =IF(VALUE(LEFT(ZARO_FOKONYV!A48,1))<=beallitasok!$H$8,ZARO_FOKONYV!B48,"") -> Átvezetés bank és pénztár között | C48: =IF(B48="","",IF(beallitasok!$B$6="","",beallitasok!$B$6)) -> NYITÓ | D48: =IF(B48="","",ROUND(ZARO_FOKONYV!C48+ZARO_FOKONYV!D48,0)) -> 0 | E48: =IF(B48="","",LEFT(IF(ZARO_FOKONYV!C48>0,IFERROR(VLOOKUP(ZARO_FOKONYV!$A48,FKCSERE!$A:$B,2,FALSE),ZARO_FOKONYV!$A48),beallitasok!$B$3)&"00000",6)) -> 491000 | F48: =IF(B48="","",LEFT(IF(ZARO_FOKONYV!D48>0,IFERROR(VLOOKUP(ZARO_FOKONYV!$A48,FKCSERE!$A:$B,2,FALSE),ZARO_FOKONYV!$A48),beallitasok!$B$3)&"000000",6)) -> 491000 | H48: =IF(LEFT(E48,3)=LEFT(beallitasok!$B$3,3),"",$B48) ->  | I48: =IF(LEFT(F48,3)=LEFT(beallitasok!$B$3,3),"",$B48) ->  | J48: =IF(AND(LEN(ZARO_FOKONYV!A48)<LEN(ZARO_FOKONYV!A49),LEFT(ZARO_FOKONYV!A49,LEN(ZARO_FOKONYV!A48))=ZARO_FOKONYV!A48),"IGEN","nem") -> nem
A49: =IFERROR(IF(OR(AND(beallitasok!$H$5="IGEN",J49="IGEN"),B49="",VALUE(LEFT(F49,LEN(beallitasok!$H$2)))=beallitasok!$H$2,VALUE(LEFT(E49,LEN(beallitasok!$H$3)))=beallitasok!$H$3,VALUE(LEFT(F49,LEN(beallitasok!$H$2)))=beallitasok!$H$3,VALUE(LEFT(E49,LEN(beallitasok!$H$3)))=beallitasok!$H$2),"",IF(D49="","",beallitasok!$B$2)),"") -> 2020-12-31 | B49: =IF(VALUE(LEFT(ZARO_FOKONYV!A49,1))<=beallitasok!$H$8,ZARO_FOKONYV!B49,"") -> Átvezetés bank és bank között | C49: =IF(B49="","",IF(beallitasok!$B$6="","",beallitasok!$B$6)) -> NYITÓ | D49: =IF(B49="","",ROUND(ZARO_FOKONYV!C49+ZARO_FOKONYV!D49,0)) -> 0 | E49: =IF(B49="","",LEFT(IF(ZARO_FOKONYV!C49>0,IFERROR(VLOOKUP(ZARO_FOKONYV!$A49,FKCSERE!$A:$B,2,FALSE),ZARO_FOKONYV!$A49),beallitasok!$B$3)&"00000",6)) -> 491000 | F49: =IF(B49="","",LEFT(IF(ZARO_FOKONYV!D49>0,IFERROR(VLOOKUP(ZARO_FOKONYV!$A49,FKCSERE!$A:$B,2,FALSE),ZARO_FOKONYV!$A49),beallitasok!$B$3)&"000000",6)) -> 491000 | H49: =IF(LEFT(E49,3)=LEFT(beallitasok!$B$3,3),"",$B49) ->  | I49: =IF(LEFT(F49,3)=LEFT(beallitasok!$B$3,3),"",$B49) ->  | J49: =IF(AND(LEN(ZARO_FOKONYV!A49)<LEN(ZARO_FOKONYV!A50),LEFT(ZARO_FOKONYV!A50,LEN(ZARO_FOKONYV!A49))=ZARO_FOKONYV!A49),"IGEN","nem") -> nem
A50: =IFERROR(IF(OR(AND(beallitasok!$H$5="IGEN",J50="IGEN"),B50="",VALUE(LEFT(F50,LEN(beallitasok!$H$2)))=beallitasok!$H$2,VALUE(LEFT(E50,LEN(beallitasok!$H$3)))=beallitasok!$H$3,VALUE(LEFT(F50,LEN(beallitasok!$H$2)))=beallitasok!$H$3,VALUE(LEFT(E50,LEN(beallitasok!$H$3)))=beallitasok!$H$2),"",IF(D50="","",beallitasok!$B$2)),"") -> 2020-12-31 | B50: =IF(VALUE(LEFT(ZARO_FOKONYV!A50,1))<=beallitasok!$H$8,ZARO_FOKONYV!B50,"") -> Technikai számla | C50: =IF(B50="","",IF(beallitasok!$B$6="","",beallitasok!$B$6)) -> NYITÓ | D50: =IF(B50="","",ROUND(ZARO_FOKONYV!C50+ZARO_FOKONYV!D50,0)) -> 22440 | E50: =IF(B50="","",LEFT(IF(ZARO_FOKONYV!C50>0,IFERROR(VLOOKUP(ZARO_FOKONYV!$A50,FKCSERE!$A:$B,2,FALSE),ZARO_FOKONYV!$A50),beallitasok!$B$3)&"00000",6)) -> 491000 | F50: =IF(B50="","",LEFT(IF(ZARO_FOKONYV!D50>0,IFERROR(VLOOKUP(ZARO_FOKONYV!$A50,FKCSERE!$A:$B,2,FALSE),ZARO_FOKONYV!$A50),beallitasok!$B$3)&"000000",6)) -> 389900 | H50: =IF(LEFT(E50,3)=LEFT(beallitasok!$B$3,3),"",$B50) ->  | I50: =IF(LEFT(F50,3)=LEFT(beallitasok!$B$3,3),"",$B50) -> Technikai számla | J50: =IF(AND(LEN(ZARO_FOKONYV!A50)<LEN(ZARO_FOKONYV!A51),LEFT(ZARO_FOKONYV!A51,LEN(ZARO_FOKONYV!A50))=ZARO_FOKONYV!A50),"IGEN","nem") -> nem
A51: =IFERROR(IF(OR(AND(beallitasok!$H$5="IGEN",J51="IGEN"),B51="",VALUE(LEFT(F51,LEN(beallitasok!$H$2)))=beallitasok!$H$2,VALUE(LEFT(E51,LEN(beallitasok!$H$3)))=beallitasok!$H$3,VALUE(LEFT(F51,LEN(beallitasok!$H$2)))=beallitasok!$H$3,VALUE(LEFT(E51,LEN(beallitasok!$H$3)))=beallitasok!$H$2),"",IF(D51="","",beallitasok!$B$2)),"") ->  | B51: =IF(VALUE(LEFT(ZARO_FOKONYV!A51,1))<=beallitasok!$H$8,ZARO_FOKONYV!B51,"") -> AKTÍV IDŐBELI ELHATÁROLÁSOK | C51: =IF(B51="","",IF(beallitasok!$B$6="","",beallitasok!$B$6)) -> NYITÓ | D51: =IF(B51="","",ROUND(ZARO_FOKONYV!C51+ZARO_FOKONYV!D51,0)) -> 4235259 | E51: =IF(B51="","",LEFT(IF(ZARO_FOKONYV!C51>0,IFERROR(VLOOKUP(ZARO_FOKONYV!$A51,FKCSERE!$A:$B,2,FALSE),ZARO_FOKONYV!$A51),beallitasok!$B$3)&"00000",6)) -> 390000 | F51: =IF(B51="","",LEFT(IF(ZARO_FOKONYV!D51>0,IFERROR(VLOOKUP(ZARO_FOKONYV!$A51,FKCSERE!$A:$B,2,FALSE),ZARO_FOKONYV!$A51),beallitasok!$B$3)&"000000",6)) -> 491000 | H51: =IF(LEFT(E51,3)=LEFT(beallitasok!$B$3,3),"",$B51) -> AKTÍV IDŐBELI ELHATÁROLÁSOK | I51: =IF(LEFT(F51,3)=LEFT(beallitasok!$B$3,3),"",$B51) ->  | J51: =IF(AND(LEN(ZARO_FOKONYV!A51)<LEN(ZARO_FOKONYV!A52),LEFT(ZARO_FOKONYV!A52,LEN(ZARO_FOKONYV!A51))=ZARO_FOKONYV!A51),"IGEN","nem") -> IGEN
A52: =IFERROR(IF(OR(AND(beallitasok!$H$5="IGEN",J52="IGEN"),B52="",VALUE(LEFT(F52,LEN(beallitasok!$H$2)))=beallitasok!$H$2,VALUE(LEFT(E52,LEN(beallitasok!$H$3)))=beallitasok!$H$3,VALUE(LEFT(F52,LEN(beallitasok!$H$2)))=beallitasok!$H$3,VALUE(LEFT(E52,LEN(beallitasok!$H$3)))=beallitasok!$H$2),"",IF(D52="","",beallitasok!$B$2)),"") ->  | B52: =IF(VALUE(LEFT(ZARO_FOKONYV!A52,1))<=beallitasok!$H$8,ZARO_FOKONYV!B52,"") -> Bevételek aktív időbeli elhatárolások | C52: =IF(B52="","",IF(beallitasok!$B$6="","",beallitasok!$B$6)) -> NYITÓ | D52: =IF(B52="","",ROUND(ZARO_FOKONYV!C52+ZARO_FOKONYV!D52,0)) -> 4050000 | E52: =IF(B52="","",LEFT(IF(ZARO_FOKONYV!C52>0,IFERROR(VLOOKUP(ZARO_FOKONYV!$A52,FKCSERE!$A:$B,2,FALSE),ZARO_FOKONYV!$A52),beallitasok!$B$3)&"00000",6)) -> 391000 | F52: =IF(B52="","",LEFT(IF(ZARO_FOKONYV!D52>0,IFERROR(VLOOKUP(ZARO_FOKONYV!$A52,FKCSERE!$A:$B,2,FALSE),ZARO_FOKONYV!$A52),beallitasok!$B$3)&"000000",6)) -> 491000 | H52: =IF(LEFT(E52,3)=LEFT(beallitasok!$B$3,3),"",$B52) -> Bevételek aktív időbeli elhatárolások | I52: =IF(LEFT(F52,3)=LEFT(beallitasok!$B$3,3),"",$B52) ->  | J52: =IF(AND(LEN(ZARO_FOKONYV!A52)<LEN(ZARO_FOKONYV!A53),LEFT(ZARO_FOKONYV!A53,LEN(ZARO_FOKONYV!A52))=ZARO_FOKONYV!A52),"IGEN","nem") -> IGEN
A53: =IFERROR(IF(OR(AND(beallitasok!$H$5="IGEN",J53="IGEN"),B53="",VALUE(LEFT(F53,LEN(beallitasok!$H$2)))=beallitasok!$H$2,VALUE(LEFT(E53,LEN(beallitasok!$H$3)))=beallitasok!$H$3,VALUE(LEFT(F53,LEN(beallitasok!$H$2)))=beallitasok!$H$3,VALUE(LEFT(E53,LEN(beallitasok!$H$3)))=beallitasok!$H$2),"",IF(D53="","",beallitasok!$B$2)),"") -> 2020-12-31 | B53: =IF(VALUE(LEFT(ZARO_FOKONYV!A53,1))<=beallitasok!$H$8,ZARO_FOKONYV!B53,"") -> Árbevétel, egyéb bevétel elhatárolása | C53: =IF(B53="","",IF(beallitasok!$B$6="","",beallitasok!$B$6)) -> NYITÓ | D53: =IF(B53="","",ROUND(ZARO_FOKONYV!C53+ZARO_FOKONYV!D53,0)) -> 4050000 | E53: =IF(B53="","",LEFT(IF(ZARO_FOKONYV!C53>0,IFERROR(VLOOKUP(ZARO_FOKONYV!$A53,FKCSERE!$A:$B,2,FALSE),ZARO_FOKONYV!$A53),beallitasok!$B$3)&"00000",6)) -> 391300 | F53: =IF(B53="","",LEFT(IF(ZARO_FOKONYV!D53>0,IFERROR(VLOOKUP(ZARO_FOKONYV!$A53,FKCSERE!$A:$B,2,FALSE),ZARO_FOKONYV!$A53),beallitasok!$B$3)&"000000",6)) -> 491000 | H53: =IF(LEFT(E53,3)=LEFT(beallitasok!$B$3,3),"",$B53) -> Árbevétel, egyéb bevétel elhatárolása | I53: =IF(LEFT(F53,3)=LEFT(beallitasok!$B$3,3),"",$B53) ->  | J53: =IF(AND(LEN(ZARO_FOKONYV!A53)<LEN(ZARO_FOKONYV!A54),LEFT(ZARO_FOKONYV!A54,LEN(ZARO_FOKONYV!A53))=ZARO_FOKONYV!A53),"IGEN","nem") -> nem
A54: =IFERROR(IF(OR(AND(beallitasok!$H$5="IGEN",J54="IGEN"),B54="",VALUE(LEFT(F54,LEN(beallitasok!$H$2)))=beallitasok!$H$2,VALUE(LEFT(E54,LEN(beallitasok!$H$3)))=beallitasok!$H$3,VALUE(LEFT(F54,LEN(beallitasok!$H$2)))=beallitasok!$H$3,VALUE(LEFT(E54,LEN(beallitasok!$H$3)))=beallitasok!$H$2),"",IF(D54="","",beallitasok!$B$2)),"") ->  | B54: =IF(VALUE(LEFT(ZARO_FOKONYV!A54,1))<=beallitasok!$H$8,ZARO_FOKONYV!B54,"") -> Költségek, ráfordítások időbeli elhatárolása | C54: =IF(B54="","",IF(beallitasok!$B$6="","",beallitasok!$B$6)) -> NYITÓ | D54: =IF(B54="","",ROUND(ZARO_FOKONYV!C54+ZARO_FOKONYV!D54,0)) -> 185259 | E54: =IF(B54="","",LEFT(IF(ZARO_FOKONYV!C54>0,IFERROR(VLOOKUP(ZARO_FOKONYV!$A54,FKCSERE!$A:$B,2,FALSE),ZARO_FOKONYV!$A54),beallitasok!$B$3)&"00000",6)) -> 392000 | F54: =IF(B54="","",LEFT(IF(ZARO_FOKONYV!D54>0,IFERROR(VLOOKUP(ZARO_FOKONYV!$A54,FKCSERE!$A:$B,2,FALSE),ZARO_FOKONYV!$A54),beallitasok!$B$3)&"000000",6)) -> 491000 | H54: =IF(LEFT(E54,3)=LEFT(beallitasok!$B$3,3),"",$B54) -> Költségek, ráfordítások időbeli elhatárolása | I54: =IF(LEFT(F54,3)=LEFT(beallitasok!$B$3,3),"",$B54) ->  | J54: =IF(AND(LEN(ZARO_FOKONYV!A54)<LEN(ZARO_FOKONYV!A55),LEFT(ZARO_FOKONYV!A55,LEN(ZARO_FOKONYV!A54))=ZARO_FOKONYV!A54),"IGEN","nem") -> IGEN
A55: =IFERROR(IF(OR(AND(beallitasok!$H$5="IGEN",J55="IGEN"),B55="",VALUE(LEFT(F55,LEN(beallitasok!$H$2)))=beallitasok!$H$2,VALUE(LEFT(E55,LEN(beallitasok!$H$3)))=beallitasok!$H$3,VALUE(LEFT(F55,LEN(beallitasok!$H$2)))=beallitasok!$H$3,VALUE(LEFT(E55,LEN(beallitasok!$H$3)))=beallitasok!$H$2),"",IF(D55="","",beallitasok!$B$2)),"") -> 2020-12-31 | B55: =IF(VALUE(LEFT(ZARO_FOKONYV!A55,1))<=beallitasok!$H$8,ZARO_FOKONYV!B55,"") -> Többletkötelezettségek elhatárolása | C55: =IF(B55="","",IF(beallitasok!$B$6="","",beallitasok!$B$6)) -> NYITÓ | D55: =IF(B55="","",ROUND(ZARO_FOKONYV!C55+ZARO_FOKONYV!D55,0)) -> 0 | E55: =IF(B55="","",LEFT(IF(ZARO_FOKONYV!C55>0,IFERROR(VLOOKUP(ZARO_FOKONYV!$A55,FKCSERE!$A:$B,2,FALSE),ZARO_FOKONYV!$A55),beallitasok!$B$3)&"00000",6)) -> 491000 | F55: =IF(B55="","",LEFT(IF(ZARO_FOKONYV!D55>0,IFERROR(VLOOKUP(ZARO_FOKONYV!$A55,FKCSERE!$A:$B,2,FALSE),ZARO_FOKONYV!$A55),beallitasok!$B$3)&"000000",6)) -> 491000 | H55: =IF(LEFT(E55,3)=LEFT(beallitasok!$B$3,3),"",$B55) ->  | I55: =IF(LEFT(F55,3)=LEFT(beallitasok!$B$3,3),"",$B55) ->  | J55: =IF(AND(LEN(ZARO_FOKONYV!A55)<LEN(ZARO_FOKONYV!A56),LEFT(ZARO_FOKONYV!A56,LEN(ZARO_FOKONYV!A55))=ZARO_FOKONYV!A55),"IGEN","nem") -> nem
A56: =IFERROR(IF(OR(AND(beallitasok!$H$5="IGEN",J56="IGEN"),B56="",VALUE(LEFT(F56,LEN(beallitasok!$H$2)))=beallitasok!$H$2,VALUE(LEFT(E56,LEN(beallitasok!$H$3)))=beallitasok!$H$3,VALUE(LEFT(F56,LEN(beallitasok!$H$2)))=beallitasok!$H$3,VALUE(LEFT(E56,LEN(beallitasok!$H$3)))=beallitasok!$H$2),"",IF(D56="","",beallitasok!$B$2)),"") -> 2020-12-31 | B56: =IF(VALUE(LEFT(ZARO_FOKONYV!A56,1))<=beallitasok!$H$8,ZARO_FOKONYV!B56,"") -> Költségek, egyéb fizetett kamatok, egyéb ráfordítások elhatárolása | C56: =IF(B56="","",IF(beallitasok!$B$6="","",beallitasok!$B$6)) -> NYITÓ | D56: =IF(B56="","",ROUND(ZARO_FOKONYV!C56+ZARO_FOKONYV!D56,0)) -> 185259 | E56: =IF(B56="","",LEFT(IF(ZARO_FOKONYV!C56>0,IFERROR(VLOOKUP(ZARO_FOKONYV!$A56,FKCSERE!$A:$B,2,FALSE),ZARO_FOKONYV!$A56),beallitasok!$B$3)&"00000",6)) -> 392300 | F56: =IF(B56="","",LEFT(IF(ZARO_FOKONYV!D56>0,IFERROR(VLOOKUP(ZARO_FOKONYV!$A56,FKCSERE!$A:$B,2,FALSE),ZARO_FOKONYV!$A56),beallitasok!$B$3)&"000000",6)) -> 491000 | H56: =IF(LEFT(E56,3)=LEFT(beallitasok!$B$3,3),"",$B56) -> Költségek, egyéb fizetett kamatok, egyéb ráfordítások elhatárolása | I56: =IF(LEFT(F56,3)=LEFT(beallitasok!$B$3,3),"",$B56) ->  | J56: =IF(AND(LEN(ZARO_FOKONYV!A56)<LEN(ZARO_FOKONYV!A57),LEFT(ZARO_FOKONYV!A57,LEN(ZARO_FOKONYV!A56))=ZARO_FOKONYV!A56),"IGEN","nem") -> nem
A57: =IFERROR(IF(OR(AND(beallitasok!$H$5="IGEN",J57="IGEN"),B57="",VALUE(LEFT(F57,LEN(beallitasok!$H$2)))=beallitasok!$H$2,VALUE(LEFT(E57,LEN(beallitasok!$H$3)))=beallitasok!$H$3,VALUE(LEFT(F57,LEN(beallitasok!$H$2)))=beallitasok!$H$3,VALUE(LEFT(E57,LEN(beallitasok!$H$3)))=beallitasok!$H$2),"",IF(D57="","",beallitasok!$B$2)),"") ->  | B57: =IF(VALUE(LEFT(ZARO_FOKONYV!A57,1))<=beallitasok!$H$8,ZARO_FOKONYV!B57,"") -> FORRÁSOK | C57: =IF(B57="","",IF(beallitasok!$B$6="","",beallitasok!$B$6)) -> NYITÓ | D57: =IF(B57="","",ROUND(ZARO_FOKONYV!C57+ZARO_FOKONYV!D57,0)) -> 149713245 | E57: =IF(B57="","",LEFT(IF(ZARO_FOKONYV!C57>0,IFERROR(VLOOKUP(ZARO_FOKONYV!$A57,FKCSERE!$A:$B,2,FALSE),ZARO_FOKONYV!$A57),beallitasok!$B$3)&"00000",6)) -> 491000 | F57: =IF(B57="","",LEFT(IF(ZARO_FOKONYV!D57>0,IFERROR(VLOOKUP(ZARO_FOKONYV!$A57,FKCSERE!$A:$B,2,FALSE),ZARO_FOKONYV!$A57),beallitasok!$B$3)&"000000",6)) -> 400000 | H57: =IF(LEFT(E57,3)=LEFT(beallitasok!$B$3,3),"",$B57) ->  | I57: =IF(LEFT(F57,3)=LEFT(beallitasok!$B$3,3),"",$B57) -> FORRÁSOK | J57: =IF(AND(LEN(ZARO_FOKONYV!A57)<LEN(ZARO_FOKONYV!A58),LEFT(ZARO_FOKONYV!A58,LEN(ZARO_FOKONYV!A57))=ZARO_FOKONYV!A57),"IGEN","nem") -> IGEN
A58: =IFERROR(IF(OR(AND(beallitasok!$H$5="IGEN",J58="IGEN"),B58="",VALUE(LEFT(F58,LEN(beallitasok!$H$2)))=beallitasok!$H$2,VALUE(LEFT(E58,LEN(beallitasok!$H$3)))=beallitasok!$H$3,VALUE(LEFT(F58,LEN(beallitasok!$H$2)))=beallitasok!$H$3,VALUE(LEFT(E58,LEN(beallitasok!$H$3)))=beallitasok!$H$2),"",IF(D58="","",beallitasok!$B$2)),"") ->  | B58: =IF(VALUE(LEFT(ZARO_FOKONYV!A58,1))<=beallitasok!$H$8,ZARO_FOKONYV!B58,"") -> SAJÁT TŐKE | C58: =IF(B58="","",IF(beallitasok!$B$6="","",beallitasok!$B$6)) -> NYITÓ | D58: =IF(B58="","",ROUND(ZARO_FOKONYV!C58+ZARO_FOKONYV!D58,0)) -> 29549496 | E58: =IF(B58="","",LEFT(IF(ZARO_FOKONYV!C58>0,IFERROR(VLOOKUP(ZARO_FOKONYV!$A58,FKCSERE!$A:$B,2,FALSE),ZARO_FOKONYV!$A58),beallitasok!$B$3)&"00000",6)) -> 491000 | F58: =IF(B58="","",LEFT(IF(ZARO_FOKONYV!D58>0,IFERROR(VLOOKUP(ZARO_FOKONYV!$A58,FKCSERE!$A:$B,2,FALSE),ZARO_FOKONYV!$A58),beallitasok!$B$3)&"000000",6)) -> 410000 | H58: =IF(LEFT(E58,3)=LEFT(beallitasok!$B$3,3),"",$B58) ->  | I58: =IF(LEFT(F58,3)=LEFT(beallitasok!$B$3,3),"",$B58) -> SAJÁT TŐKE | J58: =IF(AND(LEN(ZARO_FOKONYV!A58)<LEN(ZARO_FOKONYV!A59),LEFT(ZARO_FOKONYV!A59,LEN(ZARO_FOKONYV!A58))=ZARO_FOKONYV!A58),"IGEN","nem") -> IGEN
A59: =IFERROR(IF(OR(AND(beallitasok!$H$5="IGEN",J59="IGEN"),B59="",VALUE(LEFT(F59,LEN(beallitasok!$H$2)))=beallitasok!$H$2,VALUE(LEFT(E59,LEN(beallitasok!$H$3)))=beallitasok!$H$3,VALUE(LEFT(F59,LEN(beallitasok!$H$2)))=beallitasok!$H$3,VALUE(LEFT(E59,LEN(beallitasok!$H$3)))=beallitasok!$H$2),"",IF(D59="","",beallitasok!$B$2)),"") -> 2020-12-31 | B59: =IF(VALUE(LEFT(ZARO_FOKONYV!A59,1))<=beallitasok!$H$8,ZARO_FOKONYV!B59,"") -> Jegyzett tőke | C59: =IF(B59="","",IF(beallitasok!$B$6="","",beallitasok!$B$6)) -> NYITÓ | D59: =IF(B59="","",ROUND(ZARO_FOKONYV!C59+ZARO_FOKONYV!D59,0)) -> 3000000 | E59: =IF(B59="","",LEFT(IF(ZARO_FOKONYV!C59>0,IFERROR(VLOOKUP(ZARO_FOKONYV!$A59,FKCSERE!$A:$B,2,FALSE),ZARO_FOKONYV!$A59),beallitasok!$B$3)&"00000",6)) -> 491000 | F59: =IF(B59="","",LEFT(IF(ZARO_FOKONYV!D59>0,IFERROR(VLOOKUP(ZARO_FOKONYV!$A59,FKCSERE!$A:$B,2,FALSE),ZARO_FOKONYV!$A59),beallitasok!$B$3)&"000000",6)) -> 411000 | H59: =IF(LEFT(E59,3)=LEFT(beallitasok!$B$3,3),"",$B59) ->  | I59: =IF(LEFT(F59,3)=LEFT(beallitasok!$B$3,3),"",$B59) -> Jegyzett tőke | J59: =IF(AND(LEN(ZARO_FOKONYV!A59)<LEN(ZARO_FOKONYV!A60),LEFT(ZARO_FOKONYV!A60,LEN(ZARO_FOKONYV!A59))=ZARO_FOKONYV!A59),"IGEN","nem") -> nem
A60: =IFERROR(IF(OR(AND(beallitasok!$H$5="IGEN",J60="IGEN"),B60="",VALUE(LEFT(F60,LEN(beallitasok!$H$2)))=beallitasok!$H$2,VALUE(LEFT(E60,LEN(beallitasok!$H$3)))=beallitasok!$H$3,VALUE(LEFT(F60,LEN(beallitasok!$H$2)))=beallitasok!$H$3,VALUE(LEFT(E60,LEN(beallitasok!$H$3)))=beallitasok!$H$2),"",IF(D60="","",beallitasok!$B$2)),"") -> 2020-12-31 | B60: =IF(VALUE(LEFT(ZARO_FOKONYV!A60,1))<=beallitasok!$H$8,ZARO_FOKONYV!B60,"") -> Eredménytartalék | C60: =IF(B60="","",IF(beallitasok!$B$6="","",beallitasok!$B$6)) -> NYITÓ | D60: =IF(B60="","",ROUND(ZARO_FOKONYV!C60+ZARO_FOKONYV!D60,0)) -> 26549496 | E60: =IF(B60="","",LEFT(IF(ZARO_FOKONYV!C60>0,IFERROR(VLOOKUP(ZARO_FOKONYV!$A60,FKCSERE!$A:$B,2,FALSE),ZARO_FOKONYV!$A60),beallitasok!$B$3)&"00000",6)) -> 491000 | F60: =IF(B60="","",LEFT(IF(ZARO_FOKONYV!D60>0,IFERROR(VLOOKUP(ZARO_FOKONYV!$A60,FKCSERE!$A:$B,2,FALSE),ZARO_FOKONYV!$A60),beallitasok!$B$3)&"000000",6)) -> 413000 | H60: =IF(LEFT(E60,3)=LEFT(beallitasok!$B$3,3),"",$B60) ->  | I60: =IF(LEFT(F60,3)=LEFT(beallitasok!$B$3,3),"",$B60) -> Eredménytartalék | J60: =IF(AND(LEN(ZARO_FOKONYV!A60)<LEN(ZARO_FOKONYV!A61),LEFT(ZARO_FOKONYV!A61,LEN(ZARO_FOKONYV!A60))=ZARO_FOKONYV!A60),"IGEN","nem") -> nem
A61: =IFERROR(IF(OR(AND(beallitasok!$H$5="IGEN",J61="IGEN"),B61="",VALUE(LEFT(F61,LEN(beallitasok!$H$2)))=beallitasok!$H$2,VALUE(LEFT(E61,LEN(beallitasok!$H$3)))=beallitasok!$H$3,VALUE(LEFT(F61,LEN(beallitasok!$H$2)))=beallitasok!$H$3,VALUE(LEFT(E61,LEN(beallitasok!$H$3)))=beallitasok!$H$2),"",IF(D61="","",beallitasok!$B$2)),"") ->  | B61: =IF(VALUE(LEFT(ZARO_FOKONYV!A61,1))<=beallitasok!$H$8,ZARO_FOKONYV!B61,"") -> Lekötött tartalék | C61: =IF(B61="","",IF(beallitasok!$B$6="","",beallitasok!$B$6)) -> NYITÓ | D61: =IF(B61="","",ROUND(ZARO_FOKONYV!C61+ZARO_FOKONYV!D61,0)) -> 0 | E61: =IF(B61="","",LEFT(IF(ZARO_FOKONYV!C61>0,IFERROR(VLOOKUP(ZARO_FOKONYV!$A61,FKCSERE!$A:$B,2,FALSE),ZARO_FOKONYV!$A61),beallitasok!$B$3)&"00000",6)) -> 491000 | F61: =IF(B61="","",LEFT(IF(ZARO_FOKONYV!D61>0,IFERROR(VLOOKUP(ZARO_FOKONYV!$A61,FKCSERE!$A:$B,2,FALSE),ZARO_FOKONYV!$A61),beallitasok!$B$3)&"000000",6)) -> 491000 | H61: =IF(LEFT(E61,3)=LEFT(beallitasok!$B$3,3),"",$B61) ->  | I61: =IF(LEFT(F61,3)=LEFT(beallitasok!$B$3,3),"",$B61) ->  | J61: =IF(AND(LEN(ZARO_FOKONYV!A61)<LEN(ZARO_FOKONYV!A62),LEFT(ZARO_FOKONYV!A62,LEN(ZARO_FOKONYV!A61))=ZARO_FOKONYV!A61),"IGEN","nem") -> IGEN
A62: =IFERROR(IF(OR(AND(beallitasok!$H$5="IGEN",J62="IGEN"),B62="",VALUE(LEFT(F62,LEN(beallitasok!$H$2)))=beallitasok!$H$2,VALUE(LEFT(E62,LEN(beallitasok!$H$3)))=beallitasok!$H$3,VALUE(LEFT(F62,LEN(beallitasok!$H$2)))=beallitasok!$H$3,VALUE(LEFT(E62,LEN(beallitasok!$H$3)))=beallitasok!$H$2),"",IF(D62="","",beallitasok!$B$2)),"") -> 2020-12-31 | B62: =IF(VALUE(LEFT(ZARO_FOKONYV!A62,1))<=beallitasok!$H$8,ZARO_FOKONYV!B62,"") -> Lekötött tartalék eredménytartalékból | C62: =IF(B62="","",IF(beallitasok!$B$6="","",beallitasok!$B$6)) -> NYITÓ | D62: =IF(B62="","",ROUND(ZARO_FOKONYV!C62+ZARO_FOKONYV!D62,0)) -> 0 | E62: =IF(B62="","",LEFT(IF(ZARO_FOKONYV!C62>0,IFERROR(VLOOKUP(ZARO_FOKONYV!$A62,FKCSERE!$A:$B,2,FALSE),ZARO_FOKONYV!$A62),beallitasok!$B$3)&"00000",6)) -> 491000 | F62: =IF(B62="","",LEFT(IF(ZARO_FOKONYV!D62>0,IFERROR(VLOOKUP(ZARO_FOKONYV!$A62,FKCSERE!$A:$B,2,FALSE),ZARO_FOKONYV!$A62),beallitasok!$B$3)&"000000",6)) -> 491000 | H62: =IF(LEFT(E62,3)=LEFT(beallitasok!$B$3,3),"",$B62) ->  | I62: =IF(LEFT(F62,3)=LEFT(beallitasok!$B$3,3),"",$B62) ->  | J62: =IF(AND(LEN(ZARO_FOKONYV!A62)<LEN(ZARO_FOKONYV!A63),LEFT(ZARO_FOKONYV!A63,LEN(ZARO_FOKONYV!A62))=ZARO_FOKONYV!A62),"IGEN","nem") -> nem
A63: =IFERROR(IF(OR(AND(beallitasok!$H$5="IGEN",J63="IGEN"),B63="",VALUE(LEFT(F63,LEN(beallitasok!$H$2)))=beallitasok!$H$2,VALUE(LEFT(E63,LEN(beallitasok!$H$3)))=beallitasok!$H$3,VALUE(LEFT(F63,LEN(beallitasok!$H$2)))=beallitasok!$H$3,VALUE(LEFT(E63,LEN(beallitasok!$H$3)))=beallitasok!$H$2),"",IF(D63="","",beallitasok!$B$2)),"") ->  | B63: =IF(VALUE(LEFT(ZARO_FOKONYV!A63,1))<=beallitasok!$H$8,ZARO_FOKONYV!B63,"") -> HOSSZÚ LEJÁRATÚ KÖTELEZETTSÉGEK | C63: =IF(B63="","",IF(beallitasok!$B$6="","",beallitasok!$B$6)) -> NYITÓ | D63: =IF(B63="","",ROUND(ZARO_FOKONYV!C63+ZARO_FOKONYV!D63,0)) -> 62295444 | E63: =IF(B63="","",LEFT(IF(ZARO_FOKONYV!C63>0,IFERROR(VLOOKUP(ZARO_FOKONYV!$A63,FKCSERE!$A:$B,2,FALSE),ZARO_FOKONYV!$A63),beallitasok!$B$3)&"00000",6)) -> 491000 | F63: =IF(B63="","",LEFT(IF(ZARO_FOKONYV!D63>0,IFERROR(VLOOKUP(ZARO_FOKONYV!$A63,FKCSERE!$A:$B,2,FALSE),ZARO_FOKONYV!$A63),beallitasok!$B$3)&"000000",6)) -> 440000 | H63: =IF(LEFT(E63,3)=LEFT(beallitasok!$B$3,3),"",$B63) ->  | I63: =IF(LEFT(F63,3)=LEFT(beallitasok!$B$3,3),"",$B63) -> HOSSZÚ LEJÁRATÚ KÖTELEZETTSÉGEK | J63: =IF(AND(LEN(ZARO_FOKONYV!A63)<LEN(ZARO_FOKONYV!A64),LEFT(ZARO_FOKONYV!A64,LEN(ZARO_FOKONYV!A63))=ZARO_FOKONYV!A63),"IGEN","nem") -> IGEN
A64: =IFERROR(IF(OR(AND(beallitasok!$H$5="IGEN",J64="IGEN"),B64="",VALUE(LEFT(F64,LEN(beallitasok!$H$2)))=beallitasok!$H$2,VALUE(LEFT(E64,LEN(beallitasok!$H$3)))=beallitasok!$H$3,VALUE(LEFT(F64,LEN(beallitasok!$H$2)))=beallitasok!$H$3,VALUE(LEFT(E64,LEN(beallitasok!$H$3)))=beallitasok!$H$2),"",IF(D64="","",beallitasok!$B$2)),"") -> 2020-12-31 | B64: =IF(VALUE(LEFT(ZARO_FOKONYV!A64,1))<=beallitasok!$H$8,ZARO_FOKONYV!B64,"") -> ABC-123 lízing | C64: =IF(B64="","",IF(beallitasok!$B$6="","",beallitasok!$B$6)) -> NYITÓ | D64: =IF(B64="","",ROUND(ZARO_FOKONYV!C64+ZARO_FOKONYV!D64,0)) -> 1293708 | E64: =IF(B64="","",LEFT(IF(ZARO_FOKONYV!C64>0,IFERROR(VLOOKUP(ZARO_FOKONYV!$A64,FKCSERE!$A:$B,2,FALSE),ZARO_FOKONYV!$A64),beallitasok!$B$3)&"00000",6)) -> 441200 | F64: =IF(B64="","",LEFT(IF(ZARO_FOKONYV!D64>0,IFERROR(VLOOKUP(ZARO_FOKONYV!$A64,FKCSERE!$A:$B,2,FALSE),ZARO_FOKONYV!$A64),beallitasok!$B$3)&"000000",6)) -> 491000 | H64: =IF(LEFT(E64,3)=LEFT(beallitasok!$B$3,3),"",$B64) -> ABC-123 lízing | I64: =IF(LEFT(F64,3)=LEFT(beallitasok!$B$3,3),"",$B64) ->  | J64: =IF(AND(LEN(ZARO_FOKONYV!A64)<LEN(ZARO_FOKONYV!A65),LEFT(ZARO_FOKONYV!A65,LEN(ZARO_FOKONYV!A64))=ZARO_FOKONYV!A64),"IGEN","nem") -> nem
A65: =IFERROR(IF(OR(AND(beallitasok!$H$5="IGEN",J65="IGEN"),B65="",VALUE(LEFT(F65,LEN(beallitasok!$H$2)))=beallitasok!$H$2,VALUE(LEFT(E65,LEN(beallitasok!$H$3)))=beallitasok!$H$3,VALUE(LEFT(F65,LEN(beallitasok!$H$2)))=beallitasok!$H$3,VALUE(LEFT(E65,LEN(beallitasok!$H$3)))=beallitasok!$H$2),"",IF(D65="","",beallitasok!$B$2)),"") -> 2020-12-31 | B65: =IF(VALUE(LEFT(ZARO_FOKONYV!A65,1))<=beallitasok!$H$8,ZARO_FOKONYV!B65,"") -> ABC-234 lízing | C65: =IF(B65="","",IF(beallitasok!$B$6="","",beallitasok!$B$6)) -> NYITÓ | D65: =IF(B65="","",ROUND(ZARO_FOKONYV!C65+ZARO_FOKONYV!D65,0)) -> 892236 | E65: =IF(B65="","",LEFT(IF(ZARO_FOKONYV!C65>0,IFERROR(VLOOKUP(ZARO_FOKONYV!$A65,FKCSERE!$A:$B,2,FALSE),ZARO_FOKONYV!$A65),beallitasok!$B$3)&"00000",6)) -> 491000 | F65: =IF(B65="","",LEFT(IF(ZARO_FOKONYV!D65>0,IFERROR(VLOOKUP(ZARO_FOKONYV!$A65,FKCSERE!$A:$B,2,FALSE),ZARO_FOKONYV!$A65),beallitasok!$B$3)&"000000",6)) -> 441600 | H65: =IF(LEFT(E65,3)=LEFT(beallitasok!$B$3,3),"",$B65) ->  | I65: =IF(LEFT(F65,3)=LEFT(beallitasok!$B$3,3),"",$B65) -> ABC-234 lízing | J65: =IF(AND(LEN(ZARO_FOKONYV!A65)<LEN(ZARO_FOKONYV!A66),LEFT(ZARO_FOKONYV!A66,LEN(ZARO_FOKONYV!A65))=ZARO_FOKONYV!A65),"IGEN","nem") -> nem
A66: =IFERROR(IF(OR(AND(beallitasok!$H$5="IGEN",J66="IGEN"),B66="",VALUE(LEFT(F66,LEN(beallitasok!$H$2)))=beallitasok!$H$2,VALUE(LEFT(E66,LEN(beallitasok!$H$3)))=beallitasok!$H$3,VALUE(LEFT(F66,LEN(beallitasok!$H$2)))=beallitasok!$H$3,VALUE(LEFT(E66,LEN(beallitasok!$H$3)))=beallitasok!$H$2),"",IF(D66="","",beallitasok!$B$2)),"") ->  | B66: =IF(VALUE(LEFT(ZARO_FOKONYV!A66,1))<=beallitasok!$H$8,ZARO_FOKONYV!B66,"") -> Beruházási és fejlsztési hitelek | C66: =IF(B66="","",IF(beallitasok!$B$6="","",beallitasok!$B$6)) -> NYITÓ | D66: =IF(B66="","",ROUND(ZARO_FOKONYV!C66+ZARO_FOKONYV!D66,0)) -> 59177911 | E66: =IF(B66="","",LEFT(IF(ZARO_FOKONYV!C66>0,IFERROR(VLOOKUP(ZARO_FOKONYV!$A66,FKCSERE!$A:$B,2,FALSE),ZARO_FOKONYV!$A66),beallitasok!$B$3)&"00000",6)) -> 491000 | F66: =IF(B66="","",LEFT(IF(ZARO_FOKONYV!D66>0,IFERROR(VLOOKUP(ZARO_FOKONYV!$A66,FKCSERE!$A:$B,2,FALSE),ZARO_FOKONYV!$A66),beallitasok!$B$3)&"000000",6)) -> 444000 | H66: =IF(LEFT(E66,3)=LEFT(beallitasok!$B$3,3),"",$B66) ->  | I66: =IF(LEFT(F66,3)=LEFT(beallitasok!$B$3,3),"",$B66) -> Beruházási és fejlsztési hitelek | J66: =IF(AND(LEN(ZARO_FOKONYV!A66)<LEN(ZARO_FOKONYV!A67),LEFT(ZARO_FOKONYV!A67,LEN(ZARO_FOKONYV!A66))=ZARO_FOKONYV!A66),"IGEN","nem") -> IGEN
A67: =IFERROR(IF(OR(AND(beallitasok!$H$5="IGEN",J67="IGEN"),B67="",VALUE(LEFT(F67,LEN(beallitasok!$H$2)))=beallitasok!$H$2,VALUE(LEFT(E67,LEN(beallitasok!$H$3)))=beallitasok!$H$3,VALUE(LEFT(F67,LEN(beallitasok!$H$2)))=beallitasok!$H$3,VALUE(LEFT(E67,LEN(beallitasok!$H$3)))=beallitasok!$H$2),"",IF(D67="","",beallitasok!$B$2)),"") -> 2020-12-31 | B67: =IF(VALUE(LEFT(ZARO_FOKONYV!A67,1))<=beallitasok!$H$8,ZARO_FOKONYV!B67,"") -> Beruházási és fejlesztési hitelek forintban | C67: =IF(B67="","",IF(beallitasok!$B$6="","",beallitasok!$B$6)) -> NYITÓ | D67: =IF(B67="","",ROUND(ZARO_FOKONYV!C67+ZARO_FOKONYV!D67,0)) -> 59177911 | E67: =IF(B67="","",LEFT(IF(ZARO_FOKONYV!C67>0,IFERROR(VLOOKUP(ZARO_FOKONYV!$A67,FKCSERE!$A:$B,2,FALSE),ZARO_FOKONYV!$A67),beallitasok!$B$3)&"00000",6)) -> 491000 | F67: =IF(B67="","",LEFT(IF(ZARO_FOKONYV!D67>0,IFERROR(VLOOKUP(ZARO_FOKONYV!$A67,FKCSERE!$A:$B,2,FALSE),ZARO_FOKONYV!$A67),beallitasok!$B$3)&"000000",6)) -> 444100 | H67: =IF(LEFT(E67,3)=LEFT(beallitasok!$B$3,3),"",$B67) ->  | I67: =IF(LEFT(F67,3)=LEFT(beallitasok!$B$3,3),"",$B67) -> Beruházási és fejlesztési hitelek forintban | J67: =IF(AND(LEN(ZARO_FOKONYV!A67)<LEN(ZARO_FOKONYV!A68),LEFT(ZARO_FOKONYV!A68,LEN(ZARO_FOKONYV!A67))=ZARO_FOKONYV!A67),"IGEN","nem") -> nem
A68: =IFERROR(IF(OR(AND(beallitasok!$H$5="IGEN",J68="IGEN"),B68="",VALUE(LEFT(F68,LEN(beallitasok!$H$2)))=beallitasok!$H$2,VALUE(LEFT(E68,LEN(beallitasok!$H$3)))=beallitasok!$H$3,VALUE(LEFT(F68,LEN(beallitasok!$H$2)))=beallitasok!$H$3,VALUE(LEFT(E68,LEN(beallitasok!$H$3)))=beallitasok!$H$2),"",IF(D68="","",beallitasok!$B$2)),"") -> 2020-12-31 | B68: =IF(VALUE(LEFT(ZARO_FOKONYV!A68,1))<=beallitasok!$H$8,ZARO_FOKONYV!B68,"") -> lizing Smart | C68: =IF(B68="","",IF(beallitasok!$B$6="","",beallitasok!$B$6)) -> NYITÓ | D68: =IF(B68="","",ROUND(ZARO_FOKONYV!C68+ZARO_FOKONYV!D68,0)) -> 3519005 | E68: =IF(B68="","",LEFT(IF(ZARO_FOKONYV!C68>0,IFERROR(VLOOKUP(ZARO_FOKONYV!$A68,FKCSERE!$A:$B,2,FALSE),ZARO_FOKONYV!$A68),beallitasok!$B$3)&"00000",6)) -> 491000 | F68: =IF(B68="","",LEFT(IF(ZARO_FOKONYV!D68>0,IFERROR(VLOOKUP(ZARO_FOKONYV!$A68,FKCSERE!$A:$B,2,FALSE),ZARO_FOKONYV!$A68),beallitasok!$B$3)&"000000",6)) -> 448100 | H68: =IF(LEFT(E68,3)=LEFT(beallitasok!$B$3,3),"",$B68) ->  | I68: =IF(LEFT(F68,3)=LEFT(beallitasok!$B$3,3),"",$B68) -> lizing Smart | J68: =IF(AND(LEN(ZARO_FOKONYV!A68)<LEN(ZARO_FOKONYV!A69),LEFT(ZARO_FOKONYV!A69,LEN(ZARO_FOKONYV!A68))=ZARO_FOKONYV!A68),"IGEN","nem") -> nem
A69: =IFERROR(IF(OR(AND(beallitasok!$H$5="IGEN",J69="IGEN"),B69="",VALUE(LEFT(F69,LEN(beallitasok!$H$2)))=beallitasok!$H$2,VALUE(LEFT(E69,LEN(beallitasok!$H$3)))=beallitasok!$H$3,VALUE(LEFT(F69,LEN(beallitasok!$H$2)))=beallitasok!$H$3,VALUE(LEFT(E69,LEN(beallitasok!$H$3)))=beallitasok!$H$2),"",IF(D69="","",beallitasok!$B$2)),"") ->  | B69: =IF(VALUE(LEFT(ZARO_FOKONYV!A69,1))<=beallitasok!$H$8,ZARO_FOKONYV!B69,"") -> RÖVID LEJÁRATÚ KÖTELEZETTSÉGEK | C69: =IF(B69="","",IF(beallitasok!$B$6="","",beallitasok!$B$6)) -> NYITÓ | D69: =IF(B69="","",ROUND(ZARO_FOKONYV!C69+ZARO_FOKONYV!D69,0)) -> 49002940 | E69: =IF(B69="","",LEFT(IF(ZARO_FOKONYV!C69>0,IFERROR(VLOOKUP(ZARO_FOKONYV!$A69,FKCSERE!$A:$B,2,FALSE),ZARO_FOKONYV!$A69),beallitasok!$B$3)&"00000",6)) -> 491000 | F69: =IF(B69="","",LEFT(IF(ZARO_FOKONYV!D69>0,IFERROR(VLOOKUP(ZARO_FOKONYV!$A69,FKCSERE!$A:$B,2,FALSE),ZARO_FOKONYV!$A69),beallitasok!$B$3)&"000000",6)) -> 450000 | H69: =IF(LEFT(E69,3)=LEFT(beallitasok!$B$3,3),"",$B69) ->  | I69: =IF(LEFT(F69,3)=LEFT(beallitasok!$B$3,3),"",$B69) -> RÖVID LEJÁRATÚ KÖTELEZETTSÉGEK | J69: =IF(AND(LEN(ZARO_FOKONYV!A69)<LEN(ZARO_FOKONYV!A70),LEFT(ZARO_FOKONYV!A70,LEN(ZARO_FOKONYV!A69))=ZARO_FOKONYV!A69),"IGEN","nem") -> IGEN
A70: =IFERROR(IF(OR(AND(beallitasok!$H$5="IGEN",J70="IGEN"),B70="",VALUE(LEFT(F70,LEN(beallitasok!$H$2)))=beallitasok!$H$2,VALUE(LEFT(E70,LEN(beallitasok!$H$3)))=beallitasok!$H$3,VALUE(LEFT(F70,LEN(beallitasok!$H$2)))=beallitasok!$H$3,VALUE(LEFT(E70,LEN(beallitasok!$H$3)))=beallitasok!$H$2),"",IF(D70="","",beallitasok!$B$2)),"") ->  | B70: =IF(VALUE(LEFT(ZARO_FOKONYV!A70,1))<=beallitasok!$H$8,ZARO_FOKONYV!B70,"") -> Rövid lejáratú hitelek | C70: =IF(B70="","",IF(beallitasok!$B$6="","",beallitasok!$B$6)) -> NYITÓ | D70: =IF(B70="","",ROUND(ZARO_FOKONYV!C70+ZARO_FOKONYV!D70,0)) -> 17284774 | E70: =IF(B70="","",LEFT(IF(ZARO_FOKONYV!C70>0,IFERROR(VLOOKUP(ZARO_FOKONYV!$A70,FKCSERE!$A:$B,2,FALSE),ZARO_FOKONYV!$A70),beallitasok!$B$3)&"00000",6)) -> 491000 | F70: =IF(B70="","",LEFT(IF(ZARO_FOKONYV!D70>0,IFERROR(VLOOKUP(ZARO_FOKONYV!$A70,FKCSERE!$A:$B,2,FALSE),ZARO_FOKONYV!$A70),beallitasok!$B$3)&"000000",6)) -> 452000 | H70: =IF(LEFT(E70,3)=LEFT(beallitasok!$B$3,3),"",$B70) ->  | I70: =IF(LEFT(F70,3)=LEFT(beallitasok!$B$3,3),"",$B70) -> Rövid lejáratú hitelek | J70: =IF(AND(LEN(ZARO_FOKONYV!A70)<LEN(ZARO_FOKONYV!A71),LEFT(ZARO_FOKONYV!A71,LEN(ZARO_FOKONYV!A70))=ZARO_FOKONYV!A70),"IGEN","nem") -> IGEN
A71: =IFERROR(IF(OR(AND(beallitasok!$H$5="IGEN",J71="IGEN"),B71="",VALUE(LEFT(F71,LEN(beallitasok!$H$2)))=beallitasok!$H$2,VALUE(LEFT(E71,LEN(beallitasok!$H$3)))=beallitasok!$H$3,VALUE(LEFT(F71,LEN(beallitasok!$H$2)))=beallitasok!$H$3,VALUE(LEFT(E71,LEN(beallitasok!$H$3)))=beallitasok!$H$2),"",IF(D71="","",beallitasok!$B$2)),"") -> 2020-12-31 | B71: =IF(VALUE(LEFT(ZARO_FOKONYV!A71,1))<=beallitasok!$H$8,ZARO_FOKONYV!B71,"") -> Rövid lejáratú hitelek forintban | C71: =IF(B71="","",IF(beallitasok!$B$6="","",beallitasok!$B$6)) -> NYITÓ | D71: =IF(B71="","",ROUND(ZARO_FOKONYV!C71+ZARO_FOKONYV!D71,0)) -> 17284774 | E71: =IF(B71="","",LEFT(IF(ZARO_FOKONYV!C71>0,IFERROR(VLOOKUP(ZARO_FOKONYV!$A71,FKCSERE!$A:$B,2,FALSE),ZARO_FOKONYV!$A71),beallitasok!$B$3)&"00000",6)) -> 491000 | F71: =IF(B71="","",LEFT(IF(ZARO_FOKONYV!D71>0,IFERROR(VLOOKUP(ZARO_FOKONYV!$A71,FKCSERE!$A:$B,2,FALSE),ZARO_FOKONYV!$A71),beallitasok!$B$3)&"000000",6)) -> 452100 | H71: =IF(LEFT(E71,3)=LEFT(beallitasok!$B$3,3),"",$B71) ->  | I71: =IF(LEFT(F71,3)=LEFT(beallitasok!$B$3,3),"",$B71) -> Rövid lejáratú hitelek forintban | J71: =IF(AND(LEN(ZARO_FOKONYV!A71)<LEN(ZARO_FOKONYV!A72),LEFT(ZARO_FOKONYV!A72,LEN(ZARO_FOKONYV!A71))=ZARO_FOKONYV!A71),"IGEN","nem") -> nem
A72: =IFERROR(IF(OR(AND(beallitasok!$H$5="IGEN",J72="IGEN"),B72="",VALUE(LEFT(F72,LEN(beallitasok!$H$2)))=beallitasok!$H$2,VALUE(LEFT(E72,LEN(beallitasok!$H$3)))=beallitasok!$H$3,VALUE(LEFT(F72,LEN(beallitasok!$H$2)))=beallitasok!$H$3,VALUE(LEFT(E72,LEN(beallitasok!$H$3)))=beallitasok!$H$2),"",IF(D72="","",beallitasok!$B$2)),"") ->  | B72: =IF(VALUE(LEFT(ZARO_FOKONYV!A72,1))<=beallitasok!$H$8,ZARO_FOKONYV!B72,"") -> Szállítók | C72: =IF(B72="","",IF(beallitasok!$B$6="","",beallitasok!$B$6)) -> NYITÓ | D72: =IF(B72="","",ROUND(ZARO_FOKONYV!C72+ZARO_FOKONYV!D72,0)) -> 31718166 | E72: =IF(B72="","",LEFT(IF(ZARO_FOKONYV!C72>0,IFERROR(VLOOKUP(ZARO_FOKONYV!$A72,FKCSERE!$A:$B,2,FALSE),ZARO_FOKONYV!$A72),beallitasok!$B$3)&"00000",6)) -> 491000 | F72: =IF(B72="","",LEFT(IF(ZARO_FOKONYV!D72>0,IFERROR(VLOOKUP(ZARO_FOKONYV!$A72,FKCSERE!$A:$B,2,FALSE),ZARO_FOKONYV!$A72),beallitasok!$B$3)&"000000",6)) -> 454000 | H72: =IF(LEFT(E72,3)=LEFT(beallitasok!$B$3,3),"",$B72) ->  | I72: =IF(LEFT(F72,3)=LEFT(beallitasok!$B$3,3),"",$B72) -> Szállítók | J72: =IF(AND(LEN(ZARO_FOKONYV!A72)<LEN(ZARO_FOKONYV!A73),LEFT(ZARO_FOKONYV!A73,LEN(ZARO_FOKONYV!A72))=ZARO_FOKONYV!A72),"IGEN","nem") -> IGEN
A73: =IFERROR(IF(OR(AND(beallitasok!$H$5="IGEN",J73="IGEN"),B73="",VALUE(LEFT(F73,LEN(beallitasok!$H$2)))=beallitasok!$H$2,VALUE(LEFT(E73,LEN(beallitasok!$H$3)))=beallitasok!$H$3,VALUE(LEFT(F73,LEN(beallitasok!$H$2)))=beallitasok!$H$3,VALUE(LEFT(E73,LEN(beallitasok!$H$3)))=beallitasok!$H$2),"",IF(D73="","",beallitasok!$B$2)),"") ->  | B73: =IF(VALUE(LEFT(ZARO_FOKONYV!A73,1))<=beallitasok!$H$8,ZARO_FOKONYV!B73,"") -> Belföldi anyag és áruszállítók | C73: =IF(B73="","",IF(beallitasok!$B$6="","",beallitasok!$B$6)) -> NYITÓ | D73: =IF(B73="","",ROUND(ZARO_FOKONYV!C73+ZARO_FOKONYV!D73,0)) -> 31718166 | E73: =IF(B73="","",LEFT(IF(ZARO_FOKONYV!C73>0,IFERROR(VLOOKUP(ZARO_FOKONYV!$A73,FKCSERE!$A:$B,2,FALSE),ZARO_FOKONYV!$A73),beallitasok!$B$3)&"00000",6)) -> 491000 | F73: =IF(B73="","",LEFT(IF(ZARO_FOKONYV!D73>0,IFERROR(VLOOKUP(ZARO_FOKONYV!$A73,FKCSERE!$A:$B,2,FALSE),ZARO_FOKONYV!$A73),beallitasok!$B$3)&"000000",6)) -> 454100 | H73: =IF(LEFT(E73,3)=LEFT(beallitasok!$B$3,3),"",$B73) ->  | I73: =IF(LEFT(F73,3)=LEFT(beallitasok!$B$3,3),"",$B73) -> Belföldi anyag és áruszállítók | J73: =IF(AND(LEN(ZARO_FOKONYV!A73)<LEN(ZARO_FOKONYV!A74),LEFT(ZARO_FOKONYV!A74,LEN(ZARO_FOKONYV!A73))=ZARO_FOKONYV!A73),"IGEN","nem") -> nem
A74: =IFERROR(IF(OR(AND(beallitasok!$H$5="IGEN",J74="IGEN"),B74="",VALUE(LEFT(F74,LEN(beallitasok!$H$2)))=beallitasok!$H$2,VALUE(LEFT(E74,LEN(beallitasok!$H$3)))=beallitasok!$H$3,VALUE(LEFT(F74,LEN(beallitasok!$H$2)))=beallitasok!$H$3,VALUE(LEFT(E74,LEN(beallitasok!$H$3)))=beallitasok!$H$2),"",IF(D74="","",beallitasok!$B$2)),"") -> 2020-12-31 | B74: =IF(VALUE(LEFT(ZARO_FOKONYV!A74,1))<=beallitasok!$H$8,ZARO_FOKONYV!B74,"") -> Társasági adó elszámolása | C74: =IF(B74="","",IF(beallitasok!$B$6="","",beallitasok!$B$6)) -> NYITÓ | D74: =IF(B74="","",ROUND(ZARO_FOKONYV!C74+ZARO_FOKONYV!D74,0)) -> 1053300 | E74: =IF(B74="","",LEFT(IF(ZARO_FOKONYV!C74>0,IFERROR(VLOOKUP(ZARO_FOKONYV!$A74,FKCSERE!$A:$B,2,FALSE),ZARO_FOKONYV!$A74),beallitasok!$B$3)&"00000",6)) -> 491000 | F74: =IF(B74="","",LEFT(IF(ZARO_FOKONYV!D74>0,IFERROR(VLOOKUP(ZARO_FOKONYV!$A74,FKCSERE!$A:$B,2,FALSE),ZARO_FOKONYV!$A74),beallitasok!$B$3)&"000000",6)) -> 461000 | H74: =IF(LEFT(E74,3)=LEFT(beallitasok!$B$3,3),"",$B74) ->  | I74: =IF(LEFT(F74,3)=LEFT(beallitasok!$B$3,3),"",$B74) -> Társasági adó elszámolása | J74: =IF(AND(LEN(ZARO_FOKONYV!A74)<LEN(ZARO_FOKONYV!A75),LEFT(ZARO_FOKONYV!A75,LEN(ZARO_FOKONYV!A74))=ZARO_FOKONYV!A74),"IGEN","nem") -> nem
A75: =IFERROR(IF(OR(AND(beallitasok!$H$5="IGEN",J75="IGEN"),B75="",VALUE(LEFT(F75,LEN(beallitasok!$H$2)))=beallitasok!$H$2,VALUE(LEFT(E75,LEN(beallitasok!$H$3)))=beallitasok!$H$3,VALUE(LEFT(F75,LEN(beallitasok!$H$2)))=beallitasok!$H$3,VALUE(LEFT(E75,LEN(beallitasok!$H$3)))=beallitasok!$H$2),"",IF(D75="","",beallitasok!$B$2)),"") -> 2020-12-31 | B75: =IF(VALUE(LEFT(ZARO_FOKONYV!A75,1))<=beallitasok!$H$8,ZARO_FOKONYV!B75,"") -> Személyi jövedelemadó elszámolása | C75: =IF(B75="","",IF(beallitasok!$B$6="","",beallitasok!$B$6)) -> NYITÓ | D75: =IF(B75="","",ROUND(ZARO_FOKONYV!C75+ZARO_FOKONYV!D75,0)) -> 376000 | E75: =IF(B75="","",LEFT(IF(ZARO_FOKONYV!C75>0,IFERROR(VLOOKUP(ZARO_FOKONYV!$A75,FKCSERE!$A:$B,2,FALSE),ZARO_FOKONYV!$A75),beallitasok!$B$3)&"00000",6)) -> 491000 | F75: =IF(B75="","",LEFT(IF(ZARO_FOKONYV!D75>0,IFERROR(VLOOKUP(ZARO_FOKONYV!$A75,FKCSERE!$A:$B,2,FALSE),ZARO_FOKONYV!$A75),beallitasok!$B$3)&"000000",6)) -> 462000 | H75: =IF(LEFT(E75,3)=LEFT(beallitasok!$B$3,3),"",$B75) ->  | I75: =IF(LEFT(F75,3)=LEFT(beallitasok!$B$3,3),"",$B75) -> Személyi jövedelemadó elszámolása | J75: =IF(AND(LEN(ZARO_FOKONYV!A75)<LEN(ZARO_FOKONYV!A76),LEFT(ZARO_FOKONYV!A76,LEN(ZARO_FOKONYV!A75))=ZARO_FOKONYV!A75),"IGEN","nem") -> nem
A76: =IFERROR(IF(OR(AND(beallitasok!$H$5="IGEN",J76="IGEN"),B76="",VALUE(LEFT(F76,LEN(beallitasok!$H$2)))=beallitasok!$H$2,VALUE(LEFT(E76,LEN(beallitasok!$H$3)))=beallitasok!$H$3,VALUE(LEFT(F76,LEN(beallitasok!$H$2)))=beallitasok!$H$3,VALUE(LEFT(E76,LEN(beallitasok!$H$3)))=beallitasok!$H$2),"",IF(D76="","",beallitasok!$B$2)),"") ->  | B76: =IF(VALUE(LEFT(ZARO_FOKONYV!A76,1))<=beallitasok!$H$8,ZARO_FOKONYV!B76,"") -> Költségvetési befizetési kötelezettségek | C76: =IF(B76="","",IF(beallitasok!$B$6="","",beallitasok!$B$6)) -> NYITÓ | D76: =IF(B76="","",ROUND(ZARO_FOKONYV!C76+ZARO_FOKONYV!D76,0)) -> 690260 | E76: =IF(B76="","",LEFT(IF(ZARO_FOKONYV!C76>0,IFERROR(VLOOKUP(ZARO_FOKONYV!$A76,FKCSERE!$A:$B,2,FALSE),ZARO_FOKONYV!$A76),beallitasok!$B$3)&"00000",6)) -> 491000 | F76: =IF(B76="","",LEFT(IF(ZARO_FOKONYV!D76>0,IFERROR(VLOOKUP(ZARO_FOKONYV!$A76,FKCSERE!$A:$B,2,FALSE),ZARO_FOKONYV!$A76),beallitasok!$B$3)&"000000",6)) -> 463000 | H76: =IF(LEFT(E76,3)=LEFT(beallitasok!$B$3,3),"",$B76) ->  | I76: =IF(LEFT(F76,3)=LEFT(beallitasok!$B$3,3),"",$B76) -> Költségvetési befizetési kötelezettségek | J76: =IF(AND(LEN(ZARO_FOKONYV!A76)<LEN(ZARO_FOKONYV!A77),LEFT(ZARO_FOKONYV!A77,LEN(ZARO_FOKONYV!A76))=ZARO_FOKONYV!A76),"IGEN","nem") -> IGEN
A77: =IFERROR(IF(OR(AND(beallitasok!$H$5="IGEN",J77="IGEN"),B77="",VALUE(LEFT(F77,LEN(beallitasok!$H$2)))=beallitasok!$H$2,VALUE(LEFT(E77,LEN(beallitasok!$H$3)))=beallitasok!$H$3,VALUE(LEFT(F77,LEN(beallitasok!$H$2)))=beallitasok!$H$3,VALUE(LEFT(E77,LEN(beallitasok!$H$3)))=beallitasok!$H$2),"",IF(D77="","",beallitasok!$B$2)),"") -> 2020-12-31 | B77: =IF(VALUE(LEFT(ZARO_FOKONYV!A77,1))<=beallitasok!$H$8,ZARO_FOKONYV!B77,"") -> Egészségügyi hozzájárulás | C77: =IF(B77="","",IF(beallitasok!$B$6="","",beallitasok!$B$6)) -> NYITÓ | D77: =IF(B77="","",ROUND(ZARO_FOKONYV!C77+ZARO_FOKONYV!D77,0)) -> 46260 | E77: =IF(B77="","",LEFT(IF(ZARO_FOKONYV!C77>0,IFERROR(VLOOKUP(ZARO_FOKONYV!$A77,FKCSERE!$A:$B,2,FALSE),ZARO_FOKONYV!$A77),beallitasok!$B$3)&"00000",6)) -> 491000 | F77: =IF(B77="","",LEFT(IF(ZARO_FOKONYV!D77>0,IFERROR(VLOOKUP(ZARO_FOKONYV!$A77,FKCSERE!$A:$B,2,FALSE),ZARO_FOKONYV!$A77),beallitasok!$B$3)&"000000",6)) -> 463100 | H77: =IF(LEFT(E77,3)=LEFT(beallitasok!$B$3,3),"",$B77) ->  | I77: =IF(LEFT(F77,3)=LEFT(beallitasok!$B$3,3),"",$B77) -> Egészségügyi hozzájárulás | J77: =IF(AND(LEN(ZARO_FOKONYV!A77)<LEN(ZARO_FOKONYV!A78),LEFT(ZARO_FOKONYV!A78,LEN(ZARO_FOKONYV!A77))=ZARO_FOKONYV!A77),"IGEN","nem") -> nem
A78: =IFERROR(IF(OR(AND(beallitasok!$H$5="IGEN",J78="IGEN"),B78="",VALUE(LEFT(F78,LEN(beallitasok!$H$2)))=beallitasok!$H$2,VALUE(LEFT(E78,LEN(beallitasok!$H$3)))=beallitasok!$H$3,VALUE(LEFT(F78,LEN(beallitasok!$H$2)))=beallitasok!$H$3,VALUE(LEFT(E78,LEN(beallitasok!$H$3)))=beallitasok!$H$2),"",IF(D78="","",beallitasok!$B$2)),"") -> 2020-12-31 | B78: =IF(VALUE(LEFT(ZARO_FOKONYV!A78,1))<=beallitasok!$H$8,ZARO_FOKONYV!B78,"") -> Külön fel nem sorolt befizetési kötelezettségek | C78: =IF(B78="","",IF(beallitasok!$B$6="","",beallitasok!$B$6)) -> NYITÓ | D78: =IF(B78="","",ROUND(ZARO_FOKONYV!C78+ZARO_FOKONYV!D78,0)) -> 3000 | E78: =IF(B78="","",LEFT(IF(ZARO_FOKONYV!C78>0,IFERROR(VLOOKUP(ZARO_FOKONYV!$A78,FKCSERE!$A:$B,2,FALSE),ZARO_FOKONYV!$A78),beallitasok!$B$3)&"00000",6)) -> 491000 | F78: =IF(B78="","",LEFT(IF(ZARO_FOKONYV!D78>0,IFERROR(VLOOKUP(ZARO_FOKONYV!$A78,FKCSERE!$A:$B,2,FALSE),ZARO_FOKONYV!$A78),beallitasok!$B$3)&"000000",6)) -> 463110 | H78: =IF(LEFT(E78,3)=LEFT(beallitasok!$B$3,3),"",$B78) ->  | I78: =IF(LEFT(F78,3)=LEFT(beallitasok!$B$3,3),"",$B78) -> Külön fel nem sorolt befizetési kötelezettségek | J78: =IF(AND(LEN(ZARO_FOKONYV!A78)<LEN(ZARO_FOKONYV!A79),LEFT(ZARO_FOKONYV!A79,LEN(ZARO_FOKONYV!A78))=ZARO_FOKONYV!A78),"IGEN","nem") -> nem
A79: =IFERROR(IF(OR(AND(beallitasok!$H$5="IGEN",J79="IGEN"),B79="",VALUE(LEFT(F79,LEN(beallitasok!$H$2)))=beallitasok!$H$2,VALUE(LEFT(E79,LEN(beallitasok!$H$3)))=beallitasok!$H$3,VALUE(LEFT(F79,LEN(beallitasok!$H$2)))=beallitasok!$H$3,VALUE(LEFT(E79,LEN(beallitasok!$H$3)))=beallitasok!$H$2),"",IF(D79="","",beallitasok!$B$2)),"") -> 2020-12-31 | B79: =IF(VALUE(LEFT(ZARO_FOKONYV!A79,1))<=beallitasok!$H$8,ZARO_FOKONYV!B79,"") -> APEH NYBA | C79: =IF(B79="","",IF(beallitasok!$B$6="","",beallitasok!$B$6)) -> NYITÓ | D79: =IF(B79="","",ROUND(ZARO_FOKONYV!C79+ZARO_FOKONYV!D79,0)) -> 148000 | E79: =IF(B79="","",LEFT(IF(ZARO_FOKONYV!C79>0,IFERROR(VLOOKUP(ZARO_FOKONYV!$A79,FKCSERE!$A:$B,2,FALSE),ZARO_FOKONYV!$A79),beallitasok!$B$3)&"00000",6)) -> 491000 | F79: =IF(B79="","",LEFT(IF(ZARO_FOKONYV!D79>0,IFERROR(VLOOKUP(ZARO_FOKONYV!$A79,FKCSERE!$A:$B,2,FALSE),ZARO_FOKONYV!$A79),beallitasok!$B$3)&"000000",6)) -> 463120 | H79: =IF(LEFT(E79,3)=LEFT(beallitasok!$B$3,3),"",$B79) ->  | I79: =IF(LEFT(F79,3)=LEFT(beallitasok!$B$3,3),"",$B79) -> APEH NYBA | J79: =IF(AND(LEN(ZARO_FOKONYV!A79)<LEN(ZARO_FOKONYV!A80),LEFT(ZARO_FOKONYV!A80,LEN(ZARO_FOKONYV!A79))=ZARO_FOKONYV!A79),"IGEN","nem") -> nem
A80: =IFERROR(IF(OR(AND(beallitasok!$H$5="IGEN",J80="IGEN"),B80="",VALUE(LEFT(F80,LEN(beallitasok!$H$2)))=beallitasok!$H$2,VALUE(LEFT(E80,LEN(beallitasok!$H$3)))=beallitasok!$H$3,VALUE(LEFT(F80,LEN(beallitasok!$H$2)))=beallitasok!$H$3,VALUE(LEFT(E80,LEN(beallitasok!$H$3)))=beallitasok!$H$2),"",IF(D80="","",beallitasok!$B$2)),"") -> 2020-12-31 | B80: =IF(VALUE(LEFT(ZARO_FOKONYV!A80,1))<=beallitasok!$H$8,ZARO_FOKONYV!B80,"") -> APEH EBA | C80: =IF(B80="","",IF(beallitasok!$B$6="","",beallitasok!$B$6)) -> NYITÓ | D80: =IF(B80="","",ROUND(ZARO_FOKONYV!C80+ZARO_FOKONYV!D80,0)) -> 126000 | E80: =IF(B80="","",LEFT(IF(ZARO_FOKONYV!C80>0,IFERROR(VLOOKUP(ZARO_FOKONYV!$A80,FKCSERE!$A:$B,2,FALSE),ZARO_FOKONYV!$A80),beallitasok!$B$3)&"00000",6)) -> 491000 | F80: =IF(B80="","",LEFT(IF(ZARO_FOKONYV!D80>0,IFERROR(VLOOKUP(ZARO_FOKONYV!$A80,FKCSERE!$A:$B,2,FALSE),ZARO_FOKONYV!$A80),beallitasok!$B$3)&"000000",6)) -> 463130 | H80: =IF(LEFT(E80,3)=LEFT(beallitasok!$B$3,3),"",$B80) ->  | I80: =IF(LEFT(F80,3)=LEFT(beallitasok!$B$3,3),"",$B80) -> APEH EBA | J80: =IF(AND(LEN(ZARO_FOKONYV!A80)<LEN(ZARO_FOKONYV!A81),LEFT(ZARO_FOKONYV!A81,LEN(ZARO_FOKONYV!A80))=ZARO_FOKONYV!A80),"IGEN","nem") -> nem
A81: =IFERROR(IF(OR(AND(beallitasok!$H$5="IGEN",J81="IGEN"),B81="",VALUE(LEFT(F81,LEN(beallitasok!$H$2)))=beallitasok!$H$2,VALUE(LEFT(E81,LEN(beallitasok!$H$3)))=beallitasok!$H$3,VALUE(LEFT(F81,LEN(beallitasok!$H$2)))=beallitasok!$H$3,VALUE(LEFT(E81,LEN(beallitasok!$H$3)))=beallitasok!$H$2),"",IF(D81="","",beallitasok!$B$2)),"") -> 2020-12-31 | B81: =IF(VALUE(LEFT(ZARO_FOKONYV!A81,1))<=beallitasok!$H$8,ZARO_FOKONYV!B81,"") -> APEH SZOCHO | C81: =IF(B81="","",IF(beallitasok!$B$6="","",beallitasok!$B$6)) -> NYITÓ | D81: =IF(B81="","",ROUND(ZARO_FOKONYV!C81+ZARO_FOKONYV!D81,0)) -> 367000 | E81: =IF(B81="","",LEFT(IF(ZARO_FOKONYV!C81>0,IFERROR(VLOOKUP(ZARO_FOKONYV!$A81,FKCSERE!$A:$B,2,FALSE),ZARO_FOKONYV!$A81),beallitasok!$B$3)&"00000",6)) -> 491000 | F81: =IF(B81="","",LEFT(IF(ZARO_FOKONYV!D81>0,IFERROR(VLOOKUP(ZARO_FOKONYV!$A81,FKCSERE!$A:$B,2,FALSE),ZARO_FOKONYV!$A81),beallitasok!$B$3)&"000000",6)) -> 463160 | H81: =IF(LEFT(E81,3)=LEFT(beallitasok!$B$3,3),"",$B81) ->  | I81: =IF(LEFT(F81,3)=LEFT(beallitasok!$B$3,3),"",$B81) -> APEH SZOCHO | J81: =IF(AND(LEN(ZARO_FOKONYV!A81)<LEN(ZARO_FOKONYV!A82),LEFT(ZARO_FOKONYV!A82,LEN(ZARO_FOKONYV!A81))=ZARO_FOKONYV!A81),"IGEN","nem") -> nem
A82: =IFERROR(IF(OR(AND(beallitasok!$H$5="IGEN",J82="IGEN"),B82="",VALUE(LEFT(F82,LEN(beallitasok!$H$2)))=beallitasok!$H$2,VALUE(LEFT(E82,LEN(beallitasok!$H$3)))=beallitasok!$H$3,VALUE(LEFT(F82,LEN(beallitasok!$H$2)))=beallitasok!$H$3,VALUE(LEFT(E82,LEN(beallitasok!$H$3)))=beallitasok!$H$2),"",IF(D82="","",beallitasok!$B$2)),"") -> 2020-12-31 | B82: =IF(VALUE(LEFT(ZARO_FOKONYV!A82,1))<=beallitasok!$H$8,ZARO_FOKONYV!B82,"") -> Előzetesen felszámított ÁFA | C82: =IF(B82="","",IF(beallitasok!$B$6="","",beallitasok!$B$6)) -> NYITÓ | D82: =IF(B82="","",ROUND(ZARO_FOKONYV!C82+ZARO_FOKONYV!D82,0)) -> 0 | E82: =IF(B82="","",LEFT(IF(ZARO_FOKONYV!C82>0,IFERROR(VLOOKUP(ZARO_FOKONYV!$A82,FKCSERE!$A:$B,2,FALSE),ZARO_FOKONYV!$A82),beallitasok!$B$3)&"00000",6)) -> 491000 | F82: =IF(B82="","",LEFT(IF(ZARO_FOKONYV!D82>0,IFERROR(VLOOKUP(ZARO_FOKONYV!$A82,FKCSERE!$A:$B,2,FALSE),ZARO_FOKONYV!$A82),beallitasok!$B$3)&"000000",6)) -> 491000 | H82: =IF(LEFT(E82,3)=LEFT(beallitasok!$B$3,3),"",$B82) ->  | I82: =IF(LEFT(F82,3)=LEFT(beallitasok!$B$3,3),"",$B82) ->  | J82: =IF(AND(LEN(ZARO_FOKONYV!A82)<LEN(ZARO_FOKONYV!A83),LEFT(ZARO_FOKONYV!A83,LEN(ZARO_FOKONYV!A82))=ZARO_FOKONYV!A82),"IGEN","nem") -> nem
A83: =IFERROR(IF(OR(AND(beallitasok!$H$5="IGEN",J83="IGEN"),B83="",VALUE(LEFT(F83,LEN(beallitasok!$H$2)))=beallitasok!$H$2,VALUE(LEFT(E83,LEN(beallitasok!$H$3)))=beallitasok!$H$3,VALUE(LEFT(F83,LEN(beallitasok!$H$2)))=beallitasok!$H$3,VALUE(LEFT(E83,LEN(beallitasok!$H$3)))=beallitasok!$H$2),"",IF(D83="","",beallitasok!$B$2)),"") -> 2020-12-31 | B83: =IF(VALUE(LEFT(ZARO_FOKONYV!A83,1))<=beallitasok!$H$8,ZARO_FOKONYV!B83,"") -> Fizetendő általános forgalmi adó | C83: =IF(B83="","",IF(beallitasok!$B$6="","",beallitasok!$B$6)) -> NYITÓ | D83: =IF(B83="","",ROUND(ZARO_FOKONYV!C83+ZARO_FOKONYV!D83,0)) -> 0 | E83: =IF(B83="","",LEFT(IF(ZARO_FOKONYV!C83>0,IFERROR(VLOOKUP(ZARO_FOKONYV!$A83,FKCSERE!$A:$B,2,FALSE),ZARO_FOKONYV!$A83),beallitasok!$B$3)&"00000",6)) -> 491000 | F83: =IF(B83="","",LEFT(IF(ZARO_FOKONYV!D83>0,IFERROR(VLOOKUP(ZARO_FOKONYV!$A83,FKCSERE!$A:$B,2,FALSE),ZARO_FOKONYV!$A83),beallitasok!$B$3)&"000000",6)) -> 491000 | H83: =IF(LEFT(E83,3)=LEFT(beallitasok!$B$3,3),"",$B83) ->  | I83: =IF(LEFT(F83,3)=LEFT(beallitasok!$B$3,3),"",$B83) ->  | J83: =IF(AND(LEN(ZARO_FOKONYV!A83)<LEN(ZARO_FOKONYV!A84),LEFT(ZARO_FOKONYV!A84,LEN(ZARO_FOKONYV!A83))=ZARO_FOKONYV!A83),"IGEN","nem") -> nem
A84: =IFERROR(IF(OR(AND(beallitasok!$H$5="IGEN",J84="IGEN"),B84="",VALUE(LEFT(F84,LEN(beallitasok!$H$2)))=beallitasok!$H$2,VALUE(LEFT(E84,LEN(beallitasok!$H$3)))=beallitasok!$H$3,VALUE(LEFT(F84,LEN(beallitasok!$H$2)))=beallitasok!$H$3,VALUE(LEFT(E84,LEN(beallitasok!$H$3)))=beallitasok!$H$2),"",IF(D84="","",beallitasok!$B$2)),"") -> 2020-12-31 | B84: =IF(VALUE(LEFT(ZARO_FOKONYV!A84,1))<=beallitasok!$H$8,ZARO_FOKONYV!B84,"") -> Általános forgalmi adó elszámolási számla | C84: =IF(B84="","",IF(beallitasok!$B$6="","",beallitasok!$B$6)) -> NYITÓ | D84: =IF(B84="","",ROUND(ZARO_FOKONYV!C84+ZARO_FOKONYV!D84,0)) -> 6293166 | E84: =IF(B84="","",LEFT(IF(ZARO_FOKONYV!C84>0,IFERROR(VLOOKUP(ZARO_FOKONYV!$A84,FKCSERE!$A:$B,2,FALSE),ZARO_FOKONYV!$A84),beallitasok!$B$3)&"00000",6)) -> 491000 | F84: =IF(B84="","",LEFT(IF(ZARO_FOKONYV!D84>0,IFERROR(VLOOKUP(ZARO_FOKONYV!$A84,FKCSERE!$A:$B,2,FALSE),ZARO_FOKONYV!$A84),beallitasok!$B$3)&"000000",6)) -> 468000 | H84: =IF(LEFT(E84,3)=LEFT(beallitasok!$B$3,3),"",$B84) ->  | I84: =IF(LEFT(F84,3)=LEFT(beallitasok!$B$3,3),"",$B84) -> Általános forgalmi adó elszámolási számla | J84: =IF(AND(LEN(ZARO_FOKONYV!A84)<LEN(ZARO_FOKONYV!A85),LEFT(ZARO_FOKONYV!A85,LEN(ZARO_FOKONYV!A84))=ZARO_FOKONYV!A84),"IGEN","nem") -> nem
A85: =IFERROR(IF(OR(AND(beallitasok!$H$5="IGEN",J85="IGEN"),B85="",VALUE(LEFT(F85,LEN(beallitasok!$H$2)))=beallitasok!$H$2,VALUE(LEFT(E85,LEN(beallitasok!$H$3)))=beallitasok!$H$3,VALUE(LEFT(F85,LEN(beallitasok!$H$2)))=beallitasok!$H$3,VALUE(LEFT(E85,LEN(beallitasok!$H$3)))=beallitasok!$H$2),"",IF(D85="","",beallitasok!$B$2)),"") ->  | B85: =IF(VALUE(LEFT(ZARO_FOKONYV!A85,1))<=beallitasok!$H$8,ZARO_FOKONYV!B85,"") -> Helyi adók elszámolási számla | C85: =IF(B85="","",IF(beallitasok!$B$6="","",beallitasok!$B$6)) -> NYITÓ | D85: =IF(B85="","",ROUND(ZARO_FOKONYV!C85+ZARO_FOKONYV!D85,0)) -> 87635 | E85: =IF(B85="","",LEFT(IF(ZARO_FOKONYV!C85>0,IFERROR(VLOOKUP(ZARO_FOKONYV!$A85,FKCSERE!$A:$B,2,FALSE),ZARO_FOKONYV!$A85),beallitasok!$B$3)&"00000",6)) -> 469000 | F85: =IF(B85="","",LEFT(IF(ZARO_FOKONYV!D85>0,IFERROR(VLOOKUP(ZARO_FOKONYV!$A85,FKCSERE!$A:$B,2,FALSE),ZARO_FOKONYV!$A85),beallitasok!$B$3)&"000000",6)) -> 491000 | H85: =IF(LEFT(E85,3)=LEFT(beallitasok!$B$3,3),"",$B85) -> Helyi adók elszámolási számla | I85: =IF(LEFT(F85,3)=LEFT(beallitasok!$B$3,3),"",$B85) ->  | J85: =IF(AND(LEN(ZARO_FOKONYV!A85)<LEN(ZARO_FOKONYV!A86),LEFT(ZARO_FOKONYV!A86,LEN(ZARO_FOKONYV!A85))=ZARO_FOKONYV!A85),"IGEN","nem") -> IGEN
A86: =IFERROR(IF(OR(AND(beallitasok!$H$5="IGEN",J86="IGEN"),B86="",VALUE(LEFT(F86,LEN(beallitasok!$H$2)))=beallitasok!$H$2,VALUE(LEFT(E86,LEN(beallitasok!$H$3)))=beallitasok!$H$3,VALUE(LEFT(F86,LEN(beallitasok!$H$2)))=beallitasok!$H$3,VALUE(LEFT(E86,LEN(beallitasok!$H$3)))=beallitasok!$H$2),"",IF(D86="","",beallitasok!$B$2)),"") -> 2020-12-31 | B86: =IF(VALUE(LEFT(ZARO_FOKONYV!A86,1))<=beallitasok!$H$8,ZARO_FOKONYV!B86,"") -> Helyi iparűzési adó elszámolási számla | C86: =IF(B86="","",IF(beallitasok!$B$6="","",beallitasok!$B$6)) -> NYITÓ | D86: =IF(B86="","",ROUND(ZARO_FOKONYV!C86+ZARO_FOKONYV!D86,0)) -> 87635 | E86: =IF(B86="","",LEFT(IF(ZARO_FOKONYV!C86>0,IFERROR(VLOOKUP(ZARO_FOKONYV!$A86,FKCSERE!$A:$B,2,FALSE),ZARO_FOKONYV!$A86),beallitasok!$B$3)&"00000",6)) -> 469500 | F86: =IF(B86="","",LEFT(IF(ZARO_FOKONYV!D86>0,IFERROR(VLOOKUP(ZARO_FOKONYV!$A86,FKCSERE!$A:$B,2,FALSE),ZARO_FOKONYV!$A86),beallitasok!$B$3)&"000000",6)) -> 491000 | H86: =IF(LEFT(E86,3)=LEFT(beallitasok!$B$3,3),"",$B86) -> Helyi iparűzési adó elszámolási számla | I86: =IF(LEFT(F86,3)=LEFT(beallitasok!$B$3,3),"",$B86) ->  | J86: =IF(AND(LEN(ZARO_FOKONYV!A86)<LEN(ZARO_FOKONYV!A87),LEFT(ZARO_FOKONYV!A87,LEN(ZARO_FOKONYV!A86))=ZARO_FOKONYV!A86),"IGEN","nem") -> nem
A87: =IFERROR(IF(OR(AND(beallitasok!$H$5="IGEN",J87="IGEN"),B87="",VALUE(LEFT(F87,LEN(beallitasok!$H$2)))=beallitasok!$H$2,VALUE(LEFT(E87,LEN(beallitasok!$H$3)))=beallitasok!$H$3,VALUE(LEFT(F87,LEN(beallitasok!$H$2)))=beallitasok!$H$3,VALUE(LEFT(E87,LEN(beallitasok!$H$3)))=beallitasok!$H$2),"",IF(D87="","",beallitasok!$B$2)),"") -> 2020-12-31 | B87: =IF(VALUE(LEFT(ZARO_FOKONYV!A87,1))<=beallitasok!$H$8,ZARO_FOKONYV!B87,"") -> Gépjárműadó elszámolási számla | C87: =IF(B87="","",IF(beallitasok!$B$6="","",beallitasok!$B$6)) -> NYITÓ | D87: =IF(B87="","",ROUND(ZARO_FOKONYV!C87+ZARO_FOKONYV!D87,0)) -> 0 | E87: =IF(B87="","",LEFT(IF(ZARO_FOKONYV!C87>0,IFERROR(VLOOKUP(ZARO_FOKONYV!$A87,FKCSERE!$A:$B,2,FALSE),ZARO_FOKONYV!$A87),beallitasok!$B$3)&"00000",6)) -> 491000 | F87: =IF(B87="","",LEFT(IF(ZARO_FOKONYV!D87>0,IFERROR(VLOOKUP(ZARO_FOKONYV!$A87,FKCSERE!$A:$B,2,FALSE),ZARO_FOKONYV!$A87),beallitasok!$B$3)&"000000",6)) -> 491000 | H87: =IF(LEFT(E87,3)=LEFT(beallitasok!$B$3,3),"",$B87) ->  | I87: =IF(LEFT(F87,3)=LEFT(beallitasok!$B$3,3),"",$B87) ->  | J87: =IF(AND(LEN(ZARO_FOKONYV!A87)<LEN(ZARO_FOKONYV!A88),LEFT(ZARO_FOKONYV!A88,LEN(ZARO_FOKONYV!A87))=ZARO_FOKONYV!A87),"IGEN","nem") -> nem
A88: =IFERROR(IF(OR(AND(beallitasok!$H$5="IGEN",J88="IGEN"),B88="",VALUE(LEFT(F88,LEN(beallitasok!$H$2)))=beallitasok!$H$2,VALUE(LEFT(E88,LEN(beallitasok!$H$3)))=beallitasok!$H$3,VALUE(LEFT(F88,LEN(beallitasok!$H$2)))=beallitasok!$H$3,VALUE(LEFT(E88,LEN(beallitasok!$H$3)))=beallitasok!$H$2),"",IF(D88="","",beallitasok!$B$2)),"") ->  | B88: =IF(VALUE(LEFT(ZARO_FOKONYV!A88,1))<=beallitasok!$H$8,ZARO_FOKONYV!B88,"") -> Jövedelemadó elszámolási számla | C88: =IF(B88="","",IF(beallitasok!$B$6="","",beallitasok!$B$6)) -> NYITÓ | D88: =IF(B88="","",ROUND(ZARO_FOKONYV!C88+ZARO_FOKONYV!D88,0)) -> 131837 | E88: =IF(B88="","",LEFT(IF(ZARO_FOKONYV!C88>0,IFERROR(VLOOKUP(ZARO_FOKONYV!$A88,FKCSERE!$A:$B,2,FALSE),ZARO_FOKONYV!$A88),beallitasok!$B$3)&"00000",6)) -> 491000 | F88: =IF(B88="","",LEFT(IF(ZARO_FOKONYV!D88>0,IFERROR(VLOOKUP(ZARO_FOKONYV!$A88,FKCSERE!$A:$B,2,FALSE),ZARO_FOKONYV!$A88),beallitasok!$B$3)&"000000",6)) -> 471000 | H88: =IF(LEFT(E88,3)=LEFT(beallitasok!$B$3,3),"",$B88) ->  | I88: =IF(LEFT(F88,3)=LEFT(beallitasok!$B$3,3),"",$B88) -> Jövedelemadó elszámolási számla | J88: =IF(AND(LEN(ZARO_FOKONYV!A88)<LEN(ZARO_FOKONYV!A89),LEFT(ZARO_FOKONYV!A89,LEN(ZARO_FOKONYV!A88))=ZARO_FOKONYV!A88),"IGEN","nem") -> IGEN
A89: =IFERROR(IF(OR(AND(beallitasok!$H$5="IGEN",J89="IGEN"),B89="",VALUE(LEFT(F89,LEN(beallitasok!$H$2)))=beallitasok!$H$2,VALUE(LEFT(E89,LEN(beallitasok!$H$3)))=beallitasok!$H$3,VALUE(LEFT(F89,LEN(beallitasok!$H$2)))=beallitasok!$H$3,VALUE(LEFT(E89,LEN(beallitasok!$H$3)))=beallitasok!$H$2),"",IF(D89="","",beallitasok!$B$2)),"") -> 2020-12-31 | B89: =IF(VALUE(LEFT(ZARO_FOKONYV!A89,1))<=beallitasok!$H$8,ZARO_FOKONYV!B89,"") -> Keresetelszámolási számla | C89: =IF(B89="","",IF(beallitasok!$B$6="","",beallitasok!$B$6)) -> NYITÓ | D89: =IF(B89="","",ROUND(ZARO_FOKONYV!C89+ZARO_FOKONYV!D89,0)) -> 131837 | E89: =IF(B89="","",LEFT(IF(ZARO_FOKONYV!C89>0,IFERROR(VLOOKUP(ZARO_FOKONYV!$A89,FKCSERE!$A:$B,2,FALSE),ZARO_FOKONYV!$A89),beallitasok!$B$3)&"00000",6)) -> 491000 | F89: =IF(B89="","",LEFT(IF(ZARO_FOKONYV!D89>0,IFERROR(VLOOKUP(ZARO_FOKONYV!$A89,FKCSERE!$A:$B,2,FALSE),ZARO_FOKONYV!$A89),beallitasok!$B$3)&"000000",6)) -> 471100 | H89: =IF(LEFT(E89,3)=LEFT(beallitasok!$B$3,3),"",$B89) ->  | I89: =IF(LEFT(F89,3)=LEFT(beallitasok!$B$3,3),"",$B89) -> Keresetelszámolási számla | J89: =IF(AND(LEN(ZARO_FOKONYV!A89)<LEN(ZARO_FOKONYV!A90),LEFT(ZARO_FOKONYV!A90,LEN(ZARO_FOKONYV!A89))=ZARO_FOKONYV!A89),"IGEN","nem") -> nem
A90: =IFERROR(IF(OR(AND(beallitasok!$H$5="IGEN",J90="IGEN"),B90="",VALUE(LEFT(F90,LEN(beallitasok!$H$2)))=beallitasok!$H$2,VALUE(LEFT(E90,LEN(beallitasok!$H$3)))=beallitasok!$H$3,VALUE(LEFT(F90,LEN(beallitasok!$H$2)))=beallitasok!$H$3,VALUE(LEFT(E90,LEN(beallitasok!$H$3)))=beallitasok!$H$2),"",IF(D90="","",beallitasok!$B$2)),"") -> 2020-12-31 | B90: =IF(VALUE(LEFT(ZARO_FOKONYV!A90,1))<=beallitasok!$H$8,ZARO_FOKONYV!B90,"") -> Társadalombiztosítási kötelezettség | C90: =IF(B90="","",IF(beallitasok!$B$6="","",beallitasok!$B$6)) -> NYITÓ | D90: =IF(B90="","",ROUND(ZARO_FOKONYV!C90+ZARO_FOKONYV!D90,0)) -> 190000 | E90: =IF(B90="","",LEFT(IF(ZARO_FOKONYV!C90>0,IFERROR(VLOOKUP(ZARO_FOKONYV!$A90,FKCSERE!$A:$B,2,FALSE),ZARO_FOKONYV!$A90),beallitasok!$B$3)&"00000",6)) -> 491000 | F90: =IF(B90="","",LEFT(IF(ZARO_FOKONYV!D90>0,IFERROR(VLOOKUP(ZARO_FOKONYV!$A90,FKCSERE!$A:$B,2,FALSE),ZARO_FOKONYV!$A90),beallitasok!$B$3)&"000000",6)) -> 473000 | H90: =IF(LEFT(E90,3)=LEFT(beallitasok!$B$3,3),"",$B90) ->  | I90: =IF(LEFT(F90,3)=LEFT(beallitasok!$B$3,3),"",$B90) -> Társadalombiztosítási kötelezettség | J90: =IF(AND(LEN(ZARO_FOKONYV!A90)<LEN(ZARO_FOKONYV!A91),LEFT(ZARO_FOKONYV!A91,LEN(ZARO_FOKONYV!A90))=ZARO_FOKONYV!A90),"IGEN","nem") -> nem
A91: =IFERROR(IF(OR(AND(beallitasok!$H$5="IGEN",J91="IGEN"),B91="",VALUE(LEFT(F91,LEN(beallitasok!$H$2)))=beallitasok!$H$2,VALUE(LEFT(E91,LEN(beallitasok!$H$3)))=beallitasok!$H$3,VALUE(LEFT(F91,LEN(beallitasok!$H$2)))=beallitasok!$H$3,VALUE(LEFT(E91,LEN(beallitasok!$H$3)))=beallitasok!$H$2),"",IF(D91="","",beallitasok!$B$2)),"") ->  | B91: =IF(VALUE(LEFT(ZARO_FOKONYV!A91,1))<=beallitasok!$H$8,ZARO_FOKONYV!B91,"") -> Elkülönített alapokkal kapcsolatos fizetési kötelezettségek | C91: =IF(B91="","",IF(beallitasok!$B$6="","",beallitasok!$B$6)) -> NYITÓ | D91: =IF(B91="","",ROUND(ZARO_FOKONYV!C91+ZARO_FOKONYV!D91,0)) -> 32000 | E91: =IF(B91="","",LEFT(IF(ZARO_FOKONYV!C91>0,IFERROR(VLOOKUP(ZARO_FOKONYV!$A91,FKCSERE!$A:$B,2,FALSE),ZARO_FOKONYV!$A91),beallitasok!$B$3)&"00000",6)) -> 491000 | F91: =IF(B91="","",LEFT(IF(ZARO_FOKONYV!D91>0,IFERROR(VLOOKUP(ZARO_FOKONYV!$A91,FKCSERE!$A:$B,2,FALSE),ZARO_FOKONYV!$A91),beallitasok!$B$3)&"000000",6)) -> 474000 | H91: =IF(LEFT(E91,3)=LEFT(beallitasok!$B$3,3),"",$B91) ->  | I91: =IF(LEFT(F91,3)=LEFT(beallitasok!$B$3,3),"",$B91) -> Elkülönített alapokkal kapcsolatos fizetési kötelezettségek | J91: =IF(AND(LEN(ZARO_FOKONYV!A91)<LEN(ZARO_FOKONYV!A92),LEFT(ZARO_FOKONYV!A92,LEN(ZARO_FOKONYV!A91))=ZARO_FOKONYV!A91),"IGEN","nem") -> IGEN
A92: =IFERROR(IF(OR(AND(beallitasok!$H$5="IGEN",J92="IGEN"),B92="",VALUE(LEFT(F92,LEN(beallitasok!$H$2)))=beallitasok!$H$2,VALUE(LEFT(E92,LEN(beallitasok!$H$3)))=beallitasok!$H$3,VALUE(LEFT(F92,LEN(beallitasok!$H$2)))=beallitasok!$H$3,VALUE(LEFT(E92,LEN(beallitasok!$H$3)))=beallitasok!$H$2),"",IF(D92="","",beallitasok!$B$2)),"") -> 2020-12-31 | B92: =IF(VALUE(LEFT(ZARO_FOKONYV!A92,1))<=beallitasok!$H$8,ZARO_FOKONYV!B92,"") -> Szakképzési hozzájárulás | C92: =IF(B92="","",IF(beallitasok!$B$6="","",beallitasok!$B$6)) -> NYITÓ | D92: =IF(B92="","",ROUND(ZARO_FOKONYV!C92+ZARO_FOKONYV!D92,0)) -> 32000 | E92: =IF(B92="","",LEFT(IF(ZARO_FOKONYV!C92>0,IFERROR(VLOOKUP(ZARO_FOKONYV!$A92,FKCSERE!$A:$B,2,FALSE),ZARO_FOKONYV!$A92),beallitasok!$B$3)&"00000",6)) -> 491000 | F92: =IF(B92="","",LEFT(IF(ZARO_FOKONYV!D92>0,IFERROR(VLOOKUP(ZARO_FOKONYV!$A92,FKCSERE!$A:$B,2,FALSE),ZARO_FOKONYV!$A92),beallitasok!$B$3)&"000000",6)) -> 474200 | H92: =IF(LEFT(E92,3)=LEFT(beallitasok!$B$3,3),"",$B92) ->  | I92: =IF(LEFT(F92,3)=LEFT(beallitasok!$B$3,3),"",$B92) -> Szakképzési hozzájárulás | J92: =IF(AND(LEN(ZARO_FOKONYV!A92)<LEN(ZARO_FOKONYV!A93),LEFT(ZARO_FOKONYV!A93,LEN(ZARO_FOKONYV!A92))=ZARO_FOKONYV!A92),"IGEN","nem") -> nem
A93: =IFERROR(IF(OR(AND(beallitasok!$H$5="IGEN",J93="IGEN"),B93="",VALUE(LEFT(F93,LEN(beallitasok!$H$2)))=beallitasok!$H$2,VALUE(LEFT(E93,LEN(beallitasok!$H$3)))=beallitasok!$H$3,VALUE(LEFT(F93,LEN(beallitasok!$H$2)))=beallitasok!$H$3,VALUE(LEFT(E93,LEN(beallitasok!$H$3)))=beallitasok!$H$2),"",IF(D93="","",beallitasok!$B$2)),"") ->  | B93: =IF(VALUE(LEFT(ZARO_FOKONYV!A93,1))<=beallitasok!$H$8,ZARO_FOKONYV!B93,"") -> PASSZÍV IDŐBELI ELHATÁROLÁSOK | C93: =IF(B93="","",IF(beallitasok!$B$6="","",beallitasok!$B$6)) -> NYITÓ | D93: =IF(B93="","",ROUND(ZARO_FOKONYV!C93+ZARO_FOKONYV!D93,0)) -> 186437 | E93: =IF(B93="","",LEFT(IF(ZARO_FOKONYV!C93>0,IFERROR(VLOOKUP(ZARO_FOKONYV!$A93,FKCSERE!$A:$B,2,FALSE),ZARO_FOKONYV!$A93),beallitasok!$B$3)&"00000",6)) -> 491000 | F93: =IF(B93="","",LEFT(IF(ZARO_FOKONYV!D93>0,IFERROR(VLOOKUP(ZARO_FOKONYV!$A93,FKCSERE!$A:$B,2,FALSE),ZARO_FOKONYV!$A93),beallitasok!$B$3)&"000000",6)) -> 480000 | H93: =IF(LEFT(E93,3)=LEFT(beallitasok!$B$3,3),"",$B93) ->  | I93: =IF(LEFT(F93,3)=LEFT(beallitasok!$B$3,3),"",$B93) -> PASSZÍV IDŐBELI ELHATÁROLÁSOK | J93: =IF(AND(LEN(ZARO_FOKONYV!A93)<LEN(ZARO_FOKONYV!A94),LEFT(ZARO_FOKONYV!A94,LEN(ZARO_FOKONYV!A93))=ZARO_FOKONYV!A93),"IGEN","nem") -> IGEN
A94: =IFERROR(IF(OR(AND(beallitasok!$H$5="IGEN",J94="IGEN"),B94="",VALUE(LEFT(F94,LEN(beallitasok!$H$2)))=beallitasok!$H$2,VALUE(LEFT(E94,LEN(beallitasok!$H$3)))=beallitasok!$H$3,VALUE(LEFT(F94,LEN(beallitasok!$H$2)))=beallitasok!$H$3,VALUE(LEFT(E94,LEN(beallitasok!$H$3)))=beallitasok!$H$2),"",IF(D94="","",beallitasok!$B$2)),"") ->  | B94: =IF(VALUE(LEFT(ZARO_FOKONYV!A94,1))<=beallitasok!$H$8,ZARO_FOKONYV!B94,"") -> Bevételek passzív időbeli elhatárolása | C94: =IF(B94="","",IF(beallitasok!$B$6="","",beallitasok!$B$6)) -> NYITÓ | D94: =IF(B94="","",ROUND(ZARO_FOKONYV!C94+ZARO_FOKONYV!D94,0)) -> 0 | E94: =IF(B94="","",LEFT(IF(ZARO_FOKONYV!C94>0,IFERROR(VLOOKUP(ZARO_FOKONYV!$A94,FKCSERE!$A:$B,2,FALSE),ZARO_FOKONYV!$A94),beallitasok!$B$3)&"00000",6)) -> 491000 | F94: =IF(B94="","",LEFT(IF(ZARO_FOKONYV!D94>0,IFERROR(VLOOKUP(ZARO_FOKONYV!$A94,FKCSERE!$A:$B,2,FALSE),ZARO_FOKONYV!$A94),beallitasok!$B$3)&"000000",6)) -> 491000 | H94: =IF(LEFT(E94,3)=LEFT(beallitasok!$B$3,3),"",$B94) ->  | I94: =IF(LEFT(F94,3)=LEFT(beallitasok!$B$3,3),"",$B94) ->  | J94: =IF(AND(LEN(ZARO_FOKONYV!A94)<LEN(ZARO_FOKONYV!A95),LEFT(ZARO_FOKONYV!A95,LEN(ZARO_FOKONYV!A94))=ZARO_FOKONYV!A94),"IGEN","nem") -> IGEN
A95: =IFERROR(IF(OR(AND(beallitasok!$H$5="IGEN",J95="IGEN"),B95="",VALUE(LEFT(F95,LEN(beallitasok!$H$2)))=beallitasok!$H$2,VALUE(LEFT(E95,LEN(beallitasok!$H$3)))=beallitasok!$H$3,VALUE(LEFT(F95,LEN(beallitasok!$H$2)))=beallitasok!$H$3,VALUE(LEFT(E95,LEN(beallitasok!$H$3)))=beallitasok!$H$2),"",IF(D95="","",beallitasok!$B$2)),"") -> 2020-12-31 | B95: =IF(VALUE(LEFT(ZARO_FOKONYV!A95,1))<=beallitasok!$H$8,ZARO_FOKONYV!B95,"") -> Befolyt, elszámolt bevételek elhatárolása | C95: =IF(B95="","",IF(beallitasok!$B$6="","",beallitasok!$B$6)) -> NYITÓ | D95: =IF(B95="","",ROUND(ZARO_FOKONYV!C95+ZARO_FOKONYV!D95,0)) -> 0 | E95: =IF(B95="","",LEFT(IF(ZARO_FOKONYV!C95>0,IFERROR(VLOOKUP(ZARO_FOKONYV!$A95,FKCSERE!$A:$B,2,FALSE),ZARO_FOKONYV!$A95),beallitasok!$B$3)&"00000",6)) -> 491000 | F95: =IF(B95="","",LEFT(IF(ZARO_FOKONYV!D95>0,IFERROR(VLOOKUP(ZARO_FOKONYV!$A95,FKCSERE!$A:$B,2,FALSE),ZARO_FOKONYV!$A95),beallitasok!$B$3)&"000000",6)) -> 491000 | H95: =IF(LEFT(E95,3)=LEFT(beallitasok!$B$3,3),"",$B95) ->  | I95: =IF(LEFT(F95,3)=LEFT(beallitasok!$B$3,3),"",$B95) ->  | J95: =IF(AND(LEN(ZARO_FOKONYV!A95)<LEN(ZARO_FOKONYV!A96),LEFT(ZARO_FOKONYV!A96,LEN(ZARO_FOKONYV!A95))=ZARO_FOKONYV!A95),"IGEN","nem") -> nem
A96: =IFERROR(IF(OR(AND(beallitasok!$H$5="IGEN",J96="IGEN"),B96="",VALUE(LEFT(F96,LEN(beallitasok!$H$2)))=beallitasok!$H$2,VALUE(LEFT(E96,LEN(beallitasok!$H$3)))=beallitasok!$H$3,VALUE(LEFT(F96,LEN(beallitasok!$H$2)))=beallitasok!$H$3,VALUE(LEFT(E96,LEN(beallitasok!$H$3)))=beallitasok!$H$2),"",IF(D96="","",beallitasok!$B$2)),"") ->  | B96: =IF(VALUE(LEFT(ZARO_FOKONYV!A96,1))<=beallitasok!$H$8,ZARO_FOKONYV!B96,"") -> Költségek, ráfordítások passzív időbeli elhatárolása | C96: =IF(B96="","",IF(beallitasok!$B$6="","",beallitasok!$B$6)) -> NYITÓ | D96: =IF(B96="","",ROUND(ZARO_FOKONYV!C96+ZARO_FOKONYV!D96,0)) -> 186437 | E96: =IF(B96="","",LEFT(IF(ZARO_FOKONYV!C96>0,IFERROR(VLOOKUP(ZARO_FOKONYV!$A96,FKCSERE!$A:$B,2,FALSE),ZARO_FOKONYV!$A96),beallitasok!$B$3)&"00000",6)) -> 491000 | F96: =IF(B96="","",LEFT(IF(ZARO_FOKONYV!D96>0,IFERROR(VLOOKUP(ZARO_FOKONYV!$A96,FKCSERE!$A:$B,2,FALSE),ZARO_FOKONYV!$A96),beallitasok!$B$3)&"000000",6)) -> 482000 | H96: =IF(LEFT(E96,3)=LEFT(beallitasok!$B$3,3),"",$B96) ->  | I96: =IF(LEFT(F96,3)=LEFT(beallitasok!$B$3,3),"",$B96) -> Költségek, ráfordítások passzív időbeli elhatárolása | J96: =IF(AND(LEN(ZARO_FOKONYV!A96)<LEN(ZARO_FOKONYV!A97),LEFT(ZARO_FOKONYV!A97,LEN(ZARO_FOKONYV!A96))=ZARO_FOKONYV!A96),"IGEN","nem") -> IGEN
A97: =IFERROR(IF(OR(AND(beallitasok!$H$5="IGEN",J97="IGEN"),B97="",VALUE(LEFT(F97,LEN(beallitasok!$H$2)))=beallitasok!$H$2,VALUE(LEFT(E97,LEN(beallitasok!$H$3)))=beallitasok!$H$3,VALUE(LEFT(F97,LEN(beallitasok!$H$2)))=beallitasok!$H$3,VALUE(LEFT(E97,LEN(beallitasok!$H$3)))=beallitasok!$H$2),"",IF(D97="","",beallitasok!$B$2)),"") -> 2020-12-31 | B97: =IF(VALUE(LEFT(ZARO_FOKONYV!A97,1))<=beallitasok!$H$8,ZARO_FOKONYV!B97,"") -> Mérlegfordulónap előtti időszakot terhelő költségek, ráfordítások elhatárolása | C97: =IF(B97="","",IF(beallitasok!$B$6="","",beallitasok!$B$6)) -> NYITÓ | D97: =IF(B97="","",ROUND(ZARO_FOKONYV!C97+ZARO_FOKONYV!D97,0)) -> 186437 | E97: =IF(B97="","",LEFT(IF(ZARO_FOKONYV!C97>0,IFERROR(VLOOKUP(ZARO_FOKONYV!$A97,FKCSERE!$A:$B,2,FALSE),ZARO_FOKONYV!$A97),beallitasok!$B$3)&"00000",6)) -> 491000 | F97: =IF(B97="","",LEFT(IF(ZARO_FOKONYV!D97>0,IFERROR(VLOOKUP(ZARO_FOKONYV!$A97,FKCSERE!$A:$B,2,FALSE),ZARO_FOKONYV!$A97),beallitasok!$B$3)&"000000",6)) -> 482100 | H97: =IF(LEFT(E97,3)=LEFT(beallitasok!$B$3,3),"",$B97) ->  | I97: =IF(LEFT(F97,3)=LEFT(beallitasok!$B$3,3),"",$B97) -> Mérlegfordulónap előtti időszakot terhelő költségek, ráfordítások elhatárolása | J97: =IF(AND(LEN(ZARO_FOKONYV!A97)<LEN(ZARO_FOKONYV!A98),LEFT(ZARO_FOKONYV!A98,LEN(ZARO_FOKONYV!A97))=ZARO_FOKONYV!A97),"IGEN","nem") -> nem
A98: =IFERROR(IF(OR(AND(beallitasok!$H$5="IGEN",J98="IGEN"),B98="",VALUE(LEFT(F98,LEN(beallitasok!$H$2)))=beallitasok!$H$2,VALUE(LEFT(E98,LEN(beallitasok!$H$3)))=beallitasok!$H$3,VALUE(LEFT(F98,LEN(beallitasok!$H$2)))=beallitasok!$H$3,VALUE(LEFT(E98,LEN(beallitasok!$H$3)))=beallitasok!$H$2),"",IF(D98="","",beallitasok!$B$2)),"") ->  | B98: =IF(VALUE(LEFT(ZARO_FOKONYV!A98,1))<=beallitasok!$H$8,ZARO_FOKONYV!B98,"") -> ÉVI MÉRLEGSZÁMLÁK | C98: =IF(B98="","",IF(beallitasok!$B$6="","",beallitasok!$B$6)) -> NYITÓ | D98: =IF(B98="","",ROUND(ZARO_FOKONYV!C98+ZARO_FOKONYV!D98,0)) -> 0 | E98: =IF(B98="","",LEFT(IF(ZARO_FOKONYV!C98>0,IFERROR(VLOOKUP(ZARO_FOKONYV!$A98,FKCSERE!$A:$B,2,FALSE),ZARO_FOKONYV!$A98),beallitasok!$B$3)&"00000",6)) -> 491000 | F98: =IF(B98="","",LEFT(IF(ZARO_FOKONYV!D98>0,IFERROR(VLOOKUP(ZARO_FOKONYV!$A98,FKCSERE!$A:$B,2,FALSE),ZARO_FOKONYV!$A98),beallitasok!$B$3)&"000000",6)) -> 491000 | H98: =IF(LEFT(E98,3)=LEFT(beallitasok!$B$3,3),"",$B98) ->  | I98: =IF(LEFT(F98,3)=LEFT(beallitasok!$B$3,3),"",$B98) ->  | J98: =IF(AND(LEN(ZARO_FOKONYV!A98)<LEN(ZARO_FOKONYV!A99),LEFT(ZARO_FOKONYV!A99,LEN(ZARO_FOKONYV!A98))=ZARO_FOKONYV!A98),"IGEN","nem") -> IGEN
A99: =IFERROR(IF(OR(AND(beallitasok!$H$5="IGEN",J99="IGEN"),B99="",VALUE(LEFT(F99,LEN(beallitasok!$H$2)))=beallitasok!$H$2,VALUE(LEFT(E99,LEN(beallitasok!$H$3)))=beallitasok!$H$3,VALUE(LEFT(F99,LEN(beallitasok!$H$2)))=beallitasok!$H$3,VALUE(LEFT(E99,LEN(beallitasok!$H$3)))=beallitasok!$H$2),"",IF(D99="","",beallitasok!$B$2)),"") -> 2020-12-31 | B99: =IF(VALUE(LEFT(ZARO_FOKONYV!A99,1))<=beallitasok!$H$8,ZARO_FOKONYV!B99,"") -> Nyitómérleg számla | C99: =IF(B99="","",IF(beallitasok!$B$6="","",beallitasok!$B$6)) -> NYITÓ | D99: =IF(B99="","",ROUND(ZARO_FOKONYV!C99+ZARO_FOKONYV!D99,0)) -> 0 | E99: =IF(B99="","",LEFT(IF(ZARO_FOKONYV!C99>0,IFERROR(VLOOKUP(ZARO_FOKONYV!$A99,FKCSERE!$A:$B,2,FALSE),ZARO_FOKONYV!$A99),beallitasok!$B$3)&"00000",6)) -> 491000 | F99: =IF(B99="","",LEFT(IF(ZARO_FOKONYV!D99>0,IFERROR(VLOOKUP(ZARO_FOKONYV!$A99,FKCSERE!$A:$B,2,FALSE),ZARO_FOKONYV!$A99),beallitasok!$B$3)&"000000",6)) -> 491000 | H99: =IF(LEFT(E99,3)=LEFT(beallitasok!$B$3,3),"",$B99) ->  | I99: =IF(LEFT(F99,3)=LEFT(beallitasok!$B$3,3),"",$B99) ->  | J99: =IF(AND(LEN(ZARO_FOKONYV!A99)<LEN(ZARO_FOKONYV!A100),LEFT(ZARO_FOKONYV!A100,LEN(ZARO_FOKONYV!A99))=ZARO_FOKONYV!A99),"IGEN","nem") -> nem
A100: =IFERROR(IF(OR(AND(beallitasok!$H$5="IGEN",J100="IGEN"),B100="",VALUE(LEFT(F100,LEN(beallitasok!$H$2)))=beallitasok!$H$2,VALUE(LEFT(E100,LEN(beallitasok!$H$3)))=beallitasok!$H$3,VALUE(LEFT(F100,LEN(beallitasok!$H$2)))=beallitasok!$H$3,VALUE(LEFT(E100,LEN(beallitasok!$H$3)))=beallitasok!$H$2),"",IF(D100="","",beallitasok!$B$2)),"") -> 2020-12-31 | B100: =IF(VALUE(LEFT(ZARO_FOKONYV!A100,1))<=beallitasok!$H$8,ZARO_FOKONYV!B100,"") -> Adózott eredmény elszámolása | C100: =IF(B100="","",IF(beallitasok!$B$6="","",beallitasok!$B$6)) -> NYITÓ | D100: =IF(B100="","",ROUND(ZARO_FOKONYV!C100+ZARO_FOKONYV!D100,0)) -> 0 | E100: =IF(B100="","",LEFT(IF(ZARO_FOKONYV!C100>0,IFERROR(VLOOKUP(ZARO_FOKONYV!$A100,FKCSERE!$A:$B,2,FALSE),ZARO_FOKONYV!$A100),beallitasok!$B$3)&"00000",6)) -> 491000 | F100: =IF(B100="","",LEFT(IF(ZARO_FOKONYV!D100>0,IFERROR(VLOOKUP(ZARO_FOKONYV!$A100,FKCSERE!$A:$B,2,FALSE),ZARO_FOKONYV!$A100),beallitasok!$B$3)&"000000",6)) -> 491000 | H100: =IF(LEFT(E100,3)=LEFT(beallitasok!$B$3,3),"",$B100) ->  | I100: =IF(LEFT(F100,3)=LEFT(beallitasok!$B$3,3),"",$B100) ->  | J100: =IF(AND(LEN(ZARO_FOKONYV!A100)<LEN(ZARO_FOKONYV!A101),LEFT(ZARO_FOKONYV!A101,LEN(ZARO_FOKONYV!A100))=ZARO_FOKONYV!A100),"IGEN","nem") -> nem
A101: =IFERROR(IF(OR(AND(beallitasok!$H$5="IGEN",J101="IGEN"),B101="",VALUE(LEFT(F101,LEN(beallitasok!$H$2)))=beallitasok!$H$2,VALUE(LEFT(E101,LEN(beallitasok!$H$3)))=beallitasok!$H$3,VALUE(LEFT(F101,LEN(beallitasok!$H$2)))=beallitasok!$H$3,VALUE(LEFT(E101,LEN(beallitasok!$H$3)))=beallitasok!$H$2),"",IF(D101="","",beallitasok!$B$2)),"") ->  | B101: =IF(VALUE(LEFT(ZARO_FOKONYV!A101,1))<=beallitasok!$H$8,ZARO_FOKONYV!B101,"") -> KÖLTSÉGNEMEK | C101: =IF(B101="","",IF(beallitasok!$B$6="","",beallitasok!$B$6)) -> NYITÓ | D101: =IF(B101="","",ROUND(ZARO_FOKONYV!C101+ZARO_FOKONYV!D101,0)) -> 21115639 | E101: =IF(B101="","",LEFT(IF(ZARO_FOKONYV!C101>0,IFERROR(VLOOKUP(ZARO_FOKONYV!$A101,FKCSERE!$A:$B,2,FALSE),ZARO_FOKONYV!$A101),beallitasok!$B$3)&"00000",6)) -> 500000 | F101: =IF(B101="","",LEFT(IF(ZARO_FOKONYV!D101>0,IFERROR(VLOOKUP(ZARO_FOKONYV!$A101,FKCSERE!$A:$B,2,FALSE),ZARO_FOKONYV!$A101),beallitasok!$B$3)&"000000",6)) -> 491000 | H101: =IF(LEFT(E101,3)=LEFT(beallitasok!$B$3,3),"",$B101) -> KÖLTSÉGNEMEK | I101: =IF(LEFT(F101,3)=LEFT(beallitasok!$B$3,3),"",$B101) ->  | J101: =IF(AND(LEN(ZARO_FOKONYV!A101)<LEN(ZARO_FOKONYV!A102),LEFT(ZARO_FOKONYV!A102,LEN(ZARO_FOKONYV!A101))=ZARO_FOKONYV!A101),"IGEN","nem") -> IGEN
A102: =IFERROR(IF(OR(AND(beallitasok!$H$5="IGEN",J102="IGEN"),B102="",VALUE(LEFT(F102,LEN(beallitasok!$H$2)))=beallitasok!$H$2,VALUE(LEFT(E102,LEN(beallitasok!$H$3)))=beallitasok!$H$3,VALUE(LEFT(F102,LEN(beallitasok!$H$2)))=beallitasok!$H$3,VALUE(LEFT(E102,LEN(beallitasok!$H$3)))=beallitasok!$H$2),"",IF(D102="","",beallitasok!$B$2)),"") ->  | B102: =IF(VALUE(LEFT(ZARO_FOKONYV!A102,1))<=beallitasok!$H$8,ZARO_FOKONYV!B102,"") -> ANYAGKÖLTSÉGEK | C102: =IF(B102="","",IF(beallitasok!$B$6="","",beallitasok!$B$6)) -> NYITÓ | D102: =IF(B102="","",ROUND(ZARO_FOKONYV!C102+ZARO_FOKONYV!D102,0)) -> 7744010 | E102: =IF(B102="","",LEFT(IF(ZARO_FOKONYV!C102>0,IFERROR(VLOOKUP(ZARO_FOKONYV!$A102,FKCSERE!$A:$B,2,FALSE),ZARO_FOKONYV!$A102),beallitasok!$B$3)&"00000",6)) -> 510000 | F102: =IF(B102="","",LEFT(IF(ZARO_FOKONYV!D102>0,IFERROR(VLOOKUP(ZARO_FOKONYV!$A102,FKCSERE!$A:$B,2,FALSE),ZARO_FOKONYV!$A102),beallitasok!$B$3)&"000000",6)) -> 491000 | H102: =IF(LEFT(E102,3)=LEFT(beallitasok!$B$3,3),"",$B102) -> ANYAGKÖLTSÉGEK | I102: =IF(LEFT(F102,3)=LEFT(beallitasok!$B$3,3),"",$B102) ->  | J102: =IF(AND(LEN(ZARO_FOKONYV!A102)<LEN(ZARO_FOKONYV!A103),LEFT(ZARO_FOKONYV!A103,LEN(ZARO_FOKONYV!A102))=ZARO_FOKONYV!A102),"IGEN","nem") -> IGEN
A103: =IFERROR(IF(OR(AND(beallitasok!$H$5="IGEN",J103="IGEN"),B103="",VALUE(LEFT(F103,LEN(beallitasok!$H$2)))=beallitasok!$H$2,VALUE(LEFT(E103,LEN(beallitasok!$H$3)))=beallitasok!$H$3,VALUE(LEFT(F103,LEN(beallitasok!$H$2)))=beallitasok!$H$3,VALUE(LEFT(E103,LEN(beallitasok!$H$3)))=beallitasok!$H$2),"",IF(D103="","",beallitasok!$B$2)),"") -> 2020-12-31 | B103: =IF(VALUE(LEFT(ZARO_FOKONYV!A103,1))<=beallitasok!$H$8,ZARO_FOKONYV!B103,"") -> Üzemanyag vás. | C103: =IF(B103="","",IF(beallitasok!$B$6="","",beallitasok!$B$6)) -> NYITÓ | D103: =IF(B103="","",ROUND(ZARO_FOKONYV!C103+ZARO_FOKONYV!D103,0)) -> 554843 | E103: =IF(B103="","",LEFT(IF(ZARO_FOKONYV!C103>0,IFERROR(VLOOKUP(ZARO_FOKONYV!$A103,FKCSERE!$A:$B,2,FALSE),ZARO_FOKONYV!$A103),beallitasok!$B$3)&"00000",6)) -> 511100 | F103: =IF(B103="","",LEFT(IF(ZARO_FOKONYV!D103>0,IFERROR(VLOOKUP(ZARO_FOKONYV!$A103,FKCSERE!$A:$B,2,FALSE),ZARO_FOKONYV!$A103),beallitasok!$B$3)&"000000",6)) -> 491000 | H103: =IF(LEFT(E103,3)=LEFT(beallitasok!$B$3,3),"",$B103) -> Üzemanyag vás. | I103: =IF(LEFT(F103,3)=LEFT(beallitasok!$B$3,3),"",$B103) ->  | J103: =IF(AND(LEN(ZARO_FOKONYV!A103)<LEN(ZARO_FOKONYV!A104),LEFT(ZARO_FOKONYV!A104,LEN(ZARO_FOKONYV!A103))=ZARO_FOKONYV!A103),"IGEN","nem") -> nem
A104: =IFERROR(IF(OR(AND(beallitasok!$H$5="IGEN",J104="IGEN"),B104="",VALUE(LEFT(F104,LEN(beallitasok!$H$2)))=beallitasok!$H$2,VALUE(LEFT(E104,LEN(beallitasok!$H$3)))=beallitasok!$H$3,VALUE(LEFT(F104,LEN(beallitasok!$H$2)))=beallitasok!$H$3,VALUE(LEFT(E104,LEN(beallitasok!$H$3)))=beallitasok!$H$2),"",IF(D104="","",beallitasok!$B$2)),"") -> 2020-12-31 | B104: =IF(VALUE(LEFT(ZARO_FOKONYV!A104,1))<=beallitasok!$H$8,ZARO_FOKONYV!B104,"") -> Alkatrész vás. | C104: =IF(B104="","",IF(beallitasok!$B$6="","",beallitasok!$B$6)) -> NYITÓ | D104: =IF(B104="","",ROUND(ZARO_FOKONYV!C104+ZARO_FOKONYV!D104,0)) -> 5524925 | E104: =IF(B104="","",LEFT(IF(ZARO_FOKONYV!C104>0,IFERROR(VLOOKUP(ZARO_FOKONYV!$A104,FKCSERE!$A:$B,2,FALSE),ZARO_FOKONYV!$A104),beallitasok!$B$3)&"00000",6)) -> 511200 | F104: =IF(B104="","",LEFT(IF(ZARO_FOKONYV!D104>0,IFERROR(VLOOKUP(ZARO_FOKONYV!$A104,FKCSERE!$A:$B,2,FALSE),ZARO_FOKONYV!$A104),beallitasok!$B$3)&"000000",6)) -> 491000 | H104: =IF(LEFT(E104,3)=LEFT(beallitasok!$B$3,3),"",$B104) -> Alkatrész vás. | I104: =IF(LEFT(F104,3)=LEFT(beallitasok!$B$3,3),"",$B104) ->  | J104: =IF(AND(LEN(ZARO_FOKONYV!A104)<LEN(ZARO_FOKONYV!A105),LEFT(ZARO_FOKONYV!A105,LEN(ZARO_FOKONYV!A104))=ZARO_FOKONYV!A104),"IGEN","nem") -> nem
A105: =IFERROR(IF(OR(AND(beallitasok!$H$5="IGEN",J105="IGEN"),B105="",VALUE(LEFT(F105,LEN(beallitasok!$H$2)))=beallitasok!$H$2,VALUE(LEFT(E105,LEN(beallitasok!$H$3)))=beallitasok!$H$3,VALUE(LEFT(F105,LEN(beallitasok!$H$2)))=beallitasok!$H$3,VALUE(LEFT(E105,LEN(beallitasok!$H$3)))=beallitasok!$H$2),"",IF(D105="","",beallitasok!$B$2)),"") -> 2020-12-31 | B105: =IF(VALUE(LEFT(ZARO_FOKONYV!A105,1))<=beallitasok!$H$8,ZARO_FOKONYV!B105,"") -> Egyéb anyag ktg. | C105: =IF(B105="","",IF(beallitasok!$B$6="","",beallitasok!$B$6)) -> NYITÓ | D105: =IF(B105="","",ROUND(ZARO_FOKONYV!C105+ZARO_FOKONYV!D105,0)) -> 1220633 | E105: =IF(B105="","",LEFT(IF(ZARO_FOKONYV!C105>0,IFERROR(VLOOKUP(ZARO_FOKONYV!$A105,FKCSERE!$A:$B,2,FALSE),ZARO_FOKONYV!$A105),beallitasok!$B$3)&"00000",6)) -> 512900 | F105: =IF(B105="","",LEFT(IF(ZARO_FOKONYV!D105>0,IFERROR(VLOOKUP(ZARO_FOKONYV!$A105,FKCSERE!$A:$B,2,FALSE),ZARO_FOKONYV!$A105),beallitasok!$B$3)&"000000",6)) -> 491000 | H105: =IF(LEFT(E105,3)=LEFT(beallitasok!$B$3,3),"",$B105) -> Egyéb anyag ktg. | I105: =IF(LEFT(F105,3)=LEFT(beallitasok!$B$3,3),"",$B105) ->  | J105: =IF(AND(LEN(ZARO_FOKONYV!A105)<LEN(ZARO_FOKONYV!A106),LEFT(ZARO_FOKONYV!A106,LEN(ZARO_FOKONYV!A105))=ZARO_FOKONYV!A105),"IGEN","nem") -> nem
A106: =IFERROR(IF(OR(AND(beallitasok!$H$5="IGEN",J106="IGEN"),B106="",VALUE(LEFT(F106,LEN(beallitasok!$H$2)))=beallitasok!$H$2,VALUE(LEFT(E106,LEN(beallitasok!$H$3)))=beallitasok!$H$3,VALUE(LEFT(F106,LEN(beallitasok!$H$2)))=beallitasok!$H$3,VALUE(LEFT(E106,LEN(beallitasok!$H$3)))=beallitasok!$H$2),"",IF(D106="","",beallitasok!$B$2)),"") -> 2020-12-31 | B106: =IF(VALUE(LEFT(ZARO_FOKONYV!A106,1))<=beallitasok!$H$8,ZARO_FOKONYV!B106,"") -> Közüzemi díjak | C106: =IF(B106="","",IF(beallitasok!$B$6="","",beallitasok!$B$6)) -> NYITÓ | D106: =IF(B106="","",ROUND(ZARO_FOKONYV!C106+ZARO_FOKONYV!D106,0)) -> 439491 | E106: =IF(B106="","",LEFT(IF(ZARO_FOKONYV!C106>0,IFERROR(VLOOKUP(ZARO_FOKONYV!$A106,FKCSERE!$A:$B,2,FALSE),ZARO_FOKONYV!$A106),beallitasok!$B$3)&"00000",6)) -> 513100 | F106: =IF(B106="","",LEFT(IF(ZARO_FOKONYV!D106>0,IFERROR(VLOOKUP(ZARO_FOKONYV!$A106,FKCSERE!$A:$B,2,FALSE),ZARO_FOKONYV!$A106),beallitasok!$B$3)&"000000",6)) -> 491000 | H106: =IF(LEFT(E106,3)=LEFT(beallitasok!$B$3,3),"",$B106) -> Közüzemi díjak | I106: =IF(LEFT(F106,3)=LEFT(beallitasok!$B$3,3),"",$B106) ->  | J106: =IF(AND(LEN(ZARO_FOKONYV!A106)<LEN(ZARO_FOKONYV!A107),LEFT(ZARO_FOKONYV!A107,LEN(ZARO_FOKONYV!A106))=ZARO_FOKONYV!A106),"IGEN","nem") -> nem
A107: =IFERROR(IF(OR(AND(beallitasok!$H$5="IGEN",J107="IGEN"),B107="",VALUE(LEFT(F107,LEN(beallitasok!$H$2)))=beallitasok!$H$2,VALUE(LEFT(E107,LEN(beallitasok!$H$3)))=beallitasok!$H$3,VALUE(LEFT(F107,LEN(beallitasok!$H$2)))=beallitasok!$H$3,VALUE(LEFT(E107,LEN(beallitasok!$H$3)))=beallitasok!$H$2),"",IF(D107="","",beallitasok!$B$2)),"") -> 2020-12-31 | B107: =IF(VALUE(LEFT(ZARO_FOKONYV!A107,1))<=beallitasok!$H$8,ZARO_FOKONYV!B107,"") -> Nyomtatvány, irodaszer | C107: =IF(B107="","",IF(beallitasok!$B$6="","",beallitasok!$B$6)) -> NYITÓ | D107: =IF(B107="","",ROUND(ZARO_FOKONYV!C107+ZARO_FOKONYV!D107,0)) -> 4118 | E107: =IF(B107="","",LEFT(IF(ZARO_FOKONYV!C107>0,IFERROR(VLOOKUP(ZARO_FOKONYV!$A107,FKCSERE!$A:$B,2,FALSE),ZARO_FOKONYV!$A107),beallitasok!$B$3)&"00000",6)) -> 513200 | F107: =IF(B107="","",LEFT(IF(ZARO_FOKONYV!D107>0,IFERROR(VLOOKUP(ZARO_FOKONYV!$A107,FKCSERE!$A:$B,2,FALSE),ZARO_FOKONYV!$A107),beallitasok!$B$3)&"000000",6)) -> 491000 | H107: =IF(LEFT(E107,3)=LEFT(beallitasok!$B$3,3),"",$B107) -> Nyomtatvány, irodaszer | I107: =IF(LEFT(F107,3)=LEFT(beallitasok!$B$3,3),"",$B107) ->  | J107: =IF(AND(LEN(ZARO_FOKONYV!A107)<LEN(ZARO_FOKONYV!A108),LEFT(ZARO_FOKONYV!A108,LEN(ZARO_FOKONYV!A107))=ZARO_FOKONYV!A107),"IGEN","nem") -> nem
A108: =IFERROR(IF(OR(AND(beallitasok!$H$5="IGEN",J108="IGEN"),B108="",VALUE(LEFT(F108,LEN(beallitasok!$H$2)))=beallitasok!$H$2,VALUE(LEFT(E108,LEN(beallitasok!$H$3)))=beallitasok!$H$3,VALUE(LEFT(F108,LEN(beallitasok!$H$2)))=beallitasok!$H$3,VALUE(LEFT(E108,LEN(beallitasok!$H$3)))=beallitasok!$H$2),"",IF(D108="","",beallitasok!$B$2)),"") ->  | B108: =IF(VALUE(LEFT(ZARO_FOKONYV!A108,1))<=beallitasok!$H$8,ZARO_FOKONYV!B108,"") -> IGÉNYBE VETT SZOLGÁLTATÁSOK KÖLTSÉGEI | C108: =IF(B108="","",IF(beallitasok!$B$6="","",beallitasok!$B$6)) -> NYITÓ | D108: =IF(B108="","",ROUND(ZARO_FOKONYV!C108+ZARO_FOKONYV!D108,0)) -> 5667885 | E108: =IF(B108="","",LEFT(IF(ZARO_FOKONYV!C108>0,IFERROR(VLOOKUP(ZARO_FOKONYV!$A108,FKCSERE!$A:$B,2,FALSE),ZARO_FOKONYV!$A108),beallitasok!$B$3)&"00000",6)) -> 520000 | F108: =IF(B108="","",LEFT(IF(ZARO_FOKONYV!D108>0,IFERROR(VLOOKUP(ZARO_FOKONYV!$A108,FKCSERE!$A:$B,2,FALSE),ZARO_FOKONYV!$A108),beallitasok!$B$3)&"000000",6)) -> 491000 | H108: =IF(LEFT(E108,3)=LEFT(beallitasok!$B$3,3),"",$B108) -> IGÉNYBE VETT SZOLGÁLTATÁSOK KÖLTSÉGEI | I108: =IF(LEFT(F108,3)=LEFT(beallitasok!$B$3,3),"",$B108) ->  | J108: =IF(AND(LEN(ZARO_FOKONYV!A108)<LEN(ZARO_FOKONYV!A109),LEFT(ZARO_FOKONYV!A109,LEN(ZARO_FOKONYV!A108))=ZARO_FOKONYV!A108),"IGEN","nem") -> IGEN
A109: =IFERROR(IF(OR(AND(beallitasok!$H$5="IGEN",J109="IGEN"),B109="",VALUE(LEFT(F109,LEN(beallitasok!$H$2)))=beallitasok!$H$2,VALUE(LEFT(E109,LEN(beallitasok!$H$3)))=beallitasok!$H$3,VALUE(LEFT(F109,LEN(beallitasok!$H$2)))=beallitasok!$H$3,VALUE(LEFT(E109,LEN(beallitasok!$H$3)))=beallitasok!$H$2),"",IF(D109="","",beallitasok!$B$2)),"") -> 2020-12-31 | B109: =IF(VALUE(LEFT(ZARO_FOKONYV!A109,1))<=beallitasok!$H$8,ZARO_FOKONYV!B109,"") -> Szállítás-rakodás, raktározás költségei | C109: =IF(B109="","",IF(beallitasok!$B$6="","",beallitasok!$B$6)) -> NYITÓ | D109: =IF(B109="","",ROUND(ZARO_FOKONYV!C109+ZARO_FOKONYV!D109,0)) -> 9865 | E109: =IF(B109="","",LEFT(IF(ZARO_FOKONYV!C109>0,IFERROR(VLOOKUP(ZARO_FOKONYV!$A109,FKCSERE!$A:$B,2,FALSE),ZARO_FOKONYV!$A109),beallitasok!$B$3)&"00000",6)) -> 521000 | F109: =IF(B109="","",LEFT(IF(ZARO_FOKONYV!D109>0,IFERROR(VLOOKUP(ZARO_FOKONYV!$A109,FKCSERE!$A:$B,2,FALSE),ZARO_FOKONYV!$A109),beallitasok!$B$3)&"000000",6)) -> 491000 | H109: =IF(LEFT(E109,3)=LEFT(beallitasok!$B$3,3),"",$B109) -> Szállítás-rakodás, raktározás költségei | I109: =IF(LEFT(F109,3)=LEFT(beallitasok!$B$3,3),"",$B109) ->  | J109: =IF(AND(LEN(ZARO_FOKONYV!A109)<LEN(ZARO_FOKONYV!A110),LEFT(ZARO_FOKONYV!A110,LEN(ZARO_FOKONYV!A109))=ZARO_FOKONYV!A109),"IGEN","nem") -> nem
A110: =IFERROR(IF(OR(AND(beallitasok!$H$5="IGEN",J110="IGEN"),B110="",VALUE(LEFT(F110,LEN(beallitasok!$H$2)))=beallitasok!$H$2,VALUE(LEFT(E110,LEN(beallitasok!$H$3)))=beallitasok!$H$3,VALUE(LEFT(F110,LEN(beallitasok!$H$2)))=beallitasok!$H$3,VALUE(LEFT(E110,LEN(beallitasok!$H$3)))=beallitasok!$H$2),"",IF(D110="","",beallitasok!$B$2)),"") -> 2020-12-31 | B110: =IF(VALUE(LEFT(ZARO_FOKONYV!A110,1))<=beallitasok!$H$8,ZARO_FOKONYV!B110,"") -> Bérleti díjak | C110: =IF(B110="","",IF(beallitasok!$B$6="","",beallitasok!$B$6)) -> NYITÓ | D110: =IF(B110="","",ROUND(ZARO_FOKONYV!C110+ZARO_FOKONYV!D110,0)) -> 1527114 | E110: =IF(B110="","",LEFT(IF(ZARO_FOKONYV!C110>0,IFERROR(VLOOKUP(ZARO_FOKONYV!$A110,FKCSERE!$A:$B,2,FALSE),ZARO_FOKONYV!$A110),beallitasok!$B$3)&"00000",6)) -> 522000 | F110: =IF(B110="","",LEFT(IF(ZARO_FOKONYV!D110>0,IFERROR(VLOOKUP(ZARO_FOKONYV!$A110,FKCSERE!$A:$B,2,FALSE),ZARO_FOKONYV!$A110),beallitasok!$B$3)&"000000",6)) -> 491000 | H110: =IF(LEFT(E110,3)=LEFT(beallitasok!$B$3,3),"",$B110) -> Bérleti díjak | I110: =IF(LEFT(F110,3)=LEFT(beallitasok!$B$3,3),"",$B110) ->  | J110: =IF(AND(LEN(ZARO_FOKONYV!A110)<LEN(ZARO_FOKONYV!A111),LEFT(ZARO_FOKONYV!A111,LEN(ZARO_FOKONYV!A110))=ZARO_FOKONYV!A110),"IGEN","nem") -> nem
A111: =IFERROR(IF(OR(AND(beallitasok!$H$5="IGEN",J111="IGEN"),B111="",VALUE(LEFT(F111,LEN(beallitasok!$H$2)))=beallitasok!$H$2,VALUE(LEFT(E111,LEN(beallitasok!$H$3)))=beallitasok!$H$3,VALUE(LEFT(F111,LEN(beallitasok!$H$2)))=beallitasok!$H$3,VALUE(LEFT(E111,LEN(beallitasok!$H$3)))=beallitasok!$H$2),"",IF(D111="","",beallitasok!$B$2)),"") -> 2020-12-31 | B111: =IF(VALUE(LEFT(ZARO_FOKONYV!A111,1))<=beallitasok!$H$8,ZARO_FOKONYV!B111,"") -> Karbantartási költségek | C111: =IF(B111="","",IF(beallitasok!$B$6="","",beallitasok!$B$6)) -> NYITÓ | D111: =IF(B111="","",ROUND(ZARO_FOKONYV!C111+ZARO_FOKONYV!D111,0)) -> 576654 | E111: =IF(B111="","",LEFT(IF(ZARO_FOKONYV!C111>0,IFERROR(VLOOKUP(ZARO_FOKONYV!$A111,FKCSERE!$A:$B,2,FALSE),ZARO_FOKONYV!$A111),beallitasok!$B$3)&"00000",6)) -> 523000 | F111: =IF(B111="","",LEFT(IF(ZARO_FOKONYV!D111>0,IFERROR(VLOOKUP(ZARO_FOKONYV!$A111,FKCSERE!$A:$B,2,FALSE),ZARO_FOKONYV!$A111),beallitasok!$B$3)&"000000",6)) -> 491000 | H111: =IF(LEFT(E111,3)=LEFT(beallitasok!$B$3,3),"",$B111) -> Karbantartási költségek | I111: =IF(LEFT(F111,3)=LEFT(beallitasok!$B$3,3),"",$B111) ->  | J111: =IF(AND(LEN(ZARO_FOKONYV!A111)<LEN(ZARO_FOKONYV!A112),LEFT(ZARO_FOKONYV!A112,LEN(ZARO_FOKONYV!A111))=ZARO_FOKONYV!A111),"IGEN","nem") -> nem
A112: =IFERROR(IF(OR(AND(beallitasok!$H$5="IGEN",J112="IGEN"),B112="",VALUE(LEFT(F112,LEN(beallitasok!$H$2)))=beallitasok!$H$2,VALUE(LEFT(E112,LEN(beallitasok!$H$3)))=beallitasok!$H$3,VALUE(LEFT(F112,LEN(beallitasok!$H$2)))=beallitasok!$H$3,VALUE(LEFT(E112,LEN(beallitasok!$H$3)))=beallitasok!$H$2),"",IF(D112="","",beallitasok!$B$2)),"") -> 2020-12-31 | B112: =IF(VALUE(LEFT(ZARO_FOKONYV!A112,1))<=beallitasok!$H$8,ZARO_FOKONYV!B112,"") -> Hírdetés, reklám, propaganda költségei | C112: =IF(B112="","",IF(beallitasok!$B$6="","",beallitasok!$B$6)) -> NYITÓ | D112: =IF(B112="","",ROUND(ZARO_FOKONYV!C112+ZARO_FOKONYV!D112,0)) -> 50000 | E112: =IF(B112="","",LEFT(IF(ZARO_FOKONYV!C112>0,IFERROR(VLOOKUP(ZARO_FOKONYV!$A112,FKCSERE!$A:$B,2,FALSE),ZARO_FOKONYV!$A112),beallitasok!$B$3)&"00000",6)) -> 524000 | F112: =IF(B112="","",LEFT(IF(ZARO_FOKONYV!D112>0,IFERROR(VLOOKUP(ZARO_FOKONYV!$A112,FKCSERE!$A:$B,2,FALSE),ZARO_FOKONYV!$A112),beallitasok!$B$3)&"000000",6)) -> 491000 | H112: =IF(LEFT(E112,3)=LEFT(beallitasok!$B$3,3),"",$B112) -> Hírdetés, reklám, propaganda költségei | I112: =IF(LEFT(F112,3)=LEFT(beallitasok!$B$3,3),"",$B112) ->  | J112: =IF(AND(LEN(ZARO_FOKONYV!A112)<LEN(ZARO_FOKONYV!A113),LEFT(ZARO_FOKONYV!A113,LEN(ZARO_FOKONYV!A112))=ZARO_FOKONYV!A112),"IGEN","nem") -> nem
A113: =IFERROR(IF(OR(AND(beallitasok!$H$5="IGEN",J113="IGEN"),B113="",VALUE(LEFT(F113,LEN(beallitasok!$H$2)))=beallitasok!$H$2,VALUE(LEFT(E113,LEN(beallitasok!$H$3)))=beallitasok!$H$3,VALUE(LEFT(F113,LEN(beallitasok!$H$2)))=beallitasok!$H$3,VALUE(LEFT(E113,LEN(beallitasok!$H$3)))=beallitasok!$H$2),"",IF(D113="","",beallitasok!$B$2)),"") -> 2020-12-31 | B113: =IF(VALUE(LEFT(ZARO_FOKONYV!A113,1))<=beallitasok!$H$8,ZARO_FOKONYV!B113,"") -> Oktatás és továbbképzés költségei | C113: =IF(B113="","",IF(beallitasok!$B$6="","",beallitasok!$B$6)) -> NYITÓ | D113: =IF(B113="","",ROUND(ZARO_FOKONYV!C113+ZARO_FOKONYV!D113,0)) -> 505000 | E113: =IF(B113="","",LEFT(IF(ZARO_FOKONYV!C113>0,IFERROR(VLOOKUP(ZARO_FOKONYV!$A113,FKCSERE!$A:$B,2,FALSE),ZARO_FOKONYV!$A113),beallitasok!$B$3)&"00000",6)) -> 525000 | F113: =IF(B113="","",LEFT(IF(ZARO_FOKONYV!D113>0,IFERROR(VLOOKUP(ZARO_FOKONYV!$A113,FKCSERE!$A:$B,2,FALSE),ZARO_FOKONYV!$A113),beallitasok!$B$3)&"000000",6)) -> 491000 | H113: =IF(LEFT(E113,3)=LEFT(beallitasok!$B$3,3),"",$B113) -> Oktatás és továbbképzés költségei | I113: =IF(LEFT(F113,3)=LEFT(beallitasok!$B$3,3),"",$B113) ->  | J113: =IF(AND(LEN(ZARO_FOKONYV!A113)<LEN(ZARO_FOKONYV!A114),LEFT(ZARO_FOKONYV!A114,LEN(ZARO_FOKONYV!A113))=ZARO_FOKONYV!A113),"IGEN","nem") -> nem
A114: =IFERROR(IF(OR(AND(beallitasok!$H$5="IGEN",J114="IGEN"),B114="",VALUE(LEFT(F114,LEN(beallitasok!$H$2)))=beallitasok!$H$2,VALUE(LEFT(E114,LEN(beallitasok!$H$3)))=beallitasok!$H$3,VALUE(LEFT(F114,LEN(beallitasok!$H$2)))=beallitasok!$H$3,VALUE(LEFT(E114,LEN(beallitasok!$H$3)))=beallitasok!$H$2),"",IF(D114="","",beallitasok!$B$2)),"") -> 2020-12-31 | B114: =IF(VALUE(LEFT(ZARO_FOKONYV!A114,1))<=beallitasok!$H$8,ZARO_FOKONYV!B114,"") -> Számviteli szolgáltatás | C114: =IF(B114="","",IF(beallitasok!$B$6="","",beallitasok!$B$6)) -> NYITÓ | D114: =IF(B114="","",ROUND(ZARO_FOKONYV!C114+ZARO_FOKONYV!D114,0)) -> 600000 | E114: =IF(B114="","",LEFT(IF(ZARO_FOKONYV!C114>0,IFERROR(VLOOKUP(ZARO_FOKONYV!$A114,FKCSERE!$A:$B,2,FALSE),ZARO_FOKONYV!$A114),beallitasok!$B$3)&"00000",6)) -> 527000 | F114: =IF(B114="","",LEFT(IF(ZARO_FOKONYV!D114>0,IFERROR(VLOOKUP(ZARO_FOKONYV!$A114,FKCSERE!$A:$B,2,FALSE),ZARO_FOKONYV!$A114),beallitasok!$B$3)&"000000",6)) -> 491000 | H114: =IF(LEFT(E114,3)=LEFT(beallitasok!$B$3,3),"",$B114) -> Számviteli szolgáltatás | I114: =IF(LEFT(F114,3)=LEFT(beallitasok!$B$3,3),"",$B114) ->  | J114: =IF(AND(LEN(ZARO_FOKONYV!A114)<LEN(ZARO_FOKONYV!A115),LEFT(ZARO_FOKONYV!A115,LEN(ZARO_FOKONYV!A114))=ZARO_FOKONYV!A114),"IGEN","nem") -> nem
A115: =IFERROR(IF(OR(AND(beallitasok!$H$5="IGEN",J115="IGEN"),B115="",VALUE(LEFT(F115,LEN(beallitasok!$H$2)))=beallitasok!$H$2,VALUE(LEFT(E115,LEN(beallitasok!$H$3)))=beallitasok!$H$3,VALUE(LEFT(F115,LEN(beallitasok!$H$2)))=beallitasok!$H$3,VALUE(LEFT(E115,LEN(beallitasok!$H$3)))=beallitasok!$H$2),"",IF(D115="","",beallitasok!$B$2)),"") -> 2020-12-31 | B115: =IF(VALUE(LEFT(ZARO_FOKONYV!A115,1))<=beallitasok!$H$8,ZARO_FOKONYV!B115,"") -> Posta, telefon dij | C115: =IF(B115="","",IF(beallitasok!$B$6="","",beallitasok!$B$6)) -> NYITÓ | D115: =IF(B115="","",ROUND(ZARO_FOKONYV!C115+ZARO_FOKONYV!D115,0)) -> 462679 | E115: =IF(B115="","",LEFT(IF(ZARO_FOKONYV!C115>0,IFERROR(VLOOKUP(ZARO_FOKONYV!$A115,FKCSERE!$A:$B,2,FALSE),ZARO_FOKONYV!$A115),beallitasok!$B$3)&"00000",6)) -> 529010 | F115: =IF(B115="","",LEFT(IF(ZARO_FOKONYV!D115>0,IFERROR(VLOOKUP(ZARO_FOKONYV!$A115,FKCSERE!$A:$B,2,FALSE),ZARO_FOKONYV!$A115),beallitasok!$B$3)&"000000",6)) -> 491000 | H115: =IF(LEFT(E115,3)=LEFT(beallitasok!$B$3,3),"",$B115) -> Posta, telefon dij | I115: =IF(LEFT(F115,3)=LEFT(beallitasok!$B$3,3),"",$B115) ->  | J115: =IF(AND(LEN(ZARO_FOKONYV!A115)<LEN(ZARO_FOKONYV!A116),LEFT(ZARO_FOKONYV!A116,LEN(ZARO_FOKONYV!A115))=ZARO_FOKONYV!A115),"IGEN","nem") -> nem
A116: =IFERROR(IF(OR(AND(beallitasok!$H$5="IGEN",J116="IGEN"),B116="",VALUE(LEFT(F116,LEN(beallitasok!$H$2)))=beallitasok!$H$2,VALUE(LEFT(E116,LEN(beallitasok!$H$3)))=beallitasok!$H$3,VALUE(LEFT(F116,LEN(beallitasok!$H$2)))=beallitasok!$H$3,VALUE(LEFT(E116,LEN(beallitasok!$H$3)))=beallitasok!$H$2),"",IF(D116="","",beallitasok!$B$2)),"") -> 2020-12-31 | B116: =IF(VALUE(LEFT(ZARO_FOKONYV!A116,1))<=beallitasok!$H$8,ZARO_FOKONYV!B116,"") -> Autópálya, parkolási dij | C116: =IF(B116="","",IF(beallitasok!$B$6="","",beallitasok!$B$6)) -> NYITÓ | D116: =IF(B116="","",ROUND(ZARO_FOKONYV!C116+ZARO_FOKONYV!D116,0)) -> 110969 | E116: =IF(B116="","",LEFT(IF(ZARO_FOKONYV!C116>0,IFERROR(VLOOKUP(ZARO_FOKONYV!$A116,FKCSERE!$A:$B,2,FALSE),ZARO_FOKONYV!$A116),beallitasok!$B$3)&"00000",6)) -> 529020 | F116: =IF(B116="","",LEFT(IF(ZARO_FOKONYV!D116>0,IFERROR(VLOOKUP(ZARO_FOKONYV!$A116,FKCSERE!$A:$B,2,FALSE),ZARO_FOKONYV!$A116),beallitasok!$B$3)&"000000",6)) -> 491000 | H116: =IF(LEFT(E116,3)=LEFT(beallitasok!$B$3,3),"",$B116) -> Autópálya, parkolási dij | I116: =IF(LEFT(F116,3)=LEFT(beallitasok!$B$3,3),"",$B116) ->  | J116: =IF(AND(LEN(ZARO_FOKONYV!A116)<LEN(ZARO_FOKONYV!A117),LEFT(ZARO_FOKONYV!A117,LEN(ZARO_FOKONYV!A116))=ZARO_FOKONYV!A116),"IGEN","nem") -> nem
A117: =IFERROR(IF(OR(AND(beallitasok!$H$5="IGEN",J117="IGEN"),B117="",VALUE(LEFT(F117,LEN(beallitasok!$H$2)))=beallitasok!$H$2,VALUE(LEFT(E117,LEN(beallitasok!$H$3)))=beallitasok!$H$3,VALUE(LEFT(F117,LEN(beallitasok!$H$2)))=beallitasok!$H$3,VALUE(LEFT(E117,LEN(beallitasok!$H$3)))=beallitasok!$H$2),"",IF(D117="","",beallitasok!$B$2)),"") -> 2020-12-31 | B117: =IF(VALUE(LEFT(ZARO_FOKONYV!A117,1))<=beallitasok!$H$8,ZARO_FOKONYV!B117,"") -> Egyéb szolgáltatás | C117: =IF(B117="","",IF(beallitasok!$B$6="","",beallitasok!$B$6)) -> NYITÓ | D117: =IF(B117="","",ROUND(ZARO_FOKONYV!C117+ZARO_FOKONYV!D117,0)) -> 1825604 | E117: =IF(B117="","",LEFT(IF(ZARO_FOKONYV!C117>0,IFERROR(VLOOKUP(ZARO_FOKONYV!$A117,FKCSERE!$A:$B,2,FALSE),ZARO_FOKONYV!$A117),beallitasok!$B$3)&"00000",6)) -> 529100 | F117: =IF(B117="","",LEFT(IF(ZARO_FOKONYV!D117>0,IFERROR(VLOOKUP(ZARO_FOKONYV!$A117,FKCSERE!$A:$B,2,FALSE),ZARO_FOKONYV!$A117),beallitasok!$B$3)&"000000",6)) -> 491000 | H117: =IF(LEFT(E117,3)=LEFT(beallitasok!$B$3,3),"",$B117) -> Egyéb szolgáltatás | I117: =IF(LEFT(F117,3)=LEFT(beallitasok!$B$3,3),"",$B117) ->  | J117: =IF(AND(LEN(ZARO_FOKONYV!A117)<LEN(ZARO_FOKONYV!A118),LEFT(ZARO_FOKONYV!A118,LEN(ZARO_FOKONYV!A117))=ZARO_FOKONYV!A117),"IGEN","nem") -> nem
A118: =IFERROR(IF(OR(AND(beallitasok!$H$5="IGEN",J118="IGEN"),B118="",VALUE(LEFT(F118,LEN(beallitasok!$H$2)))=beallitasok!$H$2,VALUE(LEFT(E118,LEN(beallitasok!$H$3)))=beallitasok!$H$3,VALUE(LEFT(F118,LEN(beallitasok!$H$2)))=beallitasok!$H$3,VALUE(LEFT(E118,LEN(beallitasok!$H$3)))=beallitasok!$H$2),"",IF(D118="","",beallitasok!$B$2)),"") ->  | B118: =IF(VALUE(LEFT(ZARO_FOKONYV!A118,1))<=beallitasok!$H$8,ZARO_FOKONYV!B118,"") -> EGYÉB SZOLGÁLTATÁSOK KÖLTSÉGEI | C118: =IF(B118="","",IF(beallitasok!$B$6="","",beallitasok!$B$6)) -> NYITÓ | D118: =IF(B118="","",ROUND(ZARO_FOKONYV!C118+ZARO_FOKONYV!D118,0)) -> 1239728 | E118: =IF(B118="","",LEFT(IF(ZARO_FOKONYV!C118>0,IFERROR(VLOOKUP(ZARO_FOKONYV!$A118,FKCSERE!$A:$B,2,FALSE),ZARO_FOKONYV!$A118),beallitasok!$B$3)&"00000",6)) -> 530000 | F118: =IF(B118="","",LEFT(IF(ZARO_FOKONYV!D118>0,IFERROR(VLOOKUP(ZARO_FOKONYV!$A118,FKCSERE!$A:$B,2,FALSE),ZARO_FOKONYV!$A118),beallitasok!$B$3)&"000000",6)) -> 491000 | H118: =IF(LEFT(E118,3)=LEFT(beallitasok!$B$3,3),"",$B118) -> EGYÉB SZOLGÁLTATÁSOK KÖLTSÉGEI | I118: =IF(LEFT(F118,3)=LEFT(beallitasok!$B$3,3),"",$B118) ->  | J118: =IF(AND(LEN(ZARO_FOKONYV!A118)<LEN(ZARO_FOKONYV!A119),LEFT(ZARO_FOKONYV!A119,LEN(ZARO_FOKONYV!A118))=ZARO_FOKONYV!A118),"IGEN","nem") -> IGEN
A119: =IFERROR(IF(OR(AND(beallitasok!$H$5="IGEN",J119="IGEN"),B119="",VALUE(LEFT(F119,LEN(beallitasok!$H$2)))=beallitasok!$H$2,VALUE(LEFT(E119,LEN(beallitasok!$H$3)))=beallitasok!$H$3,VALUE(LEFT(F119,LEN(beallitasok!$H$2)))=beallitasok!$H$3,VALUE(LEFT(E119,LEN(beallitasok!$H$3)))=beallitasok!$H$2),"",IF(D119="","",beallitasok!$B$2)),"") -> 2020-12-31 | B119: =IF(VALUE(LEFT(ZARO_FOKONYV!A119,1))<=beallitasok!$H$8,ZARO_FOKONYV!B119,"") -> Hatósági igazgatási, szolgáltatási díjak, illetékek | C119: =IF(B119="","",IF(beallitasok!$B$6="","",beallitasok!$B$6)) -> NYITÓ | D119: =IF(B119="","",ROUND(ZARO_FOKONYV!C119+ZARO_FOKONYV!D119,0)) -> 6000 | E119: =IF(B119="","",LEFT(IF(ZARO_FOKONYV!C119>0,IFERROR(VLOOKUP(ZARO_FOKONYV!$A119,FKCSERE!$A:$B,2,FALSE),ZARO_FOKONYV!$A119),beallitasok!$B$3)&"00000",6)) -> 531000 | F119: =IF(B119="","",LEFT(IF(ZARO_FOKONYV!D119>0,IFERROR(VLOOKUP(ZARO_FOKONYV!$A119,FKCSERE!$A:$B,2,FALSE),ZARO_FOKONYV!$A119),beallitasok!$B$3)&"000000",6)) -> 491000 | H119: =IF(LEFT(E119,3)=LEFT(beallitasok!$B$3,3),"",$B119) -> Hatósági igazgatási, szolgáltatási díjak, illetékek | I119: =IF(LEFT(F119,3)=LEFT(beallitasok!$B$3,3),"",$B119) ->  | J119: =IF(AND(LEN(ZARO_FOKONYV!A119)<LEN(ZARO_FOKONYV!A120),LEFT(ZARO_FOKONYV!A120,LEN(ZARO_FOKONYV!A119))=ZARO_FOKONYV!A119),"IGEN","nem") -> nem
A120: =IFERROR(IF(OR(AND(beallitasok!$H$5="IGEN",J120="IGEN"),B120="",VALUE(LEFT(F120,LEN(beallitasok!$H$2)))=beallitasok!$H$2,VALUE(LEFT(E120,LEN(beallitasok!$H$3)))=beallitasok!$H$3,VALUE(LEFT(F120,LEN(beallitasok!$H$2)))=beallitasok!$H$3,VALUE(LEFT(E120,LEN(beallitasok!$H$3)))=beallitasok!$H$2),"",IF(D120="","",beallitasok!$B$2)),"") -> 2020-12-31 | B120: =IF(VALUE(LEFT(ZARO_FOKONYV!A120,1))<=beallitasok!$H$8,ZARO_FOKONYV!B120,"") -> Pénzügyi, befektetési szolgáltatási díjak | C120: =IF(B120="","",IF(beallitasok!$B$6="","",beallitasok!$B$6)) -> NYITÓ | D120: =IF(B120="","",ROUND(ZARO_FOKONYV!C120+ZARO_FOKONYV!D120,0)) -> 681179 | E120: =IF(B120="","",LEFT(IF(ZARO_FOKONYV!C120>0,IFERROR(VLOOKUP(ZARO_FOKONYV!$A120,FKCSERE!$A:$B,2,FALSE),ZARO_FOKONYV!$A120),beallitasok!$B$3)&"00000",6)) -> 532000 | F120: =IF(B120="","",LEFT(IF(ZARO_FOKONYV!D120>0,IFERROR(VLOOKUP(ZARO_FOKONYV!$A120,FKCSERE!$A:$B,2,FALSE),ZARO_FOKONYV!$A120),beallitasok!$B$3)&"000000",6)) -> 491000 | H120: =IF(LEFT(E120,3)=LEFT(beallitasok!$B$3,3),"",$B120) -> Pénzügyi, befektetési szolgáltatási díjak | I120: =IF(LEFT(F120,3)=LEFT(beallitasok!$B$3,3),"",$B120) ->  | J120: =IF(AND(LEN(ZARO_FOKONYV!A120)<LEN(ZARO_FOKONYV!A121),LEFT(ZARO_FOKONYV!A121,LEN(ZARO_FOKONYV!A120))=ZARO_FOKONYV!A120),"IGEN","nem") -> nem
A121: =IFERROR(IF(OR(AND(beallitasok!$H$5="IGEN",J121="IGEN"),B121="",VALUE(LEFT(F121,LEN(beallitasok!$H$2)))=beallitasok!$H$2,VALUE(LEFT(E121,LEN(beallitasok!$H$3)))=beallitasok!$H$3,VALUE(LEFT(F121,LEN(beallitasok!$H$2)))=beallitasok!$H$3,VALUE(LEFT(E121,LEN(beallitasok!$H$3)))=beallitasok!$H$2),"",IF(D121="","",beallitasok!$B$2)),"") -> 2020-12-31 | B121: =IF(VALUE(LEFT(ZARO_FOKONYV!A121,1))<=beallitasok!$H$8,ZARO_FOKONYV!B121,"") -> Biztosítási dij | C121: =IF(B121="","",IF(beallitasok!$B$6="","",beallitasok!$B$6)) -> NYITÓ | D121: =IF(B121="","",ROUND(ZARO_FOKONYV!C121+ZARO_FOKONYV!D121,0)) -> 552549 | E121: =IF(B121="","",LEFT(IF(ZARO_FOKONYV!C121>0,IFERROR(VLOOKUP(ZARO_FOKONYV!$A121,FKCSERE!$A:$B,2,FALSE),ZARO_FOKONYV!$A121),beallitasok!$B$3)&"00000",6)) -> 533000 | F121: =IF(B121="","",LEFT(IF(ZARO_FOKONYV!D121>0,IFERROR(VLOOKUP(ZARO_FOKONYV!$A121,FKCSERE!$A:$B,2,FALSE),ZARO_FOKONYV!$A121),beallitasok!$B$3)&"000000",6)) -> 491000 | H121: =IF(LEFT(E121,3)=LEFT(beallitasok!$B$3,3),"",$B121) -> Biztosítási dij | I121: =IF(LEFT(F121,3)=LEFT(beallitasok!$B$3,3),"",$B121) ->  | J121: =IF(AND(LEN(ZARO_FOKONYV!A121)<LEN(ZARO_FOKONYV!A122),LEFT(ZARO_FOKONYV!A122,LEN(ZARO_FOKONYV!A121))=ZARO_FOKONYV!A121),"IGEN","nem") -> nem
A122: =IFERROR(IF(OR(AND(beallitasok!$H$5="IGEN",J122="IGEN"),B122="",VALUE(LEFT(F122,LEN(beallitasok!$H$2)))=beallitasok!$H$2,VALUE(LEFT(E122,LEN(beallitasok!$H$3)))=beallitasok!$H$3,VALUE(LEFT(F122,LEN(beallitasok!$H$2)))=beallitasok!$H$3,VALUE(LEFT(E122,LEN(beallitasok!$H$3)))=beallitasok!$H$2),"",IF(D122="","",beallitasok!$B$2)),"") ->  | B122: =IF(VALUE(LEFT(ZARO_FOKONYV!A122,1))<=beallitasok!$H$8,ZARO_FOKONYV!B122,"") -> BÉRKÖLTSÉG | C122: =IF(B122="","",IF(beallitasok!$B$6="","",beallitasok!$B$6)) -> NYITÓ | D122: =IF(B122="","",ROUND(ZARO_FOKONYV!C122+ZARO_FOKONYV!D122,0)) -> 2137500 | E122: =IF(B122="","",LEFT(IF(ZARO_FOKONYV!C122>0,IFERROR(VLOOKUP(ZARO_FOKONYV!$A122,FKCSERE!$A:$B,2,FALSE),ZARO_FOKONYV!$A122),beallitasok!$B$3)&"00000",6)) -> 540000 | F122: =IF(B122="","",LEFT(IF(ZARO_FOKONYV!D122>0,IFERROR(VLOOKUP(ZARO_FOKONYV!$A122,FKCSERE!$A:$B,2,FALSE),ZARO_FOKONYV!$A122),beallitasok!$B$3)&"000000",6)) -> 491000 | H122: =IF(LEFT(E122,3)=LEFT(beallitasok!$B$3,3),"",$B122) -> BÉRKÖLTSÉG | I122: =IF(LEFT(F122,3)=LEFT(beallitasok!$B$3,3),"",$B122) ->  | J122: =IF(AND(LEN(ZARO_FOKONYV!A122)<LEN(ZARO_FOKONYV!A123),LEFT(ZARO_FOKONYV!A123,LEN(ZARO_FOKONYV!A122))=ZARO_FOKONYV!A122),"IGEN","nem") -> IGEN
A123: =IFERROR(IF(OR(AND(beallitasok!$H$5="IGEN",J123="IGEN"),B123="",VALUE(LEFT(F123,LEN(beallitasok!$H$2)))=beallitasok!$H$2,VALUE(LEFT(E123,LEN(beallitasok!$H$3)))=beallitasok!$H$3,VALUE(LEFT(F123,LEN(beallitasok!$H$2)))=beallitasok!$H$3,VALUE(LEFT(E123,LEN(beallitasok!$H$3)))=beallitasok!$H$2),"",IF(D123="","",beallitasok!$B$2)),"") -> 2020-12-31 | B123: =IF(VALUE(LEFT(ZARO_FOKONYV!A123,1))<=beallitasok!$H$8,ZARO_FOKONYV!B123,"") -> Bérköltség | C123: =IF(B123="","",IF(beallitasok!$B$6="","",beallitasok!$B$6)) -> NYITÓ | D123: =IF(B123="","",ROUND(ZARO_FOKONYV!C123+ZARO_FOKONYV!D123,0)) -> 2137500 | E123: =IF(B123="","",LEFT(IF(ZARO_FOKONYV!C123>0,IFERROR(VLOOKUP(ZARO_FOKONYV!$A123,FKCSERE!$A:$B,2,FALSE),ZARO_FOKONYV!$A123),beallitasok!$B$3)&"00000",6)) -> 541000 | F123: =IF(B123="","",LEFT(IF(ZARO_FOKONYV!D123>0,IFERROR(VLOOKUP(ZARO_FOKONYV!$A123,FKCSERE!$A:$B,2,FALSE),ZARO_FOKONYV!$A123),beallitasok!$B$3)&"000000",6)) -> 491000 | H123: =IF(LEFT(E123,3)=LEFT(beallitasok!$B$3,3),"",$B123) -> Bérköltség | I123: =IF(LEFT(F123,3)=LEFT(beallitasok!$B$3,3),"",$B123) ->  | J123: =IF(AND(LEN(ZARO_FOKONYV!A123)<LEN(ZARO_FOKONYV!A124),LEFT(ZARO_FOKONYV!A124,LEN(ZARO_FOKONYV!A123))=ZARO_FOKONYV!A123),"IGEN","nem") -> nem
A124: =IFERROR(IF(OR(AND(beallitasok!$H$5="IGEN",J124="IGEN"),B124="",VALUE(LEFT(F124,LEN(beallitasok!$H$2)))=beallitasok!$H$2,VALUE(LEFT(E124,LEN(beallitasok!$H$3)))=beallitasok!$H$3,VALUE(LEFT(F124,LEN(beallitasok!$H$2)))=beallitasok!$H$3,VALUE(LEFT(E124,LEN(beallitasok!$H$3)))=beallitasok!$H$2),"",IF(D124="","",beallitasok!$B$2)),"") ->  | B124: =IF(VALUE(LEFT(ZARO_FOKONYV!A124,1))<=beallitasok!$H$8,ZARO_FOKONYV!B124,"") -> SZEMÉLYI JELLEGŰ EGYÉB KIFIZETÉSEK | C124: =IF(B124="","",IF(beallitasok!$B$6="","",beallitasok!$B$6)) -> NYITÓ | D124: =IF(B124="","",ROUND(ZARO_FOKONYV!C124+ZARO_FOKONYV!D124,0)) -> 46260 | E124: =IF(B124="","",LEFT(IF(ZARO_FOKONYV!C124>0,IFERROR(VLOOKUP(ZARO_FOKONYV!$A124,FKCSERE!$A:$B,2,FALSE),ZARO_FOKONYV!$A124),beallitasok!$B$3)&"00000",6)) -> 550000 | F124: =IF(B124="","",LEFT(IF(ZARO_FOKONYV!D124>0,IFERROR(VLOOKUP(ZARO_FOKONYV!$A124,FKCSERE!$A:$B,2,FALSE),ZARO_FOKONYV!$A124),beallitasok!$B$3)&"000000",6)) -> 491000 | H124: =IF(LEFT(E124,3)=LEFT(beallitasok!$B$3,3),"",$B124) -> SZEMÉLYI JELLEGŰ EGYÉB KIFIZETÉSEK | I124: =IF(LEFT(F124,3)=LEFT(beallitasok!$B$3,3),"",$B124) ->  | J124: =IF(AND(LEN(ZARO_FOKONYV!A124)<LEN(ZARO_FOKONYV!A125),LEFT(ZARO_FOKONYV!A125,LEN(ZARO_FOKONYV!A124))=ZARO_FOKONYV!A124),"IGEN","nem") -> IGEN
A125: =IFERROR(IF(OR(AND(beallitasok!$H$5="IGEN",J125="IGEN"),B125="",VALUE(LEFT(F125,LEN(beallitasok!$H$2)))=beallitasok!$H$2,VALUE(LEFT(E125,LEN(beallitasok!$H$3)))=beallitasok!$H$3,VALUE(LEFT(F125,LEN(beallitasok!$H$2)))=beallitasok!$H$3,VALUE(LEFT(E125,LEN(beallitasok!$H$3)))=beallitasok!$H$2),"",IF(D125="","",beallitasok!$B$2)),"") -> 2020-12-31 | B125: =IF(VALUE(LEFT(ZARO_FOKONYV!A125,1))<=beallitasok!$H$8,ZARO_FOKONYV!B125,"") -> Munkavállalóknak, tagoknak fizetettt személyi jellegű kifizetések | C125: =IF(B125="","",IF(beallitasok!$B$6="","",beallitasok!$B$6)) -> NYITÓ | D125: =IF(B125="","",ROUND(ZARO_FOKONYV!C125+ZARO_FOKONYV!D125,0)) -> 46260 | E125: =IF(B125="","",LEFT(IF(ZARO_FOKONYV!C125>0,IFERROR(VLOOKUP(ZARO_FOKONYV!$A125,FKCSERE!$A:$B,2,FALSE),ZARO_FOKONYV!$A125),beallitasok!$B$3)&"00000",6)) -> 551000 | F125: =IF(B125="","",LEFT(IF(ZARO_FOKONYV!D125>0,IFERROR(VLOOKUP(ZARO_FOKONYV!$A125,FKCSERE!$A:$B,2,FALSE),ZARO_FOKONYV!$A125),beallitasok!$B$3)&"000000",6)) -> 491000 | H125: =IF(LEFT(E125,3)=LEFT(beallitasok!$B$3,3),"",$B125) -> Munkavállalóknak, tagoknak fizetettt személyi jellegű kifizetések | I125: =IF(LEFT(F125,3)=LEFT(beallitasok!$B$3,3),"",$B125) ->  | J125: =IF(AND(LEN(ZARO_FOKONYV!A125)<LEN(ZARO_FOKONYV!A126),LEFT(ZARO_FOKONYV!A126,LEN(ZARO_FOKONYV!A125))=ZARO_FOKONYV!A125),"IGEN","nem") -> nem
A126: =IFERROR(IF(OR(AND(beallitasok!$H$5="IGEN",J126="IGEN"),B126="",VALUE(LEFT(F126,LEN(beallitasok!$H$2)))=beallitasok!$H$2,VALUE(LEFT(E126,LEN(beallitasok!$H$3)))=beallitasok!$H$3,VALUE(LEFT(F126,LEN(beallitasok!$H$2)))=beallitasok!$H$3,VALUE(LEFT(E126,LEN(beallitasok!$H$3)))=beallitasok!$H$2),"",IF(D126="","",beallitasok!$B$2)),"") ->  | B126: =IF(VALUE(LEFT(ZARO_FOKONYV!A126,1))<=beallitasok!$H$8,ZARO_FOKONYV!B126,"") -> BÉRJÁRULÉKOK | C126: =IF(B126="","",IF(beallitasok!$B$6="","",beallitasok!$B$6)) -> NYITÓ | D126: =IF(B126="","",ROUND(ZARO_FOKONYV!C126+ZARO_FOKONYV!D126,0)) -> 346754 | E126: =IF(B126="","",LEFT(IF(ZARO_FOKONYV!C126>0,IFERROR(VLOOKUP(ZARO_FOKONYV!$A126,FKCSERE!$A:$B,2,FALSE),ZARO_FOKONYV!$A126),beallitasok!$B$3)&"00000",6)) -> 560000 | F126: =IF(B126="","",LEFT(IF(ZARO_FOKONYV!D126>0,IFERROR(VLOOKUP(ZARO_FOKONYV!$A126,FKCSERE!$A:$B,2,FALSE),ZARO_FOKONYV!$A126),beallitasok!$B$3)&"000000",6)) -> 491000 | H126: =IF(LEFT(E126,3)=LEFT(beallitasok!$B$3,3),"",$B126) -> BÉRJÁRULÉKOK | I126: =IF(LEFT(F126,3)=LEFT(beallitasok!$B$3,3),"",$B126) ->  | J126: =IF(AND(LEN(ZARO_FOKONYV!A126)<LEN(ZARO_FOKONYV!A127),LEFT(ZARO_FOKONYV!A127,LEN(ZARO_FOKONYV!A126))=ZARO_FOKONYV!A126),"IGEN","nem") -> IGEN
A127: =IFERROR(IF(OR(AND(beallitasok!$H$5="IGEN",J127="IGEN"),B127="",VALUE(LEFT(F127,LEN(beallitasok!$H$2)))=beallitasok!$H$2,VALUE(LEFT(E127,LEN(beallitasok!$H$3)))=beallitasok!$H$3,VALUE(LEFT(F127,LEN(beallitasok!$H$2)))=beallitasok!$H$3,VALUE(LEFT(E127,LEN(beallitasok!$H$3)))=beallitasok!$H$2),"",IF(D127="","",beallitasok!$B$2)),"") -> 2020-12-31 | B127: =IF(VALUE(LEFT(ZARO_FOKONYV!A127,1))<=beallitasok!$H$8,ZARO_FOKONYV!B127,"") -> Nyugdijbiztosítási és egészségbiztosítási járulék | C127: =IF(B127="","",IF(beallitasok!$B$6="","",beallitasok!$B$6)) -> NYITÓ | D127: =IF(B127="","",ROUND(ZARO_FOKONYV!C127+ZARO_FOKONYV!D127,0)) -> 315336 | E127: =IF(B127="","",LEFT(IF(ZARO_FOKONYV!C127>0,IFERROR(VLOOKUP(ZARO_FOKONYV!$A127,FKCSERE!$A:$B,2,FALSE),ZARO_FOKONYV!$A127),beallitasok!$B$3)&"00000",6)) -> 561000 | F127: =IF(B127="","",LEFT(IF(ZARO_FOKONYV!D127>0,IFERROR(VLOOKUP(ZARO_FOKONYV!$A127,FKCSERE!$A:$B,2,FALSE),ZARO_FOKONYV!$A127),beallitasok!$B$3)&"000000",6)) -> 491000 | H127: =IF(LEFT(E127,3)=LEFT(beallitasok!$B$3,3),"",$B127) -> Nyugdijbiztosítási és egészségbiztosítási járulék | I127: =IF(LEFT(F127,3)=LEFT(beallitasok!$B$3,3),"",$B127) ->  | J127: =IF(AND(LEN(ZARO_FOKONYV!A127)<LEN(ZARO_FOKONYV!A128),LEFT(ZARO_FOKONYV!A128,LEN(ZARO_FOKONYV!A127))=ZARO_FOKONYV!A127),"IGEN","nem") -> nem
A128: =IFERROR(IF(OR(AND(beallitasok!$H$5="IGEN",J128="IGEN"),B128="",VALUE(LEFT(F128,LEN(beallitasok!$H$2)))=beallitasok!$H$2,VALUE(LEFT(E128,LEN(beallitasok!$H$3)))=beallitasok!$H$3,VALUE(LEFT(F128,LEN(beallitasok!$H$2)))=beallitasok!$H$3,VALUE(LEFT(E128,LEN(beallitasok!$H$3)))=beallitasok!$H$2),"",IF(D128="","",beallitasok!$B$2)),"") -> 2020-12-31 | B128: =IF(VALUE(LEFT(ZARO_FOKONYV!A128,1))<=beallitasok!$H$8,ZARO_FOKONYV!B128,"") -> Munkaadói járulék | C128: =IF(B128="","",IF(beallitasok!$B$6="","",beallitasok!$B$6)) -> NYITÓ | D128: =IF(B128="","",ROUND(ZARO_FOKONYV!C128+ZARO_FOKONYV!D128,0)) -> 2978 | E128: =IF(B128="","",LEFT(IF(ZARO_FOKONYV!C128>0,IFERROR(VLOOKUP(ZARO_FOKONYV!$A128,FKCSERE!$A:$B,2,FALSE),ZARO_FOKONYV!$A128),beallitasok!$B$3)&"00000",6)) -> 563000 | F128: =IF(B128="","",LEFT(IF(ZARO_FOKONYV!D128>0,IFERROR(VLOOKUP(ZARO_FOKONYV!$A128,FKCSERE!$A:$B,2,FALSE),ZARO_FOKONYV!$A128),beallitasok!$B$3)&"000000",6)) -> 491000 | H128: =IF(LEFT(E128,3)=LEFT(beallitasok!$B$3,3),"",$B128) -> Munkaadói járulék | I128: =IF(LEFT(F128,3)=LEFT(beallitasok!$B$3,3),"",$B128) ->  | J128: =IF(AND(LEN(ZARO_FOKONYV!A128)<LEN(ZARO_FOKONYV!A129),LEFT(ZARO_FOKONYV!A129,LEN(ZARO_FOKONYV!A128))=ZARO_FOKONYV!A128),"IGEN","nem") -> nem
A129: =IFERROR(IF(OR(AND(beallitasok!$H$5="IGEN",J129="IGEN"),B129="",VALUE(LEFT(F129,LEN(beallitasok!$H$2)))=beallitasok!$H$2,VALUE(LEFT(E129,LEN(beallitasok!$H$3)))=beallitasok!$H$3,VALUE(LEFT(F129,LEN(beallitasok!$H$2)))=beallitasok!$H$3,VALUE(LEFT(E129,LEN(beallitasok!$H$3)))=beallitasok!$H$2),"",IF(D129="","",beallitasok!$B$2)),"") -> 2020-12-31 | B129: =IF(VALUE(LEFT(ZARO_FOKONYV!A129,1))<=beallitasok!$H$8,ZARO_FOKONYV!B129,"") -> Szakképzési hozzájárulás | C129: =IF(B129="","",IF(beallitasok!$B$6="","",beallitasok!$B$6)) -> NYITÓ | D129: =IF(B129="","",ROUND(ZARO_FOKONYV!C129+ZARO_FOKONYV!D129,0)) -> 28440 | E129: =IF(B129="","",LEFT(IF(ZARO_FOKONYV!C129>0,IFERROR(VLOOKUP(ZARO_FOKONYV!$A129,FKCSERE!$A:$B,2,FALSE),ZARO_FOKONYV!$A129),beallitasok!$B$3)&"00000",6)) -> 564000 | F129: =IF(B129="","",LEFT(IF(ZARO_FOKONYV!D129>0,IFERROR(VLOOKUP(ZARO_FOKONYV!$A129,FKCSERE!$A:$B,2,FALSE),ZARO_FOKONYV!$A129),beallitasok!$B$3)&"000000",6)) -> 491000 | H129: =IF(LEFT(E129,3)=LEFT(beallitasok!$B$3,3),"",$B129) -> Szakképzési hozzájárulás | I129: =IF(LEFT(F129,3)=LEFT(beallitasok!$B$3,3),"",$B129) ->  | J129: =IF(AND(LEN(ZARO_FOKONYV!A129)<LEN(ZARO_FOKONYV!A130),LEFT(ZARO_FOKONYV!A130,LEN(ZARO_FOKONYV!A129))=ZARO_FOKONYV!A129),"IGEN","nem") -> nem
A130: =IFERROR(IF(OR(AND(beallitasok!$H$5="IGEN",J130="IGEN"),B130="",VALUE(LEFT(F130,LEN(beallitasok!$H$2)))=beallitasok!$H$2,VALUE(LEFT(E130,LEN(beallitasok!$H$3)))=beallitasok!$H$3,VALUE(LEFT(F130,LEN(beallitasok!$H$2)))=beallitasok!$H$3,VALUE(LEFT(E130,LEN(beallitasok!$H$3)))=beallitasok!$H$2),"",IF(D130="","",beallitasok!$B$2)),"") ->  | B130: =IF(VALUE(LEFT(ZARO_FOKONYV!A130,1))<=beallitasok!$H$8,ZARO_FOKONYV!B130,"") -> ÉRTÉKCSÖKKENÉSI LEÍRÁS | C130: =IF(B130="","",IF(beallitasok!$B$6="","",beallitasok!$B$6)) -> NYITÓ | D130: =IF(B130="","",ROUND(ZARO_FOKONYV!C130+ZARO_FOKONYV!D130,0)) -> 3933502 | E130: =IF(B130="","",LEFT(IF(ZARO_FOKONYV!C130>0,IFERROR(VLOOKUP(ZARO_FOKONYV!$A130,FKCSERE!$A:$B,2,FALSE),ZARO_FOKONYV!$A130),beallitasok!$B$3)&"00000",6)) -> 570000 | F130: =IF(B130="","",LEFT(IF(ZARO_FOKONYV!D130>0,IFERROR(VLOOKUP(ZARO_FOKONYV!$A130,FKCSERE!$A:$B,2,FALSE),ZARO_FOKONYV!$A130),beallitasok!$B$3)&"000000",6)) -> 491000 | H130: =IF(LEFT(E130,3)=LEFT(beallitasok!$B$3,3),"",$B130) -> ÉRTÉKCSÖKKENÉSI LEÍRÁS | I130: =IF(LEFT(F130,3)=LEFT(beallitasok!$B$3,3),"",$B130) ->  | J130: =IF(AND(LEN(ZARO_FOKONYV!A130)<LEN(ZARO_FOKONYV!A131),LEFT(ZARO_FOKONYV!A131,LEN(ZARO_FOKONYV!A130))=ZARO_FOKONYV!A130),"IGEN","nem") -> IGEN
A131: =IFERROR(IF(OR(AND(beallitasok!$H$5="IGEN",J131="IGEN"),B131="",VALUE(LEFT(F131,LEN(beallitasok!$H$2)))=beallitasok!$H$2,VALUE(LEFT(E131,LEN(beallitasok!$H$3)))=beallitasok!$H$3,VALUE(LEFT(F131,LEN(beallitasok!$H$2)))=beallitasok!$H$3,VALUE(LEFT(E131,LEN(beallitasok!$H$3)))=beallitasok!$H$2),"",IF(D131="","",beallitasok!$B$2)),"") -> 2020-12-31 | B131: =IF(VALUE(LEFT(ZARO_FOKONYV!A131,1))<=beallitasok!$H$8,ZARO_FOKONYV!B131,"") -> Terv szerinti értékcsökkenési leírás | C131: =IF(B131="","",IF(beallitasok!$B$6="","",beallitasok!$B$6)) -> NYITÓ | D131: =IF(B131="","",ROUND(ZARO_FOKONYV!C131+ZARO_FOKONYV!D131,0)) -> 3234879 | E131: =IF(B131="","",LEFT(IF(ZARO_FOKONYV!C131>0,IFERROR(VLOOKUP(ZARO_FOKONYV!$A131,FKCSERE!$A:$B,2,FALSE),ZARO_FOKONYV!$A131),beallitasok!$B$3)&"00000",6)) -> 571000 | F131: =IF(B131="","",LEFT(IF(ZARO_FOKONYV!D131>0,IFERROR(VLOOKUP(ZARO_FOKONYV!$A131,FKCSERE!$A:$B,2,FALSE),ZARO_FOKONYV!$A131),beallitasok!$B$3)&"000000",6)) -> 491000 | H131: =IF(LEFT(E131,3)=LEFT(beallitasok!$B$3,3),"",$B131) -> Terv szerinti értékcsökkenési leírás | I131: =IF(LEFT(F131,3)=LEFT(beallitasok!$B$3,3),"",$B131) ->  | J131: =IF(AND(LEN(ZARO_FOKONYV!A131)<LEN(ZARO_FOKONYV!A132),LEFT(ZARO_FOKONYV!A132,LEN(ZARO_FOKONYV!A131))=ZARO_FOKONYV!A131),"IGEN","nem") -> nem
A132: =IFERROR(IF(OR(AND(beallitasok!$H$5="IGEN",J132="IGEN"),B132="",VALUE(LEFT(F132,LEN(beallitasok!$H$2)))=beallitasok!$H$2,VALUE(LEFT(E132,LEN(beallitasok!$H$3)))=beallitasok!$H$3,VALUE(LEFT(F132,LEN(beallitasok!$H$2)))=beallitasok!$H$3,VALUE(LEFT(E132,LEN(beallitasok!$H$3)))=beallitasok!$H$2),"",IF(D132="","",beallitasok!$B$2)),"") -> 2020-12-31 | B132: =IF(VALUE(LEFT(ZARO_FOKONYV!A132,1))<=beallitasok!$H$8,ZARO_FOKONYV!B132,"") -> Használatbavételkor egy összegben elszámolt értékcsökkenési leírás | C132: =IF(B132="","",IF(beallitasok!$B$6="","",beallitasok!$B$6)) -> NYITÓ | D132: =IF(B132="","",ROUND(ZARO_FOKONYV!C132+ZARO_FOKONYV!D132,0)) -> 698623 | E132: =IF(B132="","",LEFT(IF(ZARO_FOKONYV!C132>0,IFERROR(VLOOKUP(ZARO_FOKONYV!$A132,FKCSERE!$A:$B,2,FALSE),ZARO_FOKONYV!$A132),beallitasok!$B$3)&"00000",6)) -> 572000 | F132: =IF(B132="","",LEFT(IF(ZARO_FOKONYV!D132>0,IFERROR(VLOOKUP(ZARO_FOKONYV!$A132,FKCSERE!$A:$B,2,FALSE),ZARO_FOKONYV!$A132),beallitasok!$B$3)&"000000",6)) -> 491000 | H132: =IF(LEFT(E132,3)=LEFT(beallitasok!$B$3,3),"",$B132) -> Használatbavételkor egy összegben elszámolt értékcsökkenési leírás | I132: =IF(LEFT(F132,3)=LEFT(beallitasok!$B$3,3),"",$B132) ->  | J132: =IF(AND(LEN(ZARO_FOKONYV!A132)<LEN(ZARO_FOKONYV!A133),LEFT(ZARO_FOKONYV!A133,LEN(ZARO_FOKONYV!A132))=ZARO_FOKONYV!A132),"IGEN","nem") -> nem
A133: =IFERROR(IF(OR(AND(beallitasok!$H$5="IGEN",J133="IGEN"),B133="",VALUE(LEFT(F133,LEN(beallitasok!$H$2)))=beallitasok!$H$2,VALUE(LEFT(E133,LEN(beallitasok!$H$3)))=beallitasok!$H$3,VALUE(LEFT(F133,LEN(beallitasok!$H$2)))=beallitasok!$H$3,VALUE(LEFT(E133,LEN(beallitasok!$H$3)))=beallitasok!$H$2),"",IF(D133="","",beallitasok!$B$2)),"") ->  | B133: =IF(VALUE(LEFT(ZARO_FOKONYV!A133,1))<=beallitasok!$H$8,ZARO_FOKONYV!B133,"") -> ÉRTÉKESÍTÉS ELSZÁMOLT ÖNKÖLTSÉGE ÉS RÁFORDÍTÁSOK | C133: =IF(B133="","",IF(beallitasok!$B$6="","",beallitasok!$B$6)) -> NYITÓ | D133: =IF(B133="","",ROUND(ZARO_FOKONYV!C133+ZARO_FOKONYV!D133,0)) -> 86778355 | E133: =IF(B133="","",LEFT(IF(ZARO_FOKONYV!C133>0,IFERROR(VLOOKUP(ZARO_FOKONYV!$A133,FKCSERE!$A:$B,2,FALSE),ZARO_FOKONYV!$A133),beallitasok!$B$3)&"00000",6)) -> 800000 | F133: =IF(B133="","",LEFT(IF(ZARO_FOKONYV!D133>0,IFERROR(VLOOKUP(ZARO_FOKONYV!$A133,FKCSERE!$A:$B,2,FALSE),ZARO_FOKONYV!$A133),beallitasok!$B$3)&"000000",6)) -> 491000 | H133: =IF(LEFT(E133,3)=LEFT(beallitasok!$B$3,3),"",$B133) -> ÉRTÉKESÍTÉS ELSZÁMOLT ÖNKÖLTSÉGE ÉS RÁFORDÍTÁSOK | I133: =IF(LEFT(F133,3)=LEFT(beallitasok!$B$3,3),"",$B133) ->  | J133: =IF(AND(LEN(ZARO_FOKONYV!A133)<LEN(ZARO_FOKONYV!A134),LEFT(ZARO_FOKONYV!A134,LEN(ZARO_FOKONYV!A133))=ZARO_FOKONYV!A133),"IGEN","nem") -> IGEN
A134: =IFERROR(IF(OR(AND(beallitasok!$H$5="IGEN",J134="IGEN"),B134="",VALUE(LEFT(F134,LEN(beallitasok!$H$2)))=beallitasok!$H$2,VALUE(LEFT(E134,LEN(beallitasok!$H$3)))=beallitasok!$H$3,VALUE(LEFT(F134,LEN(beallitasok!$H$2)))=beallitasok!$H$3,VALUE(LEFT(E134,LEN(beallitasok!$H$3)))=beallitasok!$H$2),"",IF(D134="","",beallitasok!$B$2)),"") ->  | B134: =IF(VALUE(LEFT(ZARO_FOKONYV!A134,1))<=beallitasok!$H$8,ZARO_FOKONYV!B134,"") -> ELÁBÉ | C134: =IF(B134="","",IF(beallitasok!$B$6="","",beallitasok!$B$6)) -> NYITÓ | D134: =IF(B134="","",ROUND(ZARO_FOKONYV!C134+ZARO_FOKONYV!D134,0)) -> 83204283 | E134: =IF(B134="","",LEFT(IF(ZARO_FOKONYV!C134>0,IFERROR(VLOOKUP(ZARO_FOKONYV!$A134,FKCSERE!$A:$B,2,FALSE),ZARO_FOKONYV!$A134),beallitasok!$B$3)&"00000",6)) -> 814000 | F134: =IF(B134="","",LEFT(IF(ZARO_FOKONYV!D134>0,IFERROR(VLOOKUP(ZARO_FOKONYV!$A134,FKCSERE!$A:$B,2,FALSE),ZARO_FOKONYV!$A134),beallitasok!$B$3)&"000000",6)) -> 491000 | H134: =IF(LEFT(E134,3)=LEFT(beallitasok!$B$3,3),"",$B134) -> ELÁBÉ | I134: =IF(LEFT(F134,3)=LEFT(beallitasok!$B$3,3),"",$B134) ->  | J134: =IF(AND(LEN(ZARO_FOKONYV!A134)<LEN(ZARO_FOKONYV!A135),LEFT(ZARO_FOKONYV!A135,LEN(ZARO_FOKONYV!A134))=ZARO_FOKONYV!A134),"IGEN","nem") -> IGEN
A135: =IFERROR(IF(OR(AND(beallitasok!$H$5="IGEN",J135="IGEN"),B135="",VALUE(LEFT(F135,LEN(beallitasok!$H$2)))=beallitasok!$H$2,VALUE(LEFT(E135,LEN(beallitasok!$H$3)))=beallitasok!$H$3,VALUE(LEFT(F135,LEN(beallitasok!$H$2)))=beallitasok!$H$3,VALUE(LEFT(E135,LEN(beallitasok!$H$3)))=beallitasok!$H$2),"",IF(D135="","",beallitasok!$B$2)),"") -> 2020-12-31 | B135: =IF(VALUE(LEFT(ZARO_FOKONYV!A135,1))<=beallitasok!$H$8,ZARO_FOKONYV!B135,"") -> ELÁBÉ | C135: =IF(B135="","",IF(beallitasok!$B$6="","",beallitasok!$B$6)) -> NYITÓ | D135: =IF(B135="","",ROUND(ZARO_FOKONYV!C135+ZARO_FOKONYV!D135,0)) -> 83204283 | E135: =IF(B135="","",LEFT(IF(ZARO_FOKONYV!C135>0,IFERROR(VLOOKUP(ZARO_FOKONYV!$A135,FKCSERE!$A:$B,2,FALSE),ZARO_FOKONYV!$A135),beallitasok!$B$3)&"00000",6)) -> 814100 | F135: =IF(B135="","",LEFT(IF(ZARO_FOKONYV!D135>0,IFERROR(VLOOKUP(ZARO_FOKONYV!$A135,FKCSERE!$A:$B,2,FALSE),ZARO_FOKONYV!$A135),beallitasok!$B$3)&"000000",6)) -> 491000 | H135: =IF(LEFT(E135,3)=LEFT(beallitasok!$B$3,3),"",$B135) -> ELÁBÉ | I135: =IF(LEFT(F135,3)=LEFT(beallitasok!$B$3,3),"",$B135) ->  | J135: =IF(AND(LEN(ZARO_FOKONYV!A135)<LEN(ZARO_FOKONYV!A136),LEFT(ZARO_FOKONYV!A136,LEN(ZARO_FOKONYV!A135))=ZARO_FOKONYV!A135),"IGEN","nem") -> nem
A136: =IFERROR(IF(OR(AND(beallitasok!$H$5="IGEN",J136="IGEN"),B136="",VALUE(LEFT(F136,LEN(beallitasok!$H$2)))=beallitasok!$H$2,VALUE(LEFT(E136,LEN(beallitasok!$H$3)))=beallitasok!$H$3,VALUE(LEFT(F136,LEN(beallitasok!$H$2)))=beallitasok!$H$3,VALUE(LEFT(E136,LEN(beallitasok!$H$3)))=beallitasok!$H$2),"",IF(D136="","",beallitasok!$B$2)),"") ->  | B136: =IF(VALUE(LEFT(ZARO_FOKONYV!A136,1))<=beallitasok!$H$8,ZARO_FOKONYV!B136,"") -> EGYÉB RÁFORDÍTÁSOK | C136: =IF(B136="","",IF(beallitasok!$B$6="","",beallitasok!$B$6)) -> NYITÓ | D136: =IF(B136="","",ROUND(ZARO_FOKONYV!C136+ZARO_FOKONYV!D136,0)) -> 2156267 | E136: =IF(B136="","",LEFT(IF(ZARO_FOKONYV!C136>0,IFERROR(VLOOKUP(ZARO_FOKONYV!$A136,FKCSERE!$A:$B,2,FALSE),ZARO_FOKONYV!$A136),beallitasok!$B$3)&"00000",6)) -> 860000 | F136: =IF(B136="","",LEFT(IF(ZARO_FOKONYV!D136>0,IFERROR(VLOOKUP(ZARO_FOKONYV!$A136,FKCSERE!$A:$B,2,FALSE),ZARO_FOKONYV!$A136),beallitasok!$B$3)&"000000",6)) -> 491000 | H136: =IF(LEFT(E136,3)=LEFT(beallitasok!$B$3,3),"",$B136) -> EGYÉB RÁFORDÍTÁSOK | I136: =IF(LEFT(F136,3)=LEFT(beallitasok!$B$3,3),"",$B136) ->  | J136: =IF(AND(LEN(ZARO_FOKONYV!A136)<LEN(ZARO_FOKONYV!A137),LEFT(ZARO_FOKONYV!A137,LEN(ZARO_FOKONYV!A136))=ZARO_FOKONYV!A136),"IGEN","nem") -> IGEN
A137: =IFERROR(IF(OR(AND(beallitasok!$H$5="IGEN",J137="IGEN"),B137="",VALUE(LEFT(F137,LEN(beallitasok!$H$2)))=beallitasok!$H$2,VALUE(LEFT(E137,LEN(beallitasok!$H$3)))=beallitasok!$H$3,VALUE(LEFT(F137,LEN(beallitasok!$H$2)))=beallitasok!$H$3,VALUE(LEFT(E137,LEN(beallitasok!$H$3)))=beallitasok!$H$2),"",IF(D137="","",beallitasok!$B$2)),"") ->  | B137: =IF(VALUE(LEFT(ZARO_FOKONYV!A137,1))<=beallitasok!$H$8,ZARO_FOKONYV!B137,"") -> Mérlegfordulónap előtt bekövetkezett eseményeknek az üzleti évhez kapcsolódó ráford. | C137: =IF(B137="","",IF(beallitasok!$B$6="","",beallitasok!$B$6)) -> NYITÓ | D137: =IF(B137="","",ROUND(ZARO_FOKONYV!C137+ZARO_FOKONYV!D137,0)) -> 217949 | E137: =IF(B137="","",LEFT(IF(ZARO_FOKONYV!C137>0,IFERROR(VLOOKUP(ZARO_FOKONYV!$A137,FKCSERE!$A:$B,2,FALSE),ZARO_FOKONYV!$A137),beallitasok!$B$3)&"00000",6)) -> 863000 | F137: =IF(B137="","",LEFT(IF(ZARO_FOKONYV!D137>0,IFERROR(VLOOKUP(ZARO_FOKONYV!$A137,FKCSERE!$A:$B,2,FALSE),ZARO_FOKONYV!$A137),beallitasok!$B$3)&"000000",6)) -> 491000 | H137: =IF(LEFT(E137,3)=LEFT(beallitasok!$B$3,3),"",$B137) -> Mérlegfordulónap előtt bekövetkezett eseményeknek az üzleti évhez kapcsolódó ráford. | I137: =IF(LEFT(F137,3)=LEFT(beallitasok!$B$3,3),"",$B137) ->  | J137: =IF(AND(LEN(ZARO_FOKONYV!A137)<LEN(ZARO_FOKONYV!A138),LEFT(ZARO_FOKONYV!A138,LEN(ZARO_FOKONYV!A137))=ZARO_FOKONYV!A137),"IGEN","nem") -> IGEN
A138: =IFERROR(IF(OR(AND(beallitasok!$H$5="IGEN",J138="IGEN"),B138="",VALUE(LEFT(F138,LEN(beallitasok!$H$2)))=beallitasok!$H$2,VALUE(LEFT(E138,LEN(beallitasok!$H$3)))=beallitasok!$H$3,VALUE(LEFT(F138,LEN(beallitasok!$H$2)))=beallitasok!$H$3,VALUE(LEFT(E138,LEN(beallitasok!$H$3)))=beallitasok!$H$2),"",IF(D138="","",beallitasok!$B$2)),"") -> 2020-12-31 | B138: =IF(VALUE(LEFT(ZARO_FOKONYV!A138,1))<=beallitasok!$H$8,ZARO_FOKONYV!B138,"") -> Bírságok, kötbérek, fekbérek, késedelmi kamatok, kártéríté sek | C138: =IF(B138="","",IF(beallitasok!$B$6="","",beallitasok!$B$6)) -> NYITÓ | D138: =IF(B138="","",ROUND(ZARO_FOKONYV!C138+ZARO_FOKONYV!D138,0)) -> 217444 | E138: =IF(B138="","",LEFT(IF(ZARO_FOKONYV!C138>0,IFERROR(VLOOKUP(ZARO_FOKONYV!$A138,FKCSERE!$A:$B,2,FALSE),ZARO_FOKONYV!$A138),beallitasok!$B$3)&"00000",6)) -> 863200 | F138: =IF(B138="","",LEFT(IF(ZARO_FOKONYV!D138>0,IFERROR(VLOOKUP(ZARO_FOKONYV!$A138,FKCSERE!$A:$B,2,FALSE),ZARO_FOKONYV!$A138),beallitasok!$B$3)&"000000",6)) -> 491000 | H138: =IF(LEFT(E138,3)=LEFT(beallitasok!$B$3,3),"",$B138) -> Bírságok, kötbérek, fekbérek, késedelmi kamatok, kártéríté sek | I138: =IF(LEFT(F138,3)=LEFT(beallitasok!$B$3,3),"",$B138) ->  | J138: =IF(AND(LEN(ZARO_FOKONYV!A138)<LEN(ZARO_FOKONYV!A139),LEFT(ZARO_FOKONYV!A139,LEN(ZARO_FOKONYV!A138))=ZARO_FOKONYV!A138),"IGEN","nem") -> nem
A139: =IFERROR(IF(OR(AND(beallitasok!$H$5="IGEN",J139="IGEN"),B139="",VALUE(LEFT(F139,LEN(beallitasok!$H$2)))=beallitasok!$H$2,VALUE(LEFT(E139,LEN(beallitasok!$H$3)))=beallitasok!$H$3,VALUE(LEFT(F139,LEN(beallitasok!$H$2)))=beallitasok!$H$3,VALUE(LEFT(E139,LEN(beallitasok!$H$3)))=beallitasok!$H$2),"",IF(D139="","",beallitasok!$B$2)),"") -> 2020-12-31 | B139: =IF(VALUE(LEFT(ZARO_FOKONYV!A139,1))<=beallitasok!$H$8,ZARO_FOKONYV!B139,"") -> Kerekítés | C139: =IF(B139="","",IF(beallitasok!$B$6="","",beallitasok!$B$6)) -> NYITÓ | D139: =IF(B139="","",ROUND(ZARO_FOKONYV!C139+ZARO_FOKONYV!D139,0)) -> 505 | E139: =IF(B139="","",LEFT(IF(ZARO_FOKONYV!C139>0,IFERROR(VLOOKUP(ZARO_FOKONYV!$A139,FKCSERE!$A:$B,2,FALSE),ZARO_FOKONYV!$A139),beallitasok!$B$3)&"00000",6)) -> 863600 | F139: =IF(B139="","",LEFT(IF(ZARO_FOKONYV!D139>0,IFERROR(VLOOKUP(ZARO_FOKONYV!$A139,FKCSERE!$A:$B,2,FALSE),ZARO_FOKONYV!$A139),beallitasok!$B$3)&"000000",6)) -> 491000 | H139: =IF(LEFT(E139,3)=LEFT(beallitasok!$B$3,3),"",$B139) -> Kerekítés | I139: =IF(LEFT(F139,3)=LEFT(beallitasok!$B$3,3),"",$B139) ->  | J139: =IF(AND(LEN(ZARO_FOKONYV!A139)<LEN(ZARO_FOKONYV!A140),LEFT(ZARO_FOKONYV!A140,LEN(ZARO_FOKONYV!A139))=ZARO_FOKONYV!A139),"IGEN","nem") -> nem
A140: =IFERROR(IF(OR(AND(beallitasok!$H$5="IGEN",J140="IGEN"),B140="",VALUE(LEFT(F140,LEN(beallitasok!$H$2)))=beallitasok!$H$2,VALUE(LEFT(E140,LEN(beallitasok!$H$3)))=beallitasok!$H$3,VALUE(LEFT(F140,LEN(beallitasok!$H$2)))=beallitasok!$H$3,VALUE(LEFT(E140,LEN(beallitasok!$H$3)))=beallitasok!$H$2),"",IF(D140="","",beallitasok!$B$2)),"") ->  | B140: =IF(VALUE(LEFT(ZARO_FOKONYV!A140,1))<=beallitasok!$H$8,ZARO_FOKONYV!B140,"") -> Adók, illetékek, hozzájárulások | C140: =IF(B140="","",IF(beallitasok!$B$6="","",beallitasok!$B$6)) -> NYITÓ | D140: =IF(B140="","",ROUND(ZARO_FOKONYV!C140+ZARO_FOKONYV!D140,0)) -> 715895 | E140: =IF(B140="","",LEFT(IF(ZARO_FOKONYV!C140>0,IFERROR(VLOOKUP(ZARO_FOKONYV!$A140,FKCSERE!$A:$B,2,FALSE),ZARO_FOKONYV!$A140),beallitasok!$B$3)&"00000",6)) -> 867000 | F140: =IF(B140="","",LEFT(IF(ZARO_FOKONYV!D140>0,IFERROR(VLOOKUP(ZARO_FOKONYV!$A140,FKCSERE!$A:$B,2,FALSE),ZARO_FOKONYV!$A140),beallitasok!$B$3)&"000000",6)) -> 491000 | H140: =IF(LEFT(E140,3)=LEFT(beallitasok!$B$3,3),"",$B140) -> Adók, illetékek, hozzájárulások | I140: =IF(LEFT(F140,3)=LEFT(beallitasok!$B$3,3),"",$B140) ->  | J140: =IF(AND(LEN(ZARO_FOKONYV!A140)<LEN(ZARO_FOKONYV!A141),LEFT(ZARO_FOKONYV!A141,LEN(ZARO_FOKONYV!A140))=ZARO_FOKONYV!A140),"IGEN","nem") -> IGEN
A141: =IFERROR(IF(OR(AND(beallitasok!$H$5="IGEN",J141="IGEN"),B141="",VALUE(LEFT(F141,LEN(beallitasok!$H$2)))=beallitasok!$H$2,VALUE(LEFT(E141,LEN(beallitasok!$H$3)))=beallitasok!$H$3,VALUE(LEFT(F141,LEN(beallitasok!$H$2)))=beallitasok!$H$3,VALUE(LEFT(E141,LEN(beallitasok!$H$3)))=beallitasok!$H$2),"",IF(D141="","",beallitasok!$B$2)),"") -> 2020-12-31 | B141: =IF(VALUE(LEFT(ZARO_FOKONYV!A141,1))<=beallitasok!$H$8,ZARO_FOKONYV!B141,"") -> Önkormányzatokkal elszámolt adók, illetékek, hozzájárulások | C141: =IF(B141="","",IF(beallitasok!$B$6="","",beallitasok!$B$6)) -> NYITÓ | D141: =IF(B141="","",ROUND(ZARO_FOKONYV!C141+ZARO_FOKONYV!D141,0)) -> 715895 | E141: =IF(B141="","",LEFT(IF(ZARO_FOKONYV!C141>0,IFERROR(VLOOKUP(ZARO_FOKONYV!$A141,FKCSERE!$A:$B,2,FALSE),ZARO_FOKONYV!$A141),beallitasok!$B$3)&"00000",6)) -> 867200 | F141: =IF(B141="","",LEFT(IF(ZARO_FOKONYV!D141>0,IFERROR(VLOOKUP(ZARO_FOKONYV!$A141,FKCSERE!$A:$B,2,FALSE),ZARO_FOKONYV!$A141),beallitasok!$B$3)&"000000",6)) -> 491000 | H141: =IF(LEFT(E141,3)=LEFT(beallitasok!$B$3,3),"",$B141) -> Önkormányzatokkal elszámolt adók, illetékek, hozzájárulások | I141: =IF(LEFT(F141,3)=LEFT(beallitasok!$B$3,3),"",$B141) ->  | J141: =IF(AND(LEN(ZARO_FOKONYV!A141)<LEN(ZARO_FOKONYV!A142),LEFT(ZARO_FOKONYV!A142,LEN(ZARO_FOKONYV!A141))=ZARO_FOKONYV!A141),"IGEN","nem") -> nem
A142: =IFERROR(IF(OR(AND(beallitasok!$H$5="IGEN",J142="IGEN"),B142="",VALUE(LEFT(F142,LEN(beallitasok!$H$2)))=beallitasok!$H$2,VALUE(LEFT(E142,LEN(beallitasok!$H$3)))=beallitasok!$H$3,VALUE(LEFT(F142,LEN(beallitasok!$H$2)))=beallitasok!$H$3,VALUE(LEFT(E142,LEN(beallitasok!$H$3)))=beallitasok!$H$2),"",IF(D142="","",beallitasok!$B$2)),"") ->  | B142: =IF(VALUE(LEFT(ZARO_FOKONYV!A142,1))<=beallitasok!$H$8,ZARO_FOKONYV!B142,"") -> Különféle egyéb ráfordítások | C142: =IF(B142="","",IF(beallitasok!$B$6="","",beallitasok!$B$6)) -> NYITÓ | D142: =IF(B142="","",ROUND(ZARO_FOKONYV!C142+ZARO_FOKONYV!D142,0)) -> 1222423 | E142: =IF(B142="","",LEFT(IF(ZARO_FOKONYV!C142>0,IFERROR(VLOOKUP(ZARO_FOKONYV!$A142,FKCSERE!$A:$B,2,FALSE),ZARO_FOKONYV!$A142),beallitasok!$B$3)&"00000",6)) -> 869000 | F142: =IF(B142="","",LEFT(IF(ZARO_FOKONYV!D142>0,IFERROR(VLOOKUP(ZARO_FOKONYV!$A142,FKCSERE!$A:$B,2,FALSE),ZARO_FOKONYV!$A142),beallitasok!$B$3)&"000000",6)) -> 491000 | H142: =IF(LEFT(E142,3)=LEFT(beallitasok!$B$3,3),"",$B142) -> Különféle egyéb ráfordítások | I142: =IF(LEFT(F142,3)=LEFT(beallitasok!$B$3,3),"",$B142) ->  | J142: =IF(AND(LEN(ZARO_FOKONYV!A142)<LEN(ZARO_FOKONYV!A143),LEFT(ZARO_FOKONYV!A143,LEN(ZARO_FOKONYV!A142))=ZARO_FOKONYV!A142),"IGEN","nem") -> IGEN
A143: =IFERROR(IF(OR(AND(beallitasok!$H$5="IGEN",J143="IGEN"),B143="",VALUE(LEFT(F143,LEN(beallitasok!$H$2)))=beallitasok!$H$2,VALUE(LEFT(E143,LEN(beallitasok!$H$3)))=beallitasok!$H$3,VALUE(LEFT(F143,LEN(beallitasok!$H$2)))=beallitasok!$H$3,VALUE(LEFT(E143,LEN(beallitasok!$H$3)))=beallitasok!$H$2),"",IF(D143="","",beallitasok!$B$2)),"") -> 2020-12-31 | B143: =IF(VALUE(LEFT(ZARO_FOKONYV!A143,1))<=beallitasok!$H$8,ZARO_FOKONYV!B143,"") -> Nem a vállalkozás érdekében felmerült kiadás | C143: =IF(B143="","",IF(beallitasok!$B$6="","",beallitasok!$B$6)) -> NYITÓ | D143: =IF(B143="","",ROUND(ZARO_FOKONYV!C143+ZARO_FOKONYV!D143,0)) -> 1222423 | E143: =IF(B143="","",LEFT(IF(ZARO_FOKONYV!C143>0,IFERROR(VLOOKUP(ZARO_FOKONYV!$A143,FKCSERE!$A:$B,2,FALSE),ZARO_FOKONYV!$A143),beallitasok!$B$3)&"00000",6)) -> 869900 | F143: =IF(B143="","",LEFT(IF(ZARO_FOKONYV!D143>0,IFERROR(VLOOKUP(ZARO_FOKONYV!$A143,FKCSERE!$A:$B,2,FALSE),ZARO_FOKONYV!$A143),beallitasok!$B$3)&"000000",6)) -> 491000 | H143: =IF(LEFT(E143,3)=LEFT(beallitasok!$B$3,3),"",$B143) -> Nem a vállalkozás érdekében felmerült kiadás | I143: =IF(LEFT(F143,3)=LEFT(beallitasok!$B$3,3),"",$B143) ->  | J143: =IF(AND(LEN(ZARO_FOKONYV!A143)<LEN(ZARO_FOKONYV!A144),LEFT(ZARO_FOKONYV!A144,LEN(ZARO_FOKONYV!A143))=ZARO_FOKONYV!A143),"IGEN","nem") -> nem
A144: =IFERROR(IF(OR(AND(beallitasok!$H$5="IGEN",J144="IGEN"),B144="",VALUE(LEFT(F144,LEN(beallitasok!$H$2)))=beallitasok!$H$2,VALUE(LEFT(E144,LEN(beallitasok!$H$3)))=beallitasok!$H$3,VALUE(LEFT(F144,LEN(beallitasok!$H$2)))=beallitasok!$H$3,VALUE(LEFT(E144,LEN(beallitasok!$H$3)))=beallitasok!$H$2),"",IF(D144="","",beallitasok!$B$2)),"") ->  | B144: =IF(VALUE(LEFT(ZARO_FOKONYV!A144,1))<=beallitasok!$H$8,ZARO_FOKONYV!B144,"") -> PÉNZÜGYI MŰVELETEK RÁFORDÍTÁ SAI | C144: =IF(B144="","",IF(beallitasok!$B$6="","",beallitasok!$B$6)) -> NYITÓ | D144: =IF(B144="","",ROUND(ZARO_FOKONYV!C144+ZARO_FOKONYV!D144,0)) -> 982805 | E144: =IF(B144="","",LEFT(IF(ZARO_FOKONYV!C144>0,IFERROR(VLOOKUP(ZARO_FOKONYV!$A144,FKCSERE!$A:$B,2,FALSE),ZARO_FOKONYV!$A144),beallitasok!$B$3)&"00000",6)) -> 870000 | F144: =IF(B144="","",LEFT(IF(ZARO_FOKONYV!D144>0,IFERROR(VLOOKUP(ZARO_FOKONYV!$A144,FKCSERE!$A:$B,2,FALSE),ZARO_FOKONYV!$A144),beallitasok!$B$3)&"000000",6)) -> 491000 | H144: =IF(LEFT(E144,3)=LEFT(beallitasok!$B$3,3),"",$B144) -> PÉNZÜGYI MŰVELETEK RÁFORDÍTÁ SAI | I144: =IF(LEFT(F144,3)=LEFT(beallitasok!$B$3,3),"",$B144) ->  | J144: =IF(AND(LEN(ZARO_FOKONYV!A144)<LEN(ZARO_FOKONYV!A145),LEFT(ZARO_FOKONYV!A145,LEN(ZARO_FOKONYV!A144))=ZARO_FOKONYV!A144),"IGEN","nem") -> IGEN
A145: =IFERROR(IF(OR(AND(beallitasok!$H$5="IGEN",J145="IGEN"),B145="",VALUE(LEFT(F145,LEN(beallitasok!$H$2)))=beallitasok!$H$2,VALUE(LEFT(E145,LEN(beallitasok!$H$3)))=beallitasok!$H$3,VALUE(LEFT(F145,LEN(beallitasok!$H$2)))=beallitasok!$H$3,VALUE(LEFT(E145,LEN(beallitasok!$H$3)))=beallitasok!$H$2),"",IF(D145="","",beallitasok!$B$2)),"") ->  | B145: =IF(VALUE(LEFT(ZARO_FOKONYV!A145,1))<=beallitasok!$H$8,ZARO_FOKONYV!B145,"") -> Fizetendő kamatok és kamat jellegű ráfordítások | C145: =IF(B145="","",IF(beallitasok!$B$6="","",beallitasok!$B$6)) -> NYITÓ | D145: =IF(B145="","",ROUND(ZARO_FOKONYV!C145+ZARO_FOKONYV!D145,0)) -> 225887 | E145: =IF(B145="","",LEFT(IF(ZARO_FOKONYV!C145>0,IFERROR(VLOOKUP(ZARO_FOKONYV!$A145,FKCSERE!$A:$B,2,FALSE),ZARO_FOKONYV!$A145),beallitasok!$B$3)&"00000",6)) -> 872000 | F145: =IF(B145="","",LEFT(IF(ZARO_FOKONYV!D145>0,IFERROR(VLOOKUP(ZARO_FOKONYV!$A145,FKCSERE!$A:$B,2,FALSE),ZARO_FOKONYV!$A145),beallitasok!$B$3)&"000000",6)) -> 491000 | H145: =IF(LEFT(E145,3)=LEFT(beallitasok!$B$3,3),"",$B145) -> Fizetendő kamatok és kamat jellegű ráfordítások | I145: =IF(LEFT(F145,3)=LEFT(beallitasok!$B$3,3),"",$B145) ->  | J145: =IF(AND(LEN(ZARO_FOKONYV!A145)<LEN(ZARO_FOKONYV!A146),LEFT(ZARO_FOKONYV!A146,LEN(ZARO_FOKONYV!A145))=ZARO_FOKONYV!A145),"IGEN","nem") -> IGEN
A146: =IFERROR(IF(OR(AND(beallitasok!$H$5="IGEN",J146="IGEN"),B146="",VALUE(LEFT(F146,LEN(beallitasok!$H$2)))=beallitasok!$H$2,VALUE(LEFT(E146,LEN(beallitasok!$H$3)))=beallitasok!$H$3,VALUE(LEFT(F146,LEN(beallitasok!$H$2)))=beallitasok!$H$3,VALUE(LEFT(E146,LEN(beallitasok!$H$3)))=beallitasok!$H$2),"",IF(D146="","",beallitasok!$B$2)),"") -> 2020-12-31 | B146: =IF(VALUE(LEFT(ZARO_FOKONYV!A146,1))<=beallitasok!$H$8,ZARO_FOKONYV!B146,"") -> Kölcsönök, hitelek kapcsolt vállalkozásnak fizetendő kamata | C146: =IF(B146="","",IF(beallitasok!$B$6="","",beallitasok!$B$6)) -> NYITÓ | D146: =IF(B146="","",ROUND(ZARO_FOKONYV!C146+ZARO_FOKONYV!D146,0)) -> 97672 | E146: =IF(B146="","",LEFT(IF(ZARO_FOKONYV!C146>0,IFERROR(VLOOKUP(ZARO_FOKONYV!$A146,FKCSERE!$A:$B,2,FALSE),ZARO_FOKONYV!$A146),beallitasok!$B$3)&"00000",6)) -> 872100 | F146: =IF(B146="","",LEFT(IF(ZARO_FOKONYV!D146>0,IFERROR(VLOOKUP(ZARO_FOKONYV!$A146,FKCSERE!$A:$B,2,FALSE),ZARO_FOKONYV!$A146),beallitasok!$B$3)&"000000",6)) -> 491000 | H146: =IF(LEFT(E146,3)=LEFT(beallitasok!$B$3,3),"",$B146) -> Kölcsönök, hitelek kapcsolt vállalkozásnak fizetendő kamata | I146: =IF(LEFT(F146,3)=LEFT(beallitasok!$B$3,3),"",$B146) ->  | J146: =IF(AND(LEN(ZARO_FOKONYV!A146)<LEN(ZARO_FOKONYV!A147),LEFT(ZARO_FOKONYV!A147,LEN(ZARO_FOKONYV!A146))=ZARO_FOKONYV!A146),"IGEN","nem") -> nem
A147: =IFERROR(IF(OR(AND(beallitasok!$H$5="IGEN",J147="IGEN"),B147="",VALUE(LEFT(F147,LEN(beallitasok!$H$2)))=beallitasok!$H$2,VALUE(LEFT(E147,LEN(beallitasok!$H$3)))=beallitasok!$H$3,VALUE(LEFT(F147,LEN(beallitasok!$H$2)))=beallitasok!$H$3,VALUE(LEFT(E147,LEN(beallitasok!$H$3)))=beallitasok!$H$2),"",IF(D147="","",beallitasok!$B$2)),"") -> 2020-12-31 | B147: =IF(VALUE(LEFT(ZARO_FOKONYV!A147,1))<=beallitasok!$H$8,ZARO_FOKONYV!B147,"") -> Kölcsönök, hitelek egyéb fizetendő kamata | C147: =IF(B147="","",IF(beallitasok!$B$6="","",beallitasok!$B$6)) -> NYITÓ | D147: =IF(B147="","",ROUND(ZARO_FOKONYV!C147+ZARO_FOKONYV!D147,0)) -> 128215 | E147: =IF(B147="","",LEFT(IF(ZARO_FOKONYV!C147>0,IFERROR(VLOOKUP(ZARO_FOKONYV!$A147,FKCSERE!$A:$B,2,FALSE),ZARO_FOKONYV!$A147),beallitasok!$B$3)&"00000",6)) -> 872200 | F147: =IF(B147="","",LEFT(IF(ZARO_FOKONYV!D147>0,IFERROR(VLOOKUP(ZARO_FOKONYV!$A147,FKCSERE!$A:$B,2,FALSE),ZARO_FOKONYV!$A147),beallitasok!$B$3)&"000000",6)) -> 491000 | H147: =IF(LEFT(E147,3)=LEFT(beallitasok!$B$3,3),"",$B147) -> Kölcsönök, hitelek egyéb fizetendő kamata | I147: =IF(LEFT(F147,3)=LEFT(beallitasok!$B$3,3),"",$B147) ->  | J147: =IF(AND(LEN(ZARO_FOKONYV!A147)<LEN(ZARO_FOKONYV!A148),LEFT(ZARO_FOKONYV!A148,LEN(ZARO_FOKONYV!A147))=ZARO_FOKONYV!A147),"IGEN","nem") -> nem
A148: =IFERROR(IF(OR(AND(beallitasok!$H$5="IGEN",J148="IGEN"),B148="",VALUE(LEFT(F148,LEN(beallitasok!$H$2)))=beallitasok!$H$2,VALUE(LEFT(E148,LEN(beallitasok!$H$3)))=beallitasok!$H$3,VALUE(LEFT(F148,LEN(beallitasok!$H$2)))=beallitasok!$H$3,VALUE(LEFT(E148,LEN(beallitasok!$H$3)))=beallitasok!$H$2),"",IF(D148="","",beallitasok!$B$2)),"") ->  | B148: =IF(VALUE(LEFT(ZARO_FOKONYV!A148,1))<=beallitasok!$H$8,ZARO_FOKONYV!B148,"") -> Átváltáskori, értékeléskori árfolyamveszteség | C148: =IF(B148="","",IF(beallitasok!$B$6="","",beallitasok!$B$6)) -> NYITÓ | D148: =IF(B148="","",ROUND(ZARO_FOKONYV!C148+ZARO_FOKONYV!D148,0)) -> 756918 | E148: =IF(B148="","",LEFT(IF(ZARO_FOKONYV!C148>0,IFERROR(VLOOKUP(ZARO_FOKONYV!$A148,FKCSERE!$A:$B,2,FALSE),ZARO_FOKONYV!$A148),beallitasok!$B$3)&"00000",6)) -> 876000 | F148: =IF(B148="","",LEFT(IF(ZARO_FOKONYV!D148>0,IFERROR(VLOOKUP(ZARO_FOKONYV!$A148,FKCSERE!$A:$B,2,FALSE),ZARO_FOKONYV!$A148),beallitasok!$B$3)&"000000",6)) -> 491000 | H148: =IF(LEFT(E148,3)=LEFT(beallitasok!$B$3,3),"",$B148) -> Átváltáskori, értékeléskori árfolyamveszteség | I148: =IF(LEFT(F148,3)=LEFT(beallitasok!$B$3,3),"",$B148) ->  | J148: =IF(AND(LEN(ZARO_FOKONYV!A148)<LEN(ZARO_FOKONYV!A149),LEFT(ZARO_FOKONYV!A149,LEN(ZARO_FOKONYV!A148))=ZARO_FOKONYV!A148),"IGEN","nem") -> IGEN
A149: =IFERROR(IF(OR(AND(beallitasok!$H$5="IGEN",J149="IGEN"),B149="",VALUE(LEFT(F149,LEN(beallitasok!$H$2)))=beallitasok!$H$2,VALUE(LEFT(E149,LEN(beallitasok!$H$3)))=beallitasok!$H$3,VALUE(LEFT(F149,LEN(beallitasok!$H$2)))=beallitasok!$H$3,VALUE(LEFT(E149,LEN(beallitasok!$H$3)))=beallitasok!$H$2),"",IF(D149="","",beallitasok!$B$2)),"") -> 2020-12-31 | B149: =IF(VALUE(LEFT(ZARO_FOKONYV!A149,1))<=beallitasok!$H$8,ZARO_FOKONYV!B149,"") -> Külföldi pénzértékre szóló eszk. és kötelezettségek pénzügyileg rendezett árf. veszt. | C149: =IF(B149="","",IF(beallitasok!$B$6="","",beallitasok!$B$6)) -> NYITÓ | D149: =IF(B149="","",ROUND(ZARO_FOKONYV!C149+ZARO_FOKONYV!D149,0)) -> 756918 | E149: =IF(B149="","",LEFT(IF(ZARO_FOKONYV!C149>0,IFERROR(VLOOKUP(ZARO_FOKONYV!$A149,FKCSERE!$A:$B,2,FALSE),ZARO_FOKONYV!$A149),beallitasok!$B$3)&"00000",6)) -> 876200 | F149: =IF(B149="","",LEFT(IF(ZARO_FOKONYV!D149>0,IFERROR(VLOOKUP(ZARO_FOKONYV!$A149,FKCSERE!$A:$B,2,FALSE),ZARO_FOKONYV!$A149),beallitasok!$B$3)&"000000",6)) -> 491000 | H149: =IF(LEFT(E149,3)=LEFT(beallitasok!$B$3,3),"",$B149) -> Külföldi pénzértékre szóló eszk. és kötelezettségek pénzügyileg rendezett árf. veszt. | I149: =IF(LEFT(F149,3)=LEFT(beallitasok!$B$3,3),"",$B149) ->  | J149: =IF(AND(LEN(ZARO_FOKONYV!A149)<LEN(ZARO_FOKONYV!A150),LEFT(ZARO_FOKONYV!A150,LEN(ZARO_FOKONYV!A149))=ZARO_FOKONYV!A149),"IGEN","nem") -> nem
A150: =IFERROR(IF(OR(AND(beallitasok!$H$5="IGEN",J150="IGEN"),B150="",VALUE(LEFT(F150,LEN(beallitasok!$H$2)))=beallitasok!$H$2,VALUE(LEFT(E150,LEN(beallitasok!$H$3)))=beallitasok!$H$3,VALUE(LEFT(F150,LEN(beallitasok!$H$2)))=beallitasok!$H$3,VALUE(LEFT(E150,LEN(beallitasok!$H$3)))=beallitasok!$H$2),"",IF(D150="","",beallitasok!$B$2)),"") ->  | B150: =IF(VALUE(LEFT(ZARO_FOKONYV!A150,1))<=beallitasok!$H$8,ZARO_FOKONYV!B150,"") -> NYERESÉGET TERHELŐ ADÓK | C150: =IF(B150="","",IF(beallitasok!$B$6="","",beallitasok!$B$6)) -> NYITÓ | D150: =IF(B150="","",ROUND(ZARO_FOKONYV!C150+ZARO_FOKONYV!D150,0)) -> 435000 | E150: =IF(B150="","",LEFT(IF(ZARO_FOKONYV!C150>0,IFERROR(VLOOKUP(ZARO_FOKONYV!$A150,FKCSERE!$A:$B,2,FALSE),ZARO_FOKONYV!$A150),beallitasok!$B$3)&"00000",6)) -> 890000 | F150: =IF(B150="","",LEFT(IF(ZARO_FOKONYV!D150>0,IFERROR(VLOOKUP(ZARO_FOKONYV!$A150,FKCSERE!$A:$B,2,FALSE),ZARO_FOKONYV!$A150),beallitasok!$B$3)&"000000",6)) -> 491000 | H150: =IF(LEFT(E150,3)=LEFT(beallitasok!$B$3,3),"",$B150) -> NYERESÉGET TERHELŐ ADÓK | I150: =IF(LEFT(F150,3)=LEFT(beallitasok!$B$3,3),"",$B150) ->  | J150: =IF(AND(LEN(ZARO_FOKONYV!A150)<LEN(ZARO_FOKONYV!A151),LEFT(ZARO_FOKONYV!A151,LEN(ZARO_FOKONYV!A150))=ZARO_FOKONYV!A150),"IGEN","nem") -> IGEN
A151: =IFERROR(IF(OR(AND(beallitasok!$H$5="IGEN",J151="IGEN"),B151="",VALUE(LEFT(F151,LEN(beallitasok!$H$2)))=beallitasok!$H$2,VALUE(LEFT(E151,LEN(beallitasok!$H$3)))=beallitasok!$H$3,VALUE(LEFT(F151,LEN(beallitasok!$H$2)))=beallitasok!$H$3,VALUE(LEFT(E151,LEN(beallitasok!$H$3)))=beallitasok!$H$2),"",IF(D151="","",beallitasok!$B$2)),"") -> 2020-12-31 | B151: =IF(VALUE(LEFT(ZARO_FOKONYV!A151,1))<=beallitasok!$H$8,ZARO_FOKONYV!B151,"") -> Társasági adó | C151: =IF(B151="","",IF(beallitasok!$B$6="","",beallitasok!$B$6)) -> NYITÓ | D151: =IF(B151="","",ROUND(ZARO_FOKONYV!C151+ZARO_FOKONYV!D151,0)) -> 435000 | E151: =IF(B151="","",LEFT(IF(ZARO_FOKONYV!C151>0,IFERROR(VLOOKUP(ZARO_FOKONYV!$A151,FKCSERE!$A:$B,2,FALSE),ZARO_FOKONYV!$A151),beallitasok!$B$3)&"00000",6)) -> 891000 | F151: =IF(B151="","",LEFT(IF(ZARO_FOKONYV!D151>0,IFERROR(VLOOKUP(ZARO_FOKONYV!$A151,FKCSERE!$A:$B,2,FALSE),ZARO_FOKONYV!$A151),beallitasok!$B$3)&"000000",6)) -> 491000 | H151: =IF(LEFT(E151,3)=LEFT(beallitasok!$B$3,3),"",$B151) -> Társasági adó | I151: =IF(LEFT(F151,3)=LEFT(beallitasok!$B$3,3),"",$B151) ->  | J151: =IF(AND(LEN(ZARO_FOKONYV!A151)<LEN(ZARO_FOKONYV!A152),LEFT(ZARO_FOKONYV!A152,LEN(ZARO_FOKONYV!A151))=ZARO_FOKONYV!A151),"IGEN","nem") -> nem
A152: =IFERROR(IF(OR(AND(beallitasok!$H$5="IGEN",J152="IGEN"),B152="",VALUE(LEFT(F152,LEN(beallitasok!$H$2)))=beallitasok!$H$2,VALUE(LEFT(E152,LEN(beallitasok!$H$3)))=beallitasok!$H$3,VALUE(LEFT(F152,LEN(beallitasok!$H$2)))=beallitasok!$H$3,VALUE(LEFT(E152,LEN(beallitasok!$H$3)))=beallitasok!$H$2),"",IF(D152="","",beallitasok!$B$2)),"") ->  | B152: =IF(VALUE(LEFT(ZARO_FOKONYV!A152,1))<=beallitasok!$H$8,ZARO_FOKONYV!B152,"") -> ÉRTÉKESÍTÉS ÁRBEVÉTELE ÉS BEVÉTELEK | C152: =IF(B152="","",IF(beallitasok!$B$6="","",beallitasok!$B$6)) -> NYITÓ | D152: =IF(B152="","",ROUND(ZARO_FOKONYV!C152+ZARO_FOKONYV!D152,0)) -> 109906332 | E152: =IF(B152="","",LEFT(IF(ZARO_FOKONYV!C152>0,IFERROR(VLOOKUP(ZARO_FOKONYV!$A152,FKCSERE!$A:$B,2,FALSE),ZARO_FOKONYV!$A152),beallitasok!$B$3)&"00000",6)) -> 491000 | F152: =IF(B152="","",LEFT(IF(ZARO_FOKONYV!D152>0,IFERROR(VLOOKUP(ZARO_FOKONYV!$A152,FKCSERE!$A:$B,2,FALSE),ZARO_FOKONYV!$A152),beallitasok!$B$3)&"000000",6)) -> 900000 | H152: =IF(LEFT(E152,3)=LEFT(beallitasok!$B$3,3),"",$B152) ->  | I152: =IF(LEFT(F152,3)=LEFT(beallitasok!$B$3,3),"",$B152) -> ÉRTÉKESÍTÉS ÁRBEVÉTELE ÉS BEVÉTELEK | J152: =IF(AND(LEN(ZARO_FOKONYV!A152)<LEN(ZARO_FOKONYV!A153),LEFT(ZARO_FOKONYV!A153,LEN(ZARO_FOKONYV!A152))=ZARO_FOKONYV!A152),"IGEN","nem") -> IGEN
A153: =IFERROR(IF(OR(AND(beallitasok!$H$5="IGEN",J153="IGEN"),B153="",VALUE(LEFT(F153,LEN(beallitasok!$H$2)))=beallitasok!$H$2,VALUE(LEFT(E153,LEN(beallitasok!$H$3)))=beallitasok!$H$3,VALUE(LEFT(F153,LEN(beallitasok!$H$2)))=beallitasok!$H$3,VALUE(LEFT(E153,LEN(beallitasok!$H$3)))=beallitasok!$H$2),"",IF(D153="","",beallitasok!$B$2)),"") ->  | B153: =IF(VALUE(LEFT(ZARO_FOKONYV!A153,1))<=beallitasok!$H$8,ZARO_FOKONYV!B153,"") -> BELFÖLDI ÉRTÉKESÍTÉS ÁRBEVÉTELE | C153: =IF(B153="","",IF(beallitasok!$B$6="","",beallitasok!$B$6)) -> NYITÓ | D153: =IF(B153="","",ROUND(ZARO_FOKONYV!C153+ZARO_FOKONYV!D153,0)) -> 109903948 | E153: =IF(B153="","",LEFT(IF(ZARO_FOKONYV!C153>0,IFERROR(VLOOKUP(ZARO_FOKONYV!$A153,FKCSERE!$A:$B,2,FALSE),ZARO_FOKONYV!$A153),beallitasok!$B$3)&"00000",6)) -> 491000 | F153: =IF(B153="","",LEFT(IF(ZARO_FOKONYV!D153>0,IFERROR(VLOOKUP(ZARO_FOKONYV!$A153,FKCSERE!$A:$B,2,FALSE),ZARO_FOKONYV!$A153),beallitasok!$B$3)&"000000",6)) -> 910000 | H153: =IF(LEFT(E153,3)=LEFT(beallitasok!$B$3,3),"",$B153) ->  | I153: =IF(LEFT(F153,3)=LEFT(beallitasok!$B$3,3),"",$B153) -> BELFÖLDI ÉRTÉKESÍTÉS ÁRBEVÉTELE | J153: =IF(AND(LEN(ZARO_FOKONYV!A153)<LEN(ZARO_FOKONYV!A154),LEFT(ZARO_FOKONYV!A154,LEN(ZARO_FOKONYV!A153))=ZARO_FOKONYV!A153),"IGEN","nem") -> IGEN
A154: =IFERROR(IF(OR(AND(beallitasok!$H$5="IGEN",J154="IGEN"),B154="",VALUE(LEFT(F154,LEN(beallitasok!$H$2)))=beallitasok!$H$2,VALUE(LEFT(E154,LEN(beallitasok!$H$3)))=beallitasok!$H$3,VALUE(LEFT(F154,LEN(beallitasok!$H$2)))=beallitasok!$H$3,VALUE(LEFT(E154,LEN(beallitasok!$H$3)))=beallitasok!$H$2),"",IF(D154="","",beallitasok!$B$2)),"") -> 2020-12-31 | B154: =IF(VALUE(LEFT(ZARO_FOKONYV!A154,1))<=beallitasok!$H$8,ZARO_FOKONYV!B154,"") -> Alaptevékenység árbevétele | C154: =IF(B154="","",IF(beallitasok!$B$6="","",beallitasok!$B$6)) -> NYITÓ | D154: =IF(B154="","",ROUND(ZARO_FOKONYV!C154+ZARO_FOKONYV!D154,0)) -> 109903948 | E154: =IF(B154="","",LEFT(IF(ZARO_FOKONYV!C154>0,IFERROR(VLOOKUP(ZARO_FOKONYV!$A154,FKCSERE!$A:$B,2,FALSE),ZARO_FOKONYV!$A154),beallitasok!$B$3)&"00000",6)) -> 491000 | F154: =IF(B154="","",LEFT(IF(ZARO_FOKONYV!D154>0,IFERROR(VLOOKUP(ZARO_FOKONYV!$A154,FKCSERE!$A:$B,2,FALSE),ZARO_FOKONYV!$A154),beallitasok!$B$3)&"000000",6)) -> 911000 | H154: =IF(LEFT(E154,3)=LEFT(beallitasok!$B$3,3),"",$B154) ->  | I154: =IF(LEFT(F154,3)=LEFT(beallitasok!$B$3,3),"",$B154) -> Alaptevékenység árbevétele | J154: =IF(AND(LEN(ZARO_FOKONYV!A154)<LEN(ZARO_FOKONYV!A155),LEFT(ZARO_FOKONYV!A155,LEN(ZARO_FOKONYV!A154))=ZARO_FOKONYV!A154),"IGEN","nem") -> nem
A155: =IFERROR(IF(OR(AND(beallitasok!$H$5="IGEN",J155="IGEN"),B155="",VALUE(LEFT(F155,LEN(beallitasok!$H$2)))=beallitasok!$H$2,VALUE(LEFT(E155,LEN(beallitasok!$H$3)))=beallitasok!$H$3,VALUE(LEFT(F155,LEN(beallitasok!$H$2)))=beallitasok!$H$3,VALUE(LEFT(E155,LEN(beallitasok!$H$3)))=beallitasok!$H$2),"",IF(D155="","",beallitasok!$B$2)),"") ->  | B155: =IF(VALUE(LEFT(ZARO_FOKONYV!A155,1))<=beallitasok!$H$8,ZARO_FOKONYV!B155,"") -> EGYÉB BEVÉTELEK | C155: =IF(B155="","",IF(beallitasok!$B$6="","",beallitasok!$B$6)) -> NYITÓ | D155: =IF(B155="","",ROUND(ZARO_FOKONYV!C155+ZARO_FOKONYV!D155,0)) -> 1740 | E155: =IF(B155="","",LEFT(IF(ZARO_FOKONYV!C155>0,IFERROR(VLOOKUP(ZARO_FOKONYV!$A155,FKCSERE!$A:$B,2,FALSE),ZARO_FOKONYV!$A155),beallitasok!$B$3)&"00000",6)) -> 491000 | F155: =IF(B155="","",LEFT(IF(ZARO_FOKONYV!D155>0,IFERROR(VLOOKUP(ZARO_FOKONYV!$A155,FKCSERE!$A:$B,2,FALSE),ZARO_FOKONYV!$A155),beallitasok!$B$3)&"000000",6)) -> 960000 | H155: =IF(LEFT(E155,3)=LEFT(beallitasok!$B$3,3),"",$B155) ->  | I155: =IF(LEFT(F155,3)=LEFT(beallitasok!$B$3,3),"",$B155) -> EGYÉB BEVÉTELEK | J155: =IF(AND(LEN(ZARO_FOKONYV!A155)<LEN(ZARO_FOKONYV!A156),LEFT(ZARO_FOKONYV!A156,LEN(ZARO_FOKONYV!A155))=ZARO_FOKONYV!A155),"IGEN","nem") -> IGEN
A156: =IFERROR(IF(OR(AND(beallitasok!$H$5="IGEN",J156="IGEN"),B156="",VALUE(LEFT(F156,LEN(beallitasok!$H$2)))=beallitasok!$H$2,VALUE(LEFT(E156,LEN(beallitasok!$H$3)))=beallitasok!$H$3,VALUE(LEFT(F156,LEN(beallitasok!$H$2)))=beallitasok!$H$3,VALUE(LEFT(E156,LEN(beallitasok!$H$3)))=beallitasok!$H$2),"",IF(D156="","",beallitasok!$B$2)),"") ->  | B156: =IF(VALUE(LEFT(ZARO_FOKONYV!A156,1))<=beallitasok!$H$8,ZARO_FOKONYV!B156,"") -> A mérlegkészítés időpontjáig pénzügyileg rendezett, az üzleti évhez kapcsolódó egyéb bev. | C156: =IF(B156="","",IF(beallitasok!$B$6="","",beallitasok!$B$6)) -> NYITÓ | D156: =IF(B156="","",ROUND(ZARO_FOKONYV!C156+ZARO_FOKONYV!D156,0)) -> 1739 | E156: =IF(B156="","",LEFT(IF(ZARO_FOKONYV!C156>0,IFERROR(VLOOKUP(ZARO_FOKONYV!$A156,FKCSERE!$A:$B,2,FALSE),ZARO_FOKONYV!$A156),beallitasok!$B$3)&"00000",6)) -> 491000 | F156: =IF(B156="","",LEFT(IF(ZARO_FOKONYV!D156>0,IFERROR(VLOOKUP(ZARO_FOKONYV!$A156,FKCSERE!$A:$B,2,FALSE),ZARO_FOKONYV!$A156),beallitasok!$B$3)&"000000",6)) -> 963000 | H156: =IF(LEFT(E156,3)=LEFT(beallitasok!$B$3,3),"",$B156) ->  | I156: =IF(LEFT(F156,3)=LEFT(beallitasok!$B$3,3),"",$B156) -> A mérlegkészítés időpontjáig pénzügyileg rendezett, az üzleti évhez kapcsolódó egyéb bev. | J156: =IF(AND(LEN(ZARO_FOKONYV!A156)<LEN(ZARO_FOKONYV!A157),LEFT(ZARO_FOKONYV!A157,LEN(ZARO_FOKONYV!A156))=ZARO_FOKONYV!A156),"IGEN","nem") -> IGEN
A157: =IFERROR(IF(OR(AND(beallitasok!$H$5="IGEN",J157="IGEN"),B157="",VALUE(LEFT(F157,LEN(beallitasok!$H$2)))=beallitasok!$H$2,VALUE(LEFT(E157,LEN(beallitasok!$H$3)))=beallitasok!$H$3,VALUE(LEFT(F157,LEN(beallitasok!$H$2)))=beallitasok!$H$3,VALUE(LEFT(E157,LEN(beallitasok!$H$3)))=beallitasok!$H$2),"",IF(D157="","",beallitasok!$B$2)),"") -> 2020-12-31 | B157: =IF(VALUE(LEFT(ZARO_FOKONYV!A157,1))<=beallitasok!$H$8,ZARO_FOKONYV!B157,"") -> Kerekítés | C157: =IF(B157="","",IF(beallitasok!$B$6="","",beallitasok!$B$6)) -> NYITÓ | D157: =IF(B157="","",ROUND(ZARO_FOKONYV!C157+ZARO_FOKONYV!D157,0)) -> 1739 | E157: =IF(B157="","",LEFT(IF(ZARO_FOKONYV!C157>0,IFERROR(VLOOKUP(ZARO_FOKONYV!$A157,FKCSERE!$A:$B,2,FALSE),ZARO_FOKONYV!$A157),beallitasok!$B$3)&"00000",6)) -> 491000 | F157: =IF(B157="","",LEFT(IF(ZARO_FOKONYV!D157>0,IFERROR(VLOOKUP(ZARO_FOKONYV!$A157,FKCSERE!$A:$B,2,FALSE),ZARO_FOKONYV!$A157),beallitasok!$B$3)&"000000",6)) -> 963600 | H157: =IF(LEFT(E157,3)=LEFT(beallitasok!$B$3,3),"",$B157) ->  | I157: =IF(LEFT(F157,3)=LEFT(beallitasok!$B$3,3),"",$B157) -> Kerekítés | J157: =IF(AND(LEN(ZARO_FOKONYV!A157)<LEN(ZARO_FOKONYV!A158),LEFT(ZARO_FOKONYV!A158,LEN(ZARO_FOKONYV!A157))=ZARO_FOKONYV!A157),"IGEN","nem") -> nem
A158: =IFERROR(IF(OR(AND(beallitasok!$H$5="IGEN",J158="IGEN"),B158="",VALUE(LEFT(F158,LEN(beallitasok!$H$2)))=beallitasok!$H$2,VALUE(LEFT(E158,LEN(beallitasok!$H$3)))=beallitasok!$H$3,VALUE(LEFT(F158,LEN(beallitasok!$H$2)))=beallitasok!$H$3,VALUE(LEFT(E158,LEN(beallitasok!$H$3)))=beallitasok!$H$2),"",IF(D158="","",beallitasok!$B$2)),"") ->  | B158: =IF(VALUE(LEFT(ZARO_FOKONYV!A158,1))<=beallitasok!$H$8,ZARO_FOKONYV!B158,"") -> Különféle egyéb bevételek | C158: =IF(B158="","",IF(beallitasok!$B$6="","",beallitasok!$B$6)) -> NYITÓ | D158: =IF(B158="","",ROUND(ZARO_FOKONYV!C158+ZARO_FOKONYV!D158,0)) -> 1 | E158: =IF(B158="","",LEFT(IF(ZARO_FOKONYV!C158>0,IFERROR(VLOOKUP(ZARO_FOKONYV!$A158,FKCSERE!$A:$B,2,FALSE),ZARO_FOKONYV!$A158),beallitasok!$B$3)&"00000",6)) -> 491000 | F158: =IF(B158="","",LEFT(IF(ZARO_FOKONYV!D158>0,IFERROR(VLOOKUP(ZARO_FOKONYV!$A158,FKCSERE!$A:$B,2,FALSE),ZARO_FOKONYV!$A158),beallitasok!$B$3)&"000000",6)) -> 969000 | H158: =IF(LEFT(E158,3)=LEFT(beallitasok!$B$3,3),"",$B158) ->  | I158: =IF(LEFT(F158,3)=LEFT(beallitasok!$B$3,3),"",$B158) -> Különféle egyéb bevételek | J158: =IF(AND(LEN(ZARO_FOKONYV!A158)<LEN(ZARO_FOKONYV!A159),LEFT(ZARO_FOKONYV!A159,LEN(ZARO_FOKONYV!A158))=ZARO_FOKONYV!A158),"IGEN","nem") -> IGEN
A159: =IFERROR(IF(OR(AND(beallitasok!$H$5="IGEN",J159="IGEN"),B159="",VALUE(LEFT(F159,LEN(beallitasok!$H$2)))=beallitasok!$H$2,VALUE(LEFT(E159,LEN(beallitasok!$H$3)))=beallitasok!$H$3,VALUE(LEFT(F159,LEN(beallitasok!$H$2)))=beallitasok!$H$3,VALUE(LEFT(E159,LEN(beallitasok!$H$3)))=beallitasok!$H$2),"",IF(D159="","",beallitasok!$B$2)),"") -> 2020-12-31 | B159: =IF(VALUE(LEFT(ZARO_FOKONYV!A159,1))<=beallitasok!$H$8,ZARO_FOKONYV!B159,"") -> Egyéb bevétel | C159: =IF(B159="","",IF(beallitasok!$B$6="","",beallitasok!$B$6)) -> NYITÓ | D159: =IF(B159="","",ROUND(ZARO_FOKONYV!C159+ZARO_FOKONYV!D159,0)) -> 1 | E159: =IF(B159="","",LEFT(IF(ZARO_FOKONYV!C159>0,IFERROR(VLOOKUP(ZARO_FOKONYV!$A159,FKCSERE!$A:$B,2,FALSE),ZARO_FOKONYV!$A159),beallitasok!$B$3)&"00000",6)) -> 491000 | F159: =IF(B159="","",LEFT(IF(ZARO_FOKONYV!D159>0,IFERROR(VLOOKUP(ZARO_FOKONYV!$A159,FKCSERE!$A:$B,2,FALSE),ZARO_FOKONYV!$A159),beallitasok!$B$3)&"000000",6)) -> 969600 | H159: =IF(LEFT(E159,3)=LEFT(beallitasok!$B$3,3),"",$B159) ->  | I159: =IF(LEFT(F159,3)=LEFT(beallitasok!$B$3,3),"",$B159) -> Egyéb bevétel | J159: =IF(AND(LEN(ZARO_FOKONYV!A159)<LEN(ZARO_FOKONYV!A160),LEFT(ZARO_FOKONYV!A160,LEN(ZARO_FOKONYV!A159))=ZARO_FOKONYV!A159),"IGEN","nem") -> nem
A160: =IFERROR(IF(OR(AND(beallitasok!$H$5="IGEN",J160="IGEN"),B160="",VALUE(LEFT(F160,LEN(beallitasok!$H$2)))=beallitasok!$H$2,VALUE(LEFT(E160,LEN(beallitasok!$H$3)))=beallitasok!$H$3,VALUE(LEFT(F160,LEN(beallitasok!$H$2)))=beallitasok!$H$3,VALUE(LEFT(E160,LEN(beallitasok!$H$3)))=beallitasok!$H$2),"",IF(D160="","",beallitasok!$B$2)),"") ->  | B160: =IF(VALUE(LEFT(ZARO_FOKONYV!A160,1))<=beallitasok!$H$8,ZARO_FOKONYV!B160,"") -> PÉNZÜGYI MŰVELETEK BEVÉTELEI | C160: =IF(B160="","",IF(beallitasok!$B$6="","",beallitasok!$B$6)) -> NYITÓ | D160: =IF(B160="","",ROUND(ZARO_FOKONYV!C160+ZARO_FOKONYV!D160,0)) -> 644 | E160: =IF(B160="","",LEFT(IF(ZARO_FOKONYV!C160>0,IFERROR(VLOOKUP(ZARO_FOKONYV!$A160,FKCSERE!$A:$B,2,FALSE),ZARO_FOKONYV!$A160),beallitasok!$B$3)&"00000",6)) -> 491000 | F160: =IF(B160="","",LEFT(IF(ZARO_FOKONYV!D160>0,IFERROR(VLOOKUP(ZARO_FOKONYV!$A160,FKCSERE!$A:$B,2,FALSE),ZARO_FOKONYV!$A160),beallitasok!$B$3)&"000000",6)) -> 970000 | H160: =IF(LEFT(E160,3)=LEFT(beallitasok!$B$3,3),"",$B160) ->  | I160: =IF(LEFT(F160,3)=LEFT(beallitasok!$B$3,3),"",$B160) -> PÉNZÜGYI MŰVELETEK BEVÉTELEI | J160: =IF(AND(LEN(ZARO_FOKONYV!A160)<LEN(ZARO_FOKONYV!A161),LEFT(ZARO_FOKONYV!A161,LEN(ZARO_FOKONYV!A160))=ZARO_FOKONYV!A160),"IGEN","nem") -> IGEN
A161: =IFERROR(IF(OR(AND(beallitasok!$H$5="IGEN",J161="IGEN"),B161="",VALUE(LEFT(F161,LEN(beallitasok!$H$2)))=beallitasok!$H$2,VALUE(LEFT(E161,LEN(beallitasok!$H$3)))=beallitasok!$H$3,VALUE(LEFT(F161,LEN(beallitasok!$H$2)))=beallitasok!$H$3,VALUE(LEFT(E161,LEN(beallitasok!$H$3)))=beallitasok!$H$2),"",IF(D161="","",beallitasok!$B$2)),"") ->  | B161: =IF(VALUE(LEFT(ZARO_FOKONYV!A161,1))<=beallitasok!$H$8,ZARO_FOKONYV!B161,"") -> Egyéb kapott kamatok és kamatjellegű bevételek | C161: =IF(B161="","",IF(beallitasok!$B$6="","",beallitasok!$B$6)) -> NYITÓ | D161: =IF(B161="","",ROUND(ZARO_FOKONYV!C161+ZARO_FOKONYV!D161,0)) -> 644 | E161: =IF(B161="","",LEFT(IF(ZARO_FOKONYV!C161>0,IFERROR(VLOOKUP(ZARO_FOKONYV!$A161,FKCSERE!$A:$B,2,FALSE),ZARO_FOKONYV!$A161),beallitasok!$B$3)&"00000",6)) -> 491000 | F161: =IF(B161="","",LEFT(IF(ZARO_FOKONYV!D161>0,IFERROR(VLOOKUP(ZARO_FOKONYV!$A161,FKCSERE!$A:$B,2,FALSE),ZARO_FOKONYV!$A161),beallitasok!$B$3)&"000000",6)) -> 974000 | H161: =IF(LEFT(E161,3)=LEFT(beallitasok!$B$3,3),"",$B161) ->  | I161: =IF(LEFT(F161,3)=LEFT(beallitasok!$B$3,3),"",$B161) -> Egyéb kapott kamatok és kamatjellegű bevételek | J161: =IF(AND(LEN(ZARO_FOKONYV!A161)<LEN(ZARO_FOKONYV!A162),LEFT(ZARO_FOKONYV!A162,LEN(ZARO_FOKONYV!A161))=ZARO_FOKONYV!A161),"IGEN","nem") -> IGEN
A162: =IFERROR(IF(OR(AND(beallitasok!$H$5="IGEN",J162="IGEN"),B162="",VALUE(LEFT(F162,LEN(beallitasok!$H$2)))=beallitasok!$H$2,VALUE(LEFT(E162,LEN(beallitasok!$H$3)))=beallitasok!$H$3,VALUE(LEFT(F162,LEN(beallitasok!$H$2)))=beallitasok!$H$3,VALUE(LEFT(E162,LEN(beallitasok!$H$3)))=beallitasok!$H$2),"",IF(D162="","",beallitasok!$B$2)),"") -> 2020-12-31 | B162: =IF(VALUE(LEFT(ZARO_FOKONYV!A162,1))<=beallitasok!$H$8,ZARO_FOKONYV!B162,"") -> Forgóeszközök között kimutatott kölcsön, váltókövetelés, pénzeszköz után kapott kamat | C162: =IF(B162="","",IF(beallitasok!$B$6="","",beallitasok!$B$6)) -> NYITÓ | D162: =IF(B162="","",ROUND(ZARO_FOKONYV!C162+ZARO_FOKONYV!D162,0)) -> 644 | E162: =IF(B162="","",LEFT(IF(ZARO_FOKONYV!C162>0,IFERROR(VLOOKUP(ZARO_FOKONYV!$A162,FKCSERE!$A:$B,2,FALSE),ZARO_FOKONYV!$A162),beallitasok!$B$3)&"00000",6)) -> 491000 | F162: =IF(B162="","",LEFT(IF(ZARO_FOKONYV!D162>0,IFERROR(VLOOKUP(ZARO_FOKONYV!$A162,FKCSERE!$A:$B,2,FALSE),ZARO_FOKONYV!$A162),beallitasok!$B$3)&"000000",6)) -> 974100 | H162: =IF(LEFT(E162,3)=LEFT(beallitasok!$B$3,3),"",$B162) ->  | I162: =IF(LEFT(F162,3)=LEFT(beallitasok!$B$3,3),"",$B162) -> Forgóeszközök között kimutatott kölcsön, váltókövetelés, pénzeszköz után kapott kamat | J162: =IF(AND(LEN(ZARO_FOKONYV!A162)<LEN(ZARO_FOKONYV!A163),LEFT(ZARO_FOKONYV!A163,LEN(ZARO_FOKONYV!A162))=ZARO_FOKONYV!A162),"IGEN","nem") -> nem

Sheet FKCSERE
A1: RÉGI PROGI | B1: RELAX
A2: 353 | B2: 354
